Workbook

Sheet Inicio
B2: Servicio Móvil Avanzado
B3: Tarifas
B8: Fecha de publicación: julio de 2013
C13: A continuación se presenta información relacionada con los Planes Tarifarios dentro de la Telefonía Móvil.
C15: Es el valor que el concesionario de telefonía móvil cobra a sus abonados por los servicios prestados, no incluye los impuestos aplicables de ley.
C17: Los concesionarios de telefonía móvil pueden presentar sus tarifas de acuerdo a sus planes y estratégias de negocios, siempre y cuando no sobrepasen los techos tarifarios establecidos por en sus respectivos contratos de concesión.
C19: La comunidad debe conocer las condiciones, vigencia, planes y tarifas de los distintos servicios de telecomunicaciones que empresas ofrecen, hoy en día hay demasiadas ofertas que es necesario que se informen para que sepan cuánto realmente va a ser el valor de su planilla.
C21: 1. Tabla Resumen y Comparativa de las Tarifas Prepago y Pospago
C22: 2. Plan Tarifario de Conecel S.A.
C23: 3. Plan Tarifario de Otecel S.A.
C24: 4. Plan Tarifario de CNT EP. (ex-Telecsa S.A.)
C25: 5, Evolución Tarifaria On Net
C26: 6. Evolución Tarifaria Off Net

Sheet Resumen
B2: Servicio Móvil Avanzado
B3: Planes Tarifarios
B8: =+Inicio!B8 -> Fecha de publicación: julio de 2013
B13: TARIFAS PREPAGO (USD)
B14: Empresa | C14: ONNET | D14: OFFNET - Fijo | E14: OFFNET - Otro Móvil | F14: Promedio Simple
C15: Prepago en la misma red | D15: Prepago - fijo | E15: Prepago - otro móvil
B16: Conecel S.A. | C16: 0.05 | D16: 0.16 | E16: 0.18 | F16: 0.13
B17: Otecel S.A. | C17: 0.08 | D17: 0.18 | E17: 0.18 | F17: 0.1466666667
B18: CNT EP. | C18: 0.05 | D18: 0.12 | E18: 0.16 | F18: 0.11
B20: TARIFAS PREPAGO Y POSPAGO (MÁXIMAS Y MINIMAS) (USD)
B21: Empresa | C21: TARIFAS MÁXIMAS | E21: TARIFAS MÍNIMAS
C22: Máxima Prepago | D22: Máxima Pospago Off Net | E22: Mínima Prepago | F22: Mínima Pospago On Net
B23: Conecel S.A. | C23: 0.22 | D23: 0.22 | E23: 0.05 | F23: 0.02
B24: Otecel S.A. | C24: 0.18 | D24: 0.19 | E24: 0.08 | F24: 0.04
B25: CNT EP. | C25: 0.22 | D25: 0.15 | E25: 0.05 | F25: 0.04
B29: Notas:
B31: 1. El valor de la tarifa desde un telefóno de Telecsa S.A. a un teléfono Fijo es $ 0,22 excepto a un teléfono de la CNT S.A. cuya tarifa es $ 0,12
B32: 2. Valor de las tarifas por minuto
B33: 3. Tarifa Pospago de Conecel S.A. de $ 0,02 se refiere al Plan Empresas TAS
B34: 4. No se incluye valor de los impuestos
B35: 5. Tarifas incluyen cargos de interconexión
B36: ="." -> .

Sheet Conecel S.A.
B2: Servicio Móvil Avanzado
B3: Tarifas CONECEL S.A.
B8: =+Inicio!B8 -> Fecha de publicación: julio de 2013
B13: FORMATO RT-PR-01: PROMOCIONES MÓVILES
B15: Nombre de la promoción: | D15: PORTABILIDAD DOBLE DE MINUTOS Y MEGAS POR 6 MESES
B16: Fecha de entrada en vigencia de la Promoción,Tarifa promocional o Paquete promocional: | D16: 2013-07-01
B17: Fecha de finalización de la Promoción,Tarifa promocional o Paquete promocional: | D17: 2013-07-31
B19: Condiciones generales de la Promoción,Tarifa promocional o Paquete promocional: | D19: Mecanica: Cambiate a Claro con tu mismo número (Portabilidad) en un Plan de VOZ + DATOS y recibe el Doble de Minutos, Megas por 6 meses • Beneficio Promocional será entregado al cliente pasando un mes a partir del segundo mes de activación del servicio • Minutos y SMS Promocionales aplican para números moviles Claro. • Servicio móvil prestado por CONECEL S.A.
B21: Descripción de la Promoción/Tarifa promocional (Servicios que incluye, etc.) | D21: Código de Identificación de la Promoción/Tarifa promocional * | E21: VOZ | Q21: SMS | Z21: DATOS | AC21: Otros servicios adicionales
E22: Tarifa por minuto IN-POOL (US$ por min.) | F22: Minutos IN-POOL incluidos (min.) | G22: Minutos On Net incluidos (min.) | H22: Minutos gratis a cualquier operadora (min.) | I22: Tarifa por minuto on net móvil dentro de la promoción (US$ por min.) | J22: Tarifa por minuto on net móvil adicional a la promoción (US$ por min.) | K22: Minutos Off Net incluidos (min.) | M22: Tarifa por minuto off net móvil dentro de la promoción (US$ por min.) | N22: Tarifa por minuto off net fijo dentro de la promoción (US$ por min.) | O22: Tarifa por minuto off net móvil adicional a la promoción (US$ por min.) | P22: Tarifa por minuto off net fijo adicional a la promoción (US$ por min.) | Q22: Tarifa por SMS IN-POOL (US$ por SMS) | R22: SMS IN-POOL incluidos (#SMS) | S22: Mensajes on net Incluidos (# SMS) | T22: Tarifa por SMS on net dentro de la promoción (US$ por SMS) | U22: Tarifa por SMS on net adicional a la promoción (US$ por SMS) | V22: Mensajes off net Incluidos (# SMS) | W22: Mensajes gratis a cualquier operadora (# SMS) | X22: Tarifa por SMS off net dentro de la promoción (US$ por SMS) | Y22: Tarifa por SMS off net adicional a la promoción (US$ por SMS) | Z22: MB Incluidos en la promoción (MB) | AA22: Tarifa por MB dentro de la promoción Plan (US$ por MB) | AB22: Tarifa por MB adicional a la promoción (US$ por MB) | AC22: Detalle | AD22: Unidad de medida | AE22: Tarifa US$
K23: Móvil | L23: Fijo
B24: IDEAL 22 INTERNET MÓVIL BB AB | D24: N/A | E24: N/A | F24: N/A | G24: 120 MIN | H24: N/A | I24: 0.112 | J24: 0.112 | K24: N/A | L24: N/A | M24: N/A | N24: N/A | O24: 0.2464 | P24: =0.15*1.12 -> 0.168 | Q24: N/A | R24: N/A | S24: N/A | T24: N/A | U24: 0.0672 | V24: N/A | W24: N/A | X24: N/A | Y24: 0.0672 | Z24: 300 MB | AA24: 0.037 | AB24: 0.112 | AC24: N/A | AD24: N/A | AE24: N/A
B25: IDEAL 22 INTERNET MOVIL AB | D25: N/A | E25: N/A | F25: N/A | G25: 120 MIN | H25: N/A | I25: 0.112 | J25: 0.112 | K25: N/A | L25: N/A | M25: N/A | N25: N/A | O25: 0.2464 | P25: 0.168 | Q25: N/A | R25: N/A | S25: N/A | T25: N/A | U25: 0.0672 | V25: N/A | W25: N/A | X25: N/A | Y25: 0.0672 | Z25: 300 MB | AA25: 0.037 | AB25: 0.112 | AC25: N/A | AD25: N/A | AE25: N/A
B26: IDEAL 25 INTERNET MÓVIL BB AB | D26: N/A | E26: N/A | F26: N/A | G26: 150 MIN | H26: N/A | I26: 0.112 | J26: 0.112 | K26: N/A | L26: N/A | M26: N/A | N26: N/A | O26: 0.2464 | P26: 0.168 | Q26: N/A | R26: N/A | S26: N/A | T26: N/A | U26: 0.0672 | V26: N/A | W26: N/A | X26: N/A | Y26: 0.0672 | Z26: 300 MB | AA26: 0.037 | AB26: 0.112 | AC26: N/A | AD26: N/A | AE26: N/A
B27: IDEAL 25 INTERNET MOVIL AB | D27: N/A | E27: N/A | F27: N/A | G27: 150 MIN | H27: N/A | I27: 0.112 | J27: 0.112 | K27: N/A | L27: N/A | M27: N/A | N27: N/A | O27: 0.2464 | P27: 0.168 | Q27: N/A | R27: N/A | S27: N/A | T27: N/A | U27: 0.0672 | V27: N/A | W27: N/A | X27: N/A | Y27: 0.0672 | Z27: 300 MB | AA27: 0.037 | AB27: 0.112 | AC27: N/A | AD27: N/A | AE27: N/A
B28: IDEAL 30 INTERNET MOVIL BB AB | D28: N/A | E28: N/A | F28: N/A | G28: 100 MIN | H28: N/A | I28: 0.112 | J28: 0.112 | K28: N/A | L28: N/A | M28: N/A | N28: N/A | O28: 0.2464 | P28: 0.168 | Q28: N/A | R28: N/A | S28: N/A | T28: N/A | U28: 0.0672 | V28: N/A | W28: N/A | X28: N/A | Y28: 0.0672 | Z28: 1000 MB | AA28: 0.0223888 | AB28: 0.112 | AC28: N/A | AD28: N/A | AE28: N/A
B29: IDEAL 30 INTERNET MOVIL AB | D29: N/A | E29: N/A | F29: N/A | G29: 100 MIN | H29: N/A | I29: 0.112 | J29: 0.112 | K29: N/A | L29: N/A | M29: N/A | N29: N/A | O29: 0.2464 | P29: 0.168 | Q29: N/A | R29: N/A | S29: N/A | T29: N/A | U29: 0.0672 | V29: N/A | W29: N/A | X29: N/A | Y29: 0.0672 | Z29: 1000 MB | AA29: 0.0223888 | AB29: 0.112 | AC29: N/A | AD29: N/A | AE29: N/A
B30: IDEAL 34 INTERNET MOVIL BB AB | D30: N/A | E30: N/A | F30: N/A | G30: 140 MIN | H30: N/A | I30: 0.112 | J30: 0.112 | K30: N/A | L30: N/A | M30: N/A | N30: N/A | O30: 0.2464 | P30: 0.168 | Q30: N/A | R30: N/A | S30: N/A | T30: N/A | U30: 0.0672 | V30: N/A | W30: N/A | X30: N/A | Y30: 0.0672 | Z30: 1000 MB | AA30: 0.0223888 | AB30: 0.112 | AC30: N/A | AD30: N/A | AE30: N/A
B31: IDEAL 34 INTERNET MOVIL AB | D31: N/A | E31: N/A | F31: N/A | G31: 140 MIN | H31: N/A | I31: 0.112 | J31: 0.112 | K31: N/A | L31: N/A | M31: N/A | N31: N/A | O31: 0.2464 | P31: 0.168 | Q31: N/A | R31: N/A | S31: N/A | T31: N/A | U31: 0.0672 | V31: N/A | W31: N/A | X31: N/A | Y31: 0.0672 | Z31: 1000 MB | AA31: 0.0223888 | AB31: 0.112 | AC31: N/A | AD31: N/A | AE31: N/A
B32: IDEAL 39 INTERNET MOVIL BB AB | D32: N/A | E32: N/A | F32: N/A | G32: 190 MIN | H32: N/A | I32: 0.112 | J32: 0.112 | K32: N/A | L32: N/A | M32: N/A | N32: N/A | O32: 0.2464 | P32: 0.168 | Q32: N/A | R32: N/A | S32: N/A | T32: N/A | U32: 0.0672 | V32: N/A | W32: N/A | X32: N/A | Y32: 0.0672 | Z32: 1000 MB | AA32: 0.0223888 | AB32: 0.112 | AC32: N/A | AD32: N/A | AE32: N/A
B33: IDEAL 39 INTERNET MOVIL AB | D33: N/A | E33: N/A | F33: N/A | G33: 190 MIN | H33: N/A | I33: 0.112 | J33: 0.112 | K33: N/A | L33: N/A | M33: N/A | N33: N/A | O33: 0.2464 | P33: 0.168 | Q33: N/A | R33: N/A | S33: N/A | T33: N/A | U33: 0.0672 | V33: N/A | W33: N/A | X33: N/A | Y33: 0.0672 | Z33: 1000 MB | AA33: 0.0223888 | AB33: 0.112 | AC33: N/A | AD33: N/A | AE33: N/A
B34: IDEAL 49 INTERNET MOVIL BB AB | D34: N/A | E34: N/A | F34: N/A | G34: 296 MIN | H34: N/A | I34: 0.11 | J34: 0.11 | K34: N/A | L34: N/A | M34: N/A | N34: N/A | O34: 0.2464 | P34: 0.168 | Q34: N/A | R34: N/A | S34: N/A | T34: N/A | U34: 0.0672 | V34: N/A | W34: N/A | X34: N/A | Y34: 0.0672 | Z34: 1000 MB | AA34: 0.0223888 | AB34: 0.112 | AC34: N/A | AD34: N/A | AE34: N/A
B35: IDEAL 49 INTERNET MOVIL AB | D35: N/A | E35: N/A | F35: N/A | G35: 296 MIN | H35: N/A | I35: 0.11 | J35: 0.11 | K35: N/A | L35: N/A | M35: N/A | N35: N/A | O35: 0.2464 | P35: 0.168 | Q35: N/A | R35: N/A | S35: N/A | T35: N/A | U35: 0.0672 | V35: N/A | W35: N/A | X35: N/A | Y35: 0.0672 | Z35: 1000 MB | AA35: 0.0223888 | AB35: 0.112 | AC35: N/A | AD35: N/A | AE35: N/A
B36: IDEAL 59 INTERNET MOVIL BB AB | D36: N/A | E36: N/A | F36: N/A | G36: 398 MIN | H36: N/A | I36: 0.10976 | J36: 0.10976 | K36: N/A | L36: N/A | M36: N/A | N36: N/A | O36: 0.2464 | P36: 0.168 | Q36: N/A | R36: N/A | S36: N/A | T36: N/A | U36: 0.0672 | V36: N/A | W36: N/A | X36: N/A | Y36: 0.0672 | Z36: 1000 MB | AA36: 0.0223888 | AB36: 0.112 | AC36: N/A | AD36: N/A | AE36: N/A
B37: IDEAL 59 INTERNET MOVIL AB | D37: N/A | E37: N/A | F37: N/A | G37: 398 MIN | H37: N/A | I37: 0.10976 | J37: 0.10976 | K37: N/A | L37: N/A | M37: N/A | N37: N/A | O37: 0.2464 | P37: 0.168 | Q37: N/A | R37: N/A | S37: N/A | T37: N/A | U37: 0.0672 | V37: N/A | W37: N/A | X37: N/A | Y37: 0.0672 | Z37: 1000 MB | AA37: 0.0223888 | AB37: 0.112 | AC37: N/A | AD37: N/A | AE37: N/A
B38: IDEAL 69 INTERNET MOVIL BB AB | D38: N/A | E38: N/A | F38: N/A | G38: 510 MIN | H38: N/A | I38: 0.108 | J38: 0.108 | K38: N/A | L38: N/A | M38: N/A | N38: N/A | O38: 0.2464 | P38: 0.168 | Q38: N/A | R38: N/A | S38: N/A | T38: N/A | U38: 0.0672 | V38: N/A | W38: N/A | X38: N/A | Y38: 0.0672 | Z38: 1000 MB | AA38: 0.0223888 | AB38: 0.112 | AC38: N/A | AD38: N/A | AE38: N/A
B39: IDEAL 69 INTERNET MOVIL AB | D39: N/A | E39: N/A | F39: N/A | G39: 510 MIN | H39: N/A | I39: 0.108 | J39: 0.108 | K39: N/A | L39: N/A | M39: N/A | N39: N/A | O39: 0.2464 | P39: 0.168 | Q39: N/A | R39: N/A | S39: N/A | T39: N/A | U39: 0.0672 | V39: N/A | W39: N/A | X39: N/A | Y39: 0.0672 | Z39: 1000 MB | AA39: 0.0223888 | AB39: 0.112 | AC39: N/A | AD39: N/A | AE39: N/A
B40: IDEAL 79 INTERNET MOVIL AB [2000 MB] | D40: N/A | E40: N/A | F40: N/A | G40: 555 MIN | H40: N/A | I40: 0.1008 | J40: 0.1008 | K40: N/A | L40: N/A | M40: N/A | N40: N/A | O40: 0.2464 | P40: 0.168 | Q40: N/A | R40: N/A | S40: N/A | T40: N/A | U40: 0.0672 | V40: N/A | W40: N/A | X40: N/A | Y40: 0.0672 | Z40: 2000 MB | AA40: 0.01624 | AB40: 0.112 | AC40: N/A | AD40: N/A | AE40: N/A
B41: IDEAL 79 INTERNET MOVIL BB AB | D41: N/A | E41: N/A | F41: N/A | G41: 655 MIN | H41: N/A | I41: 0.1008 | J41: 0.1008 | K41: N/A | L41: N/A | M41: N/A | N41: N/A | O41: 0.2464 | P41: 0.168 | Q41: N/A | R41: N/A | S41: N/A | T41: N/A | U41: 0.0672 | V41: N/A | W41: N/A | X41: N/A | Y41: 0.0672 | Z41: 1000 MB | AA41: 0.0223888 | AB41: 0.112 | AC41: N/A | AD41: N/A | AE41: N/A
B42: IDEAL 79 INTERNET MOVIL AB | D42: N/A | E42: N/A | F42: N/A | G42: 655 MIN | H42: N/A | I42: 0.1008 | J42: 0.1008 | K42: N/A | L42: N/A | M42: N/A | N42: N/A | O42: 0.2464 | P42: 0.168 | Q42: N/A | R42: N/A | S42: N/A | T42: N/A | U42: 0.0672 | V42: N/A | W42: N/A | X42: N/A | Y42: 0.0672 | Z42: 1000 MB | AA42: 0.0223888 | AB42: 0.112 | AC42: N/A | AD42: N/A | AE42: N/A
B43: IDEAL 99 INTERNET MOVIL AB [3000 MB] | D43: N/A | E43: N/A | F43: N/A | G43: 697 MIN | H43: N/A | I43: 0.096 | J43: 0.096 | K43: N/A | L43: N/A | M43: N/A | N43: N/A | O43: 0.2464 | P43: 0.168 | Q43: N/A | R43: N/A | S43: N/A | T43: N/A | U43: 0.0672 | V43: N/A | W43: N/A | X43: N/A | Y43: 0.0672 | Z43: 3000 MB | AA43: 0.01456 | AB43: 0.112 | AC43: N/A | AD43: N/A | AE43: N/A
B44: IDEAL 99 INTERNET MOVIL BB AB | D44: N/A | E44: N/A | F44: N/A | G44: 918 MIN | H44: N/A | I44: 0.096 | J44: 0.096 | K44: N/A | L44: N/A | M44: N/A | N44: N/A | O44: 0.2464 | P44: 0.168 | Q44: N/A | R44: N/A | S44: N/A | T44: N/A | U44: 0.0672 | V44: N/A | W44: N/A | X44: N/A | Y44: 0.0672 | Z44: 1000 MB | AA44: 0.0223888 | AB44: 0.112 | AC44: N/A | AD44: N/A | AE44: N/A
B45: IDEAL 99 INTERNET MOVIL AB | D45: N/A | E45: N/A | F45: N/A | G45: 918 MIN | H45: N/A | I45: 0.096 | J45: 0.096 | K45: N/A | L45: N/A | M45: N/A | N45: N/A | O45: 0.2464 | P45: 0.168 | Q45: N/A | R45: N/A | S45: N/A | T45: N/A | U45: 0.0672 | V45: N/A | W45: N/A | X45: N/A | Y45: 0.0672 | Z45: 1000 MB | AA45: 0.0223888 | AB45: 0.112 | AC45: N/A | AD45: N/A | AE45: N/A
B48: Destinos que incluyen cargos de Interconexión: | D48: si
B49: Tarifas incluyen impuestos aplicables de Ley: | D49: si
B51: =+Resumen!B36 -> .
B53: FORMATO RT-PR-01: PROMOCIONES MÓVILES
B55: Nombre de la promoción: | D55: PROMOCIÓN TARIFA TRICOLOR
B56: Fecha de entrada en vigencia de la Promoción,Tarifa promocional o Paquete promocional: | D56: 2013-07-15
B57: Fecha de finalización de la Promoción,Tarifa promocional o Paquete promocional: | D57: 2013-07-31
B59: Condiciones generales de la Promoción,Tarifa promocional o Paquete promocional: | D59: Todos los clientes prepago que envíen un SMS Premium al 5000 con la palabra TRI, tendrán el beneficio de hablar a una tarifa promocional de $0,10 + IVA a todas las operadoras fijas, móviles, Estados Unidos y España. P. Final del minuto promocional: $0,112. Tarifa promcional, aplica durante 24 horas apartir de la contratación. Precio del SMS Premium: $1 incluido IVA. Cliente deberá tener saldo adicional para hablar a la tarifa promocional de $0,10 + IVA. Una vez vencida la promoción, el cliente hablará a su tarifa previamente contratada. No aplica con Mejor Amigo y Family & Friends, es decir que las llamadas realizadas a los números registrados hablarán a $0.10..
B61: Descripción de la Promoción/Tarifa promocional (Servicios que incluye, etc.) | D61: Código de Identificación de la Promoción/Tarifa promocional * | E61: VOZ | Q61: SMS | Z61: DATOS | AC61: Otros servicios adicionales
E62: Tarifa por minuto IN-POOL (US$ por min.) | F62: Minutos IN-POOL incluidos (min.) | G62: Minutos On Net incluidos (min.) | H62: Minutos gratis a cualquier operadora (min.) | I62: Tarifa por minuto on net móvil dentro de la promoción (US$ por min.) | J62: Tarifa por minuto on net móvil adicional a la promoción (US$ por min.) | K62: Minutos Off Net incluidos (min.) | M62: Tarifa por minuto off net móvil dentro de la promoción (US$ por min.) | N62: Tarifa por minuto off net fijo dentro de la promoción (US$ por min.) | O62: Tarifa por minuto off net móvil adicional a la promoción (US$ por min.) | P62: Tarifa por minuto off net fijo adicional a la promoción (US$ por min.) | Q62: Tarifa por SMS IN-POOL (US$ por SMS) | R62: SMS IN-POOL incluidos (#SMS) | S62: Mensajes on net Incluidos (# SMS) | T62: Tarifa por SMS on net dentro de la promoción (US$ por SMS) | U62: Tarifa por SMS on net adicional a la promoción (US$ por SMS) | V62: Mensajes off net Incluidos (# SMS) | W62: Mensajes gratis a cualquier operadora (# SMS) | X62: Tarifa por SMS off net dentro de la promoción (US$ por SMS) | Y62: Tarifa por SMS off net adicional a la promoción (US$ por SMS) | Z62: MB Incluidos en la promoción (MB) | AA62: Tarifa por MB dentro de la promoción Plan (US$ por MB) | AB62: Tarifa por MB adicional a la promoción (US$ por MB) | AC62: Detalle | AD62: Unidad de medida | AE62: Tarifa US$
K63: Móvil | L63: Fijo
B64: Tarifa Tricolor | D64: N/A | E64: N/A | F64: N/A | G64: N/A | H64: N/A | I64: 0.1 | J64: N/A | K64: N/A | L64: N/A | M64: 0.1 | N64: 0.1 | O64: N/A | P64: N/A | Q64: N/A | R64: N/A | S64: N/A | T64: N/A | U64: N/A | V64: N/A | W64: N/A | X64: N/A | Y64: N/A | Z64: N/A | AA64: N/A | AB64: N/A | AC64: N/A | AD64: N/A | AE64: N/A
B67: Destinos que incluyen cargos de Interconexión: | D67: Si incluye
B68: Tarifas incluyen impuestos aplicables de Ley: | D68: Tarifas no incluyen impuestos
B70: =+B51 -> .
B72: FORMATO RT-PR-01: PROMOCIONES MÓVILES
B74: Nombre de la promoción: | D74: PROMOCIÓN TARIFA TRICOLOR
B75: Fecha de entrada en vigencia de la Promoción,Tarifa promocional o Paquete promocional: | D75: 2013-07-10
B76: Fecha de finalización de la Promoción,Tarifa promocional o Paquete promocional: | D76: 2013-07-14
B78: Condiciones generales de la Promoción,Tarifa promocional o Paquete promocional: | D78: Todos los clientes prepago que envíen un SMS Premium al 5000 con la palabra TRI, tendrán el beneficio de hablar a una tarifa promocional de $0,10 + IVA a todas las operadoras fijas, móviles, Estados Unidos y España. P. Final del minuto promocional: $0,112. Tarifa promcional, aplica durante 24 horas apartir de la contratación. Precio del SMS Premium: $1 incluido IVA. Cliente deberá tener saldo adicional para hablar a la tarifa promocional de $0,10 + IVA. Una vez vencida la promoción, el cliente hablará a su tarifa previamente contratada.
B80: Descripción de la Promoción/Tarifa promocional (Servicios que incluye, etc.) | D80: Código de Identificación de la Promoción/Tarifa promocional * | E80: VOZ | Q80: SMS | Z80: DATOS | AC80: Otros servicios adicionales
E81: Tarifa por minuto IN-POOL (US$ por min.) | F81: Minutos IN-POOL incluidos (min.) | G81: Minutos On Net incluidos (min.) | H81: Minutos gratis a cualquier operadora (min.) | I81: Tarifa por minuto on net móvil dentro de la promoción (US$ por min.) | J81: Tarifa por minuto on net móvil adicional a la promoción (US$ por min.) | K81: Minutos Off Net incluidos (min.) | M81: Tarifa por minuto off net móvil dentro de la promoción (US$ por min.) | N81: Tarifa por minuto off net fijo dentro de la promoción (US$ por min.) | O81: Tarifa por minuto off net móvil adicional a la promoción (US$ por min.) | P81: Tarifa por minuto off net fijo adicional a la promoción (US$ por min.) | Q81: Tarifa por SMS IN-POOL (US$ por SMS) | R81: SMS IN-POOL incluidos (#SMS) | S81: Mensajes on net Incluidos (# SMS) | T81: Tarifa por SMS on net dentro de la promoción (US$ por SMS) | U81: Tarifa por SMS on net adicional a la promoción (US$ por SMS) | V81: Mensajes off net Incluidos (# SMS) | W81: Mensajes gratis a cualquier operadora (# SMS) | X81: Tarifa por SMS off net dentro de la promoción (US$ por SMS) | Y81: Tarifa por SMS off net adicional a la promoción (US$ por SMS) | Z81: MB Incluidos en la promoción (MB) | AA81: Tarifa por MB dentro de la promoción Plan (US$ por MB) | AB81: Tarifa por MB adicional a la promoción (US$ por MB) | AC81: Detalle | AD81: Unidad de medida | AE81: Tarifa US$
K82: Móvil | L82: Fijo
B83: Tarifa Tricolor | D83: N/A | E83: N/A | F83: N/A | G83: N/A | H83: N/A | I83: 0.1 | J83: N/A | K83: N/A | L83: N/A | M83: 0.1 | N83: 0.1 | O83: N/A | P83: N/A | Q83: N/A | R83: N/A | S83: N/A | T83: N/A | U83: N/A | V83: N/A | W83: N/A | X83: N/A | Y83: N/A | Z83: N/A | AA83: N/A | AB83: N/A | AC83: N/A | AD83: N/A | AE83: N/A
B86: Destinos que incluyen cargos de Interconexión: | D86: Si incluye
B87: Tarifas incluyen impuestos aplicables de Ley: | D87: Tarifas no incluyen impuestos
B89: =+B70 -> .
B91: FORMATO RT-PR-01: PROMOCIONES MÓVILES
B93: Nombre de la promoción: | D93: MENSAJES ESCRITOS ILIMITADOS
B94: Fecha de entrada en vigencia de la Promoción,Tarifa promocional o Paquete promocional: | D94: 2013-07-01
B95: Fecha de finalización de la Promoción,Tarifa promocional o Paquete promocional: | D95: 2013-07-31
B97: Condiciones generales de la Promoción,Tarifa promocional o Paquete promocional: | D97: El cliente que envìe la palabra MENSAJES al 5000, podrá mensajear ilimitadamente durante 24 horas, Promoción válida para clientes Prepago de Claro móvil desde el 1 hasta el 31 de julio de 2013. Costo del paquete promocional es de USD$1 incluído impuestos.
B99: Descripción de la Promoción/Tarifa promocional (Servicios que incluye, etc.) | D99: Código de Identificación de la Promoción/Tarifa promocional * | E99: VOZ | Q99: SMS | Z99: DATOS | AC99: Otros servicios adicionales
E100: Tarifa por minuto IN-POOL (US$ por min.) | F100: Minutos IN-POOL incluidos (min.) | G100: Minutos On Net incluidos (min.) | H100: Minutos gratis a cualquier operadora (min.) | I100: Tarifa por minuto on net móvil dentro de la promoción (US$ por min.) | J100: Tarifa por minuto on net móvil adicional a la promoción (US$ por min.) | K100: Minutos Off Net incluidos (min.) | M100: Tarifa por minuto off net móvil dentro de la promoción (US$ por min.) | N100: Tarifa por minuto off net fijo dentro de la promoción (US$ por min.) | O100: Tarifa por minuto off net móvil adicional a la promoción (US$ por min.) | P100: Tarifa por minuto off net fijo adicional a la promoción (US$ por min.) | Q100: Tarifa por SMS IN-POOL (US$ por SMS) | R100: SMS IN-POOL incluidos (#SMS) | S100: Mensajes on net Incluidos (# SMS) | T100: Tarifa por SMS on net dentro de la promoción (US$ por SMS) | U100: Tarifa por SMS on net adicional a la promoción (US$ por SMS) | V100: Mensajes off net Incluidos (# SMS) | W100: Mensajes gratis a cualquier operadora (# SMS) | X100: Tarifa por SMS off net dentro de la promoción (US$ por SMS) | Y100: Tarifa por SMS off net adicional a la promoción (US$ por SMS) | Z100: MB Incluidos en la promoción (MB) | AA100: Tarifa por MB dentro de la promoción Plan (US$ por MB) | AB100: Tarifa por MB adicional a la promoción (US$ por MB) | AC100: Detalle | AD100: Unidad de medida | AE100: Tarifa US$
K101: Móvil | L101: Fijo
B102: Mensajes escritos ilimitados | D102: 194 | E102: N/A | F102: N/A | G102: N/A | H102: N/A | I102: N/A | J102: N/A | K102: N/A | L102: N/A | M102: N/A | N102: N/A | O102: N/A | P102: N/A | Q102: N/A | R102: N/A | S102: ilimitados | T102: N/A | U102: N/A | V102: N/A | W102: N/A | X102: 0.0672 | Y102: 0.0672 | Z102: N/A | AA102: N/A | AB102: N/A | AC102: N/A | AD102: N/A | AE102: N/A
B105: Destinos que incluyen cargos de Interconexión: | D105: No aplican cargos de interconexión
B106: Tarifas incluyen impuestos aplicables de Ley: | D106: Precio incluye impuestos.
B108: =+B89 -> .
B110: FORMATO RT-PR-01: PROMOCIONES MÓVILES
B112: Nombre de la promoción: | D112: Redes Sociales Ilimitadas por 12 meses
B113: Fecha de entrada en vigencia de la Promoción,Tarifa promocional o Paquete promocional: | D113: 2013-07-04
B114: Fecha de finalización de la Promoción,Tarifa promocional o Paquete promocional: | D114: 2013-07-31
B116: Condiciones generales de la Promoción,Tarifa promocional o Paquete promocional: | D116: • Redes Sociales Ilimitadas aplica por 12 meses a partir del segundo mes de la activación del plan. Aplica para planes BAM, Netbook, Tablet, iPad y Mi Hogar/ Oficina en planes desde $19 + IVA o 1.000 Mb. • Promoción aplica para renovaciones y nuevas contrataciones. Doble de Megas depende de Megas incluidos en cada plan. • Promoción aplica para los sitios Facebook, Twitter, Hi5, MySpace, Google+, Flickr, Badoo y Windows Live Profile. • El sitio de Facebook, tendrá acceso a todo su contenido y no deberá descontarse del cupo del plan, excepto a contenido externo que este fuera del dominio de Facebook (www.facebook.com). • El sitio Twitter, tendrá acceso ilimitado solo a los siguientes servicios: Yfrog – Pic.twitter – Lockerz –Twitpic – Twitvid. Demás servicios en Twitter serán cobrados del saldo de MB, y en caso de no tener cupo, no tendrán acceso al servicio. • Servicios Windows Live Profile, Badoo, Hi5, My Space, Flickr y Google+, tendrán acceso a todo su contenido y no deberá descontarse del cupo del plan, excepto a contenido externo que este fuera del dominio de cada sitio.
B118: Descripción de la Promoción/Tarifa promocional (Servicios que incluye, etc.) | D118: Código de Identificación de la Promoción/Tarifa promocional * | E118: VOZ | Q118: SMS | Z118: DATOS | AC118: Otros servicios adicionales
E119: Tarifa por minuto IN-POOL (US$ por min.) | F119: Minutos IN-POOL incluidos (min.) | G119: Minutos On Net incluidos (min.) | H119: Minutos gratis a cualquier operadora (min.) | I119: Tarifa por minuto on net móvil dentro de la promoción (US$ por min.) | J119: Tarifa por minuto on net móvil adicional a la promoción (US$ por min.) | K119: Minutos Off Net incluidos (min.) | M119: Tarifa por minuto off net móvil dentro de la promoción (US$ por min.) | N119: Tarifa por minuto off net fijo dentro de la promoción (US$ por min.) | O119: Tarifa por minuto off net móvil adicional a la promoción (US$ por min.) | P119: Tarifa por minuto off net fijo adicional a la promoción (US$ por min.) | Q119: Tarifa por SMS IN-POOL (US$ por SMS) | R119: SMS IN-POOL incluidos (#SMS) | S119: Mensajes on net Incluidos (# SMS) | T119: Tarifa por SMS on net dentro de la promoción (US$ por SMS) | U119: Tarifa por SMS on net adicional a la promoción (US$ por SMS) | V119: Mensajes off net Incluidos (# SMS) | W119: Mensajes gratis a cualquier operadora (# SMS) | X119: Tarifa por SMS off net dentro de la promoción (US$ por SMS) | Y119: Tarifa por SMS off net adicional a la promoción (US$ por SMS) | Z119: MB Incluidos en la promoción (MB) | AA119: Tarifa por MB dentro de la promoción Plan (US$ por MB) | AB119: Tarifa por MB adicional a la promoción (US$ por MB) | AC119: Detalle | AD119: Unidad de medida | AE119: Tarifa US$
K120: Móvil | L120: Fijo
B121: Redes Sociales Ilimitadas por 12 meses | D121: Redes Sociales Ilimitadas por 12 meses* | Z121: Redes Sociales Ilimitadas por 12meses* | AA121: Redes Sociales Ilimitadas por 12meses* | AB121: 0.1
B124: Destinos que incluyen cargos de Interconexión: | D124: N/A
B125: Tarifas incluyen impuestos aplicables de Ley: | D125: NO
B127: =+B108 -> .
B129: FORMATO RT-PR-01: PROMOCIONES MÓVILES
B131: Nombre de la promoción: | D131: Redes Sociales Ilimitadas por 6 meses
B132: Fecha de entrada en vigencia de la Promoción,Tarifa promocional o Paquete promocional: | D132: 2013-07-04
B133: Fecha de finalización de la Promoción,Tarifa promocional o Paquete promocional: | D133: 2013-07-31
B135: Condiciones generales de la Promoción,Tarifa promocional o Paquete promocional:
D136: • Redes Sociales Ilimitadas aplica por 6 meses a partir del segundo mes de la activación del plan. Aplica para planes BAM, Netbook, Tablet, iPad y Mi Hogar/ Oficina en planes desde $19 + IVA o 1.000 Mb. • Promoción aplica para renovaciones y nuevas contrataciones. Doble de Megas depende de Megas incluidos en cada plan. • Promoción aplica para los sitios Facebook, Twitter, Hi5, MySpace, Google+, Flickr, Badoo y Windows Live Profile. • El sitio de Facebook, tendrá acceso a todo su contenido y no deberá descontarse del cupo del plan, excepto a contenido externo que este fuera del dominio de Facebook (www.facebook.com). • El sitio Twitter, tendrá acceso ilimitado solo a los siguientes servicios: Yfrog – Pic.twitter – Lockerz –Twitpic – Twitvid. Demás servicios en Twitter serán cobrados del saldo de MB, y en caso de no tener cupo, no tendrán acceso al servicio. • Servicios Windows Live Profile, Badoo, Hi5, My Space, Flickr y Google+, tendrán acceso a todo su contenido y no deberá descontarse del cupo del plan, excepto a contenido externo que este fuera del dominio de cada sitio.
B137: Descripción de la Promoción/Tarifa promocional (Servicios que incluye, etc.) | D137: Código de Identificación de la Promoción/Tarifa promocional * | E137: VOZ | Q137: SMS | Z137: DATOS | AC137: Otros servicios adicionales
E138: Tarifa por minuto IN-POOL (US$ por min.) | F138: Minutos IN-POOL incluidos (min.) | G138: Minutos On Net incluidos (min.) | H138: Minutos gratis a cualquier operadora (min.) | I138: Tarifa por minuto on net móvil dentro de la promoción (US$ por min.) | J138: Tarifa por minuto on net móvil adicional a la promoción (US$ por min.) | K138: Minutos Off Net incluidos (min.) | M138: Tarifa por minuto off net móvil dentro de la promoción (US$ por min.) | N138: Tarifa por minuto off net fijo dentro de la promoción (US$ por min.) | O138: Tarifa por minuto off net móvil adicional a la promoción (US$ por min.) | P138: Tarifa por minuto off net fijo adicional a la promoción (US$ por min.) | Q138: Tarifa por SMS IN-POOL (US$ por SMS) | R138: SMS IN-POOL incluidos (#SMS) | S138: Mensajes on net Incluidos (# SMS) | T138: Tarifa por SMS on net dentro de la promoción (US$ por SMS) | U138: Tarifa por SMS on net adicional a la promoción (US$ por SMS) | V138: Mensajes off net Incluidos (# SMS) | W138: Mensajes gratis a cualquier operadora (# SMS) | X138: Tarifa por SMS off net dentro de la promoción (US$ por SMS) | Y138: Tarifa por SMS off net adicional a la promoción (US$ por SMS) | Z138: MB Incluidos en la promoción (MB) | AA138: Tarifa por MB dentro de la promoción Plan (US$ por MB) | AB138: Tarifa por MB adicional a la promoción (US$ por MB) | AC138: Detalle | AD138: Unidad de medida | AE138: Tarifa US$
K139: Móvil | L139: Fijo
B140: Redes Sociales Ilimitadas por 6 meses | D140: Doble de Megas por 6 meses* | Z140: Redes Sociales Ilimitadas por 6meses* | AA140: Redes Sociales Ilimitadas por 6meses* | AB140: 0.1
B143: Destinos que incluyen cargos de Interconexión: | D143: N/A
B144: Tarifas incluyen impuestos aplicables de Ley: | D144: NO
B146: =+B127 -> .
B148: FORMATO RT-PR-01: PROMOCIONES MÓVILES
B150: Nombre de la promoción: | D150: Redes Sociales Ilimitadas por 6 meses cancelando cuota de entrada
B151: Fecha de entrada en vigencia de la Promoción,Tarifa promocional o Paquete promocional: | D151: 2013-07-27
B152: Fecha de finalización de la Promoción,Tarifa promocional o Paquete promocional: | D152: 2013-08-31
B154: Condiciones generales de la Promoción,Tarifa promocional o Paquete promocional: | D154: • Redes Sociales Ilimitadas aplica por 6 meses a partir del segundo mes de la activación del plan. Aplica para planes tablet 1,000 cancelando cuota de entrada por equipo P3100 • Promoción aplica para renovaciones y nuevas contrataciones. Doble de Megas depende de Megas incluidos en cada plan. • Promoción aplica para los sitios Facebook, Twitter, Hi5, MySpace, Google+, Flickr, Badoo y Windows Live Profile. • El sitio de Facebook, tendrá acceso a todo su contenido y no deberá descontarse del cupo del plan, excepto a contenido externo que este fuera del dominio de Facebook (www.facebook.com). • El sitio Twitter, tendrá acceso ilimitado solo a los siguientes servicios: Yfrog – Pic.twitter – Lockerz –Twitpic – Twitvid. Demás servicios en Twitter serán cobrados del saldo de MB, y en caso de no tener cupo, no tendrán acceso al servicio. • Servicios Windows Live Profile, Badoo, Hi5, My Space, Flickr y Google+, tendrán acceso a todo su contenido y no deberá descontarse del cupo del plan, excepto a contenido externo que este fuera del dominio de cada sitio.
B156: Descripción de la Promoción/Tarifa promocional (Servicios que incluye, etc.) | D156: Código de Identificación de la Promoción/Tarifa promocional * | E156: VOZ | Q156: SMS | Z156: DATOS | AC156: Otros servicios adicionales
E157: Tarifa por minuto IN-POOL (US$ por min.) | F157: Minutos IN-POOL incluidos (min.) | G157: Minutos On Net incluidos (min.) | H157: Minutos gratis a cualquier operadora (min.) | I157: Tarifa por minuto on net móvil dentro de la promoción (US$ por min.) | J157: Tarifa por minuto on net móvil adicional a la promoción (US$ por min.) | K157: Minutos Off Net incluidos (min.) | M157: Tarifa por minuto off net móvil dentro de la promoción (US$ por min.) | N157: Tarifa por minuto off net fijo dentro de la promoción (US$ por min.) | O157: Tarifa por minuto off net móvil adicional a la promoción (US$ por min.) | P157: Tarifa por minuto off net fijo adicional a la promoción (US$ por min.) | Q157: Tarifa por SMS IN-POOL (US$ por SMS) | R157: SMS IN-POOL incluidos (#SMS) | S157: Mensajes on net Incluidos (# SMS) | T157: Tarifa por SMS on net dentro de la promoción (US$ por SMS) | U157: Tarifa por SMS on net adicional a la promoción (US$ por SMS) | V157: Mensajes off net Incluidos (# SMS) | W157: Mensajes gratis a cualquier operadora (# SMS) | X157: Tarifa por SMS off net dentro de la promoción (US$ por SMS) | Y157: Tarifa por SMS off net adicional a la promoción (US$ por SMS) | Z157: MB Incluidos en la promoción (MB) | AA157: Tarifa por MB dentro de la promoción Plan (US$ por MB) | AB157: Tarifa por MB adicional a la promoción (US$ por MB) | AC157: Detalle | AD157: Unidad de medida | AE157: Tarifa US$
K158: Móvil | L158: Fijo
B159: Redes Sociales Ilimitadas por 6 meses cancelando cuota de entrada | E159: N/A | F159: N/A | G159: N/A | H159: N/A | I159: N/A | J159: N/A | K159: N/A | L159: N/A | M159: N/A | N159: N/A | O159: N/A | P159: N/A | Q159: N/A | R159: N/A | S159: N/A | T159: N/A | U159: N/A | V159: N/A | W159: N/A | X159: N/A | Y159: N/A | Z159: Redes Sociales Ilimitadas por 6meses* | AA159: Redes Sociales Ilimitadas por 6meses* | AB159: 0.1 | AC159: N/A | AD159: N/A | AE159: N/A
B162: Destinos que incluyen cargos de Interconexión: | D162: N/A
B163: Tarifas incluyen impuestos aplicables de Ley: | D163: NO
B165: =+B146 -> .
B167: FORMATO RT-PR-01: PROMOCIONES MÓVILES
B169: Nombre de la promoción:
B170: Fecha de entrada en vigencia de la Promoción,Tarifa promocional o Paquete promocional:
B171: Fecha de finalización de la Promoción,Tarifa promocional o Paquete promocional:
B173: Condiciones generales de la Promoción,Tarifa promocional o Paquete promocional:
B175: Descripción de la Promoción/Tarifa promocional (Servicios que incluye, etc.) | D175: Código de Identificación de la Promoción/Tarifa promocional * | E175: VOZ | Q175: SMS | Z175: DATOS | AC175: Otros servicios adicionales
E176: Tarifa por minuto IN-POOL (US$ por min.) | F176: Minutos IN-POOL incluidos (min.) | G176: Minutos On Net incluidos (min.) | H176: Minutos gratis a cualquier operadora (min.) | I176: Tarifa por minuto on net móvil dentro de la promoción (US$ por min.) | J176: Tarifa por minuto on net móvil adicional a la promoción (US$ por min.) | K176: Minutos Off Net incluidos (min.) | M176: Tarifa por minuto off net móvil dentro de la promoción (US$ por min.) | N176: Tarifa por minuto off net fijo dentro de la promoción (US$ por min.) | O176: Tarifa por minuto off net móvil adicional a la promoción (US$ por min.) | P176: Tarifa por minuto off net fijo adicional a la promoción (US$ por min.) | Q176: Tarifa por SMS IN-POOL (US$ por SMS) | R176: SMS IN-POOL incluidos (#SMS) | S176: Mensajes on net Incluidos (# SMS) | T176: Tarifa por SMS on net dentro de la promoción (US$ por SMS) | U176: Tarifa por SMS on net adicional a la promoción (US$ por SMS) | V176: Mensajes off net Incluidos (# SMS) | W176: Mensajes gratis a cualquier operadora (# SMS) | X176: Tarifa por SMS off net dentro de la promoción (US$ por SMS) | Y176: Tarifa por SMS off net adicional a la promoción (US$ por SMS) | Z176: MB Incluidos en la promoción (MB) | AA176: Tarifa por MB dentro de la promoción Plan (US$ por MB) | AB176: Tarifa por MB adicional a la promoción (US$ por MB) | AC176: Detalle | AD176: Unidad de medida | AE176: Tarifa US$
K177: Móvil | L177: Fijo
B181: Destinos que incluyen cargos de Interconexión:
B182: Tarifas incluyen impuestos aplicables de Ley:
B184: =+B165 -> .
B186: FORMATO RT-PR-01: PROMOCIONES MÓVILES
B188: Nombre de la promoción: | D188: PORTABILIDAD DOBLE DE MINUTOS Y MEGAS POR 6 MESES
B189: Fecha de entrada en vigencia de la Promoción,Tarifa promocional o Paquete promocional: | D189: 2013-07-01
B190: Fecha de finalización de la Promoción,Tarifa promocional o Paquete promocional: | D190: 2013-07-31
B192: Condiciones generales de la Promoción,Tarifa promocional o Paquete promocional: | D192: Mecanica: Cambiate a Claro con tu mismo número (Portabilidad) en un Plan de VOZ + DATOS y recibe el Doble de Minutos, Megas por 6 meses • Beneficio Promocional será entregado al cliente pasando un mes a partir del segundo mes de activación del servicio • Minutos y SMS Promocionales aplican para números moviles Claro. • Servicio móvil prestado por CONECEL S.A.
B194: Descripción de la Promoción/Tarifa promocional (Servicios que incluye, etc.) | D194: Código de Identificación de la Promoción/Tarifa promocional * | E194: VOZ | Q194: SMS | Z194: DATOS | AC194: Otros servicios adicionales
E195: Tarifa por minuto IN-POOL (US$ por min.) | F195: Minutos IN-POOL incluidos (min.) | G195: Minutos On Net incluidos (min.) | H195: Minutos gratis a cualquier operadora (min.) | I195: Tarifa por minuto on net móvil dentro de la promoción (US$ por min.) | J195: Tarifa por minuto on net móvil adicional a la promoción (US$ por min.) | K195: Minutos Off Net incluidos (min.) | M195: Tarifa por minuto off net móvil dentro de la promoción (US$ por min.) | N195: Tarifa por minuto off net fijo dentro de la promoción (US$ por min.) | O195: Tarifa por minuto off net móvil adicional a la promoción (US$ por min.) | P195: Tarifa por minuto off net fijo adicional a la promoción (US$ por min.) | Q195: Tarifa por SMS IN-POOL (US$ por SMS) | R195: SMS IN-POOL incluidos (#SMS) | S195: Mensajes on net Incluidos (# SMS) | T195: Tarifa por SMS on net dentro de la promoción (US$ por SMS) | U195: Tarifa por SMS on net adicional a la promoción (US$ por SMS) | V195: Mensajes off net Incluidos (# SMS) | W195: Mensajes gratis a cualquier operadora (# SMS) | X195: Tarifa por SMS off net dentro de la promoción (US$ por SMS) | Y195: Tarifa por SMS off net adicional a la promoción (US$ por SMS) | Z195: MB Incluidos en la promoción (MB) | AA195: Tarifa por MB dentro de la promoción Plan (US$ por MB) | AB195: Tarifa por MB adicional a la promoción (US$ por MB) | AC195: Detalle | AD195: Unidad de medida | AE195: Tarifa US$
K196: Móvil | L196: Fijo
B197: IDEAL 18 INTERNET MÓVIL BB CON | D197: N/A | E197: N/A | F197: N/A | G197: 66 MIN | H197: N/A | I197: 0.1344 | J197: 0.1344 | K197: N/A | L197: N/A | M197: N/A | N197: N/A | O197: 0.2464 | P197: =0.15*1.12 -> 0.168 | Q197: N/A | R197: N/A | S197: N/A | T197: N/A | U197: 0.0672 | V197: N/A | W197: N/A | X197: N/A | Y197: 0.0672 | Z197: 300 MB | AA197: 0.037 | AB197: 0.112 | AC197: N/A | AD197: N/A | AE197: N/A
B198: IDEAL 18 INTERNET MOVIL CON | D198: N/A | E198: N/A | F198: N/A | G198: 66 MIN | H198: N/A | I198: 0.1344 | J198: 0.1344 | K198: N/A | L198: N/A | M198: N/A | N198: N/A | O198: 0.2464 | P198: 0.168 | Q198: N/A | R198: N/A | S198: N/A | T198: N/A | U198: 0.0672 | V198: N/A | W198: N/A | X198: N/A | Y198: 0.0672 | Z198: 300 MB | AA198: 0.037 | AB198: 0.112 | AC198: N/A | AD198: N/A | AE198: N/A
B199: IDEAL 20 INTERNET MÓVIL BB CON | D199: N/A | E199: N/A | F199: N/A | G199: 83 MIN | H199: N/A | I199: 0.1344 | J199: 0.1344 | K199: N/A | L199: N/A | M199: N/A | N199: N/A | O199: 0.2464 | P199: 0.168 | Q199: N/A | R199: N/A | S199: N/A | T199: N/A | U199: 0.0672 | V199: N/A | W199: N/A | X199: N/A | Y199: 0.0672 | Z199: 300 MB | AA199: 0.037 | AB199: 0.112 | AC199: N/A | AD199: N/A | AE199: N/A
B200: IDEAL 20 INTERNET MOVIL CON | D200: N/A | E200: N/A | F200: N/A | G200: 83 MIN | H200: N/A | I200: 0.1344 | J200: 0.1344 | K200: N/A | L200: N/A | M200: N/A | N200: N/A | O200: 0.2464 | P200: 0.168 | Q200: N/A | R200: N/A | S200: N/A | T200: N/A | U200: 0.0672 | V200: N/A | W200: N/A | X200: N/A | Y200: 0.0672 | Z200: 300 MB | AA200: 0.037 | AB200: 0.112 | AC200: N/A | AD200: N/A | AE200: N/A
B201: IDEAL 22 INTERNET MÓVIL BB CON | D201: N/A | E201: N/A | F201: N/A | G201: 100 MIN | H201: N/A | I201: 0.1344 | J201: 0.1344 | K201: N/A | L201: N/A | M201: N/A | N201: N/A | O201: 0.2464 | P201: 0.168 | Q201: N/A | R201: N/A | S201: N/A | T201: N/A | U201: 0.0672 | V201: N/A | W201: N/A | X201: N/A | Y201: 0.0672 | Z201: 300 MB | AA201: 0.037 | AB201: 0.112 | AC201: N/A | AD201: N/A | AE201: N/A
B202: IDEAL 22 INTERNET MOVIL CON | D202: N/A | E202: N/A | F202: N/A | G202: 100 MIN | H202: N/A | I202: 0.1344 | J202: 0.1344 | K202: N/A | L202: N/A | M202: N/A | N202: N/A | O202: 0.2464 | P202: 0.168 | Q202: N/A | R202: N/A | S202: N/A | T202: N/A | U202: 0.0672 | V202: N/A | W202: N/A | X202: N/A | Y202: 0.0672 | Z202: 300 MB | AA202: 0.037 | AB202: 0.112 | AC202: N/A | AD202: N/A | AE202: N/A
B203: IDEAL 30 INTERNET MOVIL BB CON | D203: N/A | E203: N/A | F203: N/A | G203: 83 MIN | H203: N/A | I203: 0.1344 | J203: 0.1344 | K203: N/A | L203: N/A | M203: N/A | N203: N/A | O203: 0.2464 | P203: 0.168 | Q203: N/A | R203: N/A | S203: N/A | T203: N/A | U203: 0.0672 | V203: N/A | W203: N/A | X203: N/A | Y203: 0.0672 | Z203: 1000 MB | AA203: 0.0223888 | AB203: 0.112 | AC203: N/A | AD203: N/A | AE203: N/A
B204: IDEAL 30 INTERNET MOVIL CON | D204: N/A | E204: N/A | F204: N/A | G204: 83 MIN | H204: N/A | I204: 0.1344 | J204: 0.1344 | K204: N/A | L204: N/A | M204: N/A | N204: N/A | O204: 0.2464 | P204: 0.168 | Q204: N/A | R204: N/A | S204: N/A | T204: N/A | U204: 0.0672 | V204: N/A | W204: N/A | X204: N/A | Y204: 0.0672 | Z204: 1000 MB | AA204: 0.0223888 | AB204: 0.112 | AC204: N/A | AD204: N/A | AE204: N/A
B205: IDEAL 34 INTERNET MOVIL BB CON 24 M | D205: N/A | E205: N/A | F205: N/A | G205: 127 MIN | H205: N/A | I205: 0.1232 | J205: 0.1232 | K205: N/A | L205: N/A | M205: N/A | N205: N/A | O205: 0.2464 | P205: 0.168 | Q205: N/A | R205: N/A | S205: N/A | T205: N/A | U205: 0.0672 | V205: N/A | W205: N/A | X205: N/A | Y205: 0.0672 | Z205: 1000 MB | AA205: 0.0223888 | AB205: 0.112 | AC205: N/A | AD205: N/A | AE205: N/A
B206: IDEAL 34 INTERNET MOVIL CON 24 M | D206: N/A | E206: N/A | F206: N/A | G206: 127 MIN | H206: N/A | I206: 0.1232 | J206: 0.1232 | K206: N/A | L206: N/A | M206: N/A | N206: N/A | O206: 0.2464 | P206: 0.168 | Q206: N/A | R206: N/A | S206: N/A | T206: N/A | U206: 0.0672 | V206: N/A | W206: N/A | X206: N/A | Y206: 0.0672 | Z206: 1000 MB | AA206: 0.0223888 | AB206: 0.112 | AC206: N/A | AD206: N/A | AE206: N/A
B207: IDEAL 39 INTERNET MOVIL BB CON 24 M | D207: N/A | E207: N/A | F207: N/A | G207: 172 MIN | H207: N/A | I207: 0.1232 | J207: 0.1232 | K207: N/A | L207: N/A | M207: N/A | N207: N/A | O207: 0.2464 | P207: 0.168 | Q207: N/A | R207: N/A | S207: N/A | T207: N/A | U207: 0.0672 | V207: N/A | W207: N/A | X207: N/A | Y207: 0.0672 | Z207: 1000 MB | AA207: 0.0223888 | AB207: 0.112 | AC207: N/A | AD207: N/A | AE207: N/A
B208: IDEAL 39 INTERNET MOVIL CON 24 M | D208: N/A | E208: N/A | F208: N/A | G208: 172 MIN | H208: N/A | I208: 0.1232 | J208: 0.1232 | K208: N/A | L208: N/A | M208: N/A | N208: N/A | O208: 0.2464 | P208: 0.168 | Q208: N/A | R208: N/A | S208: N/A | T208: N/A | U208: 0.0672 | V208: N/A | W208: N/A | X208: N/A | Y208: 0.0672 | Z208: 1000 MB | AA208: 0.0223888 | AB208: 0.112 | AC208: N/A | AD208: N/A | AE208: N/A
B209: IDEAL 49 INTERNET MOVIL BB CON 24 M | D209: N/A | E209: N/A | F209: N/A | G209: 268 MIN | H209: N/A | I209: 0.121 | J209: 0.121 | K209: N/A | L209: N/A | M209: N/A | N209: N/A | O209: 0.2464 | P209: 0.168 | Q209: N/A | R209: N/A | S209: N/A | T209: N/A | U209: 0.0672 | V209: N/A | W209: N/A | X209: N/A | Y209: 0.0672 | Z209: 1000 MB | AA209: 0.0223888 | AB209: 0.112 | AC209: N/A | AD209: N/A | AE209: N/A
B210: IDEAL 49 INTERNET MOVIL CON 24 M | D210: N/A | E210: N/A | F210: N/A | G210: 268 MIN | H210: N/A | I210: 0.121 | J210: 0.121 | K210: N/A | L210: N/A | M210: N/A | N210: N/A | O210: 0.2464 | P210: 0.168 | Q210: N/A | R210: N/A | S210: N/A | T210: N/A | U210: 0.0672 | V210: N/A | W210: N/A | X210: N/A | Y210: 0.0672 | Z210: 1000 MB | AA210: 0.0223888 | AB210: 0.112 | AC210: N/A | AD210: N/A | AE210: N/A
B211: IDEAL 59 INTERNET MOVIL BB CON 24 M | D211: N/A | E211: N/A | F211: N/A | G211: 398 MIN | H211: N/A | I211: 0.10976 | J211: 0.10976 | K211: N/A | L211: N/A | M211: N/A | N211: N/A | O211: 0.2464 | P211: 0.168 | Q211: N/A | R211: N/A | S211: N/A | T211: N/A | U211: 0.0672 | V211: N/A | W211: N/A | X211: N/A | Y211: 0.0672 | Z211: 1000 MB | AA211: 0.0223888 | AB211: 0.112 | AC211: N/A | AD211: N/A | AE211: N/A
B212: IDEAL 59 INTERNET MOVIL CON 24 M | D212: N/A | E212: N/A | F212: N/A | G212: 398 MIN | H212: N/A | I212: 0.10976 | J212: 0.10976 | K212: N/A | L212: N/A | M212: N/A | N212: N/A | O212: 0.2464 | P212: 0.168 | Q212: N/A | R212: N/A | S212: N/A | T212: N/A | U212: 0.0672 | V212: N/A | W212: N/A | X212: N/A | Y212: 0.0672 | Z212: 1000 MB | AA212: 0.0223888 | AB212: 0.112 | AC212: N/A | AD212: N/A | AE212: N/A
B213: IDEAL 69 INTERNET MOVIL BB CON 24 M | D213: N/A | E213: N/A | F213: N/A | G213: 510 MIN | H213: N/A | I213: 0.10752 | J213: 0.10752 | K213: N/A | L213: N/A | M213: N/A | N213: N/A | O213: 0.2464 | P213: 0.168 | Q213: N/A | R213: N/A | S213: N/A | T213: N/A | U213: 0.0672 | V213: N/A | W213: N/A | X213: N/A | Y213: 0.0672 | Z213: 1000 MB | AA213: 0.0223888 | AB213: 0.112 | AC213: N/A | AD213: N/A | AE213: N/A
B214: IDEAL 69 INTERNET MOVIL CON 24 M | D214: N/A | E214: N/A | F214: N/A | G214: 510 MIN | H214: N/A | I214: 0.10752 | J214: 0.10752 | K214: N/A | L214: N/A | M214: N/A | N214: N/A | O214: 0.2464 | P214: 0.168 | Q214: N/A | R214: N/A | S214: N/A | T214: N/A | U214: 0.0672 | V214: N/A | W214: N/A | X214: N/A | Y214: 0.0672 | Z214: 1000 MB | AA214: 0.0223888 | AB214: 0.112 | AC214: N/A | AD214: N/A | AE214: N/A
B215: IDEAL 79 INTERNET MOVIL CO [2000 MB] | D215: N/A | E215: N/A | F215: N/A | G215: 555 MIN | H215: N/A | I215: 0.1008 | J215: 0.1008 | K215: N/A | L215: N/A | M215: N/A | N215: N/A | O215: 0.2464 | P215: 0.168 | Q215: N/A | R215: N/A | S215: N/A | T215: N/A | U215: 0.0672 | V215: N/A | W215: N/A | X215: N/A | Y215: 0.0672 | Z215: 2000 MB | AA215: 0.01624 | AB215: 0.112 | AC215: N/A | AD215: N/A | AE215: N/A
B216: IDEAL 79 INTERNET MOVIL BB CON 24 M | D216: N/A | E216: N/A | F216: N/A | G216: 655 MIN | H216: N/A | I216: 0.1008 | J216: 0.1008 | K216: N/A | L216: N/A | M216: N/A | N216: N/A | O216: 0.2464 | P216: 0.168 | Q216: N/A | R216: N/A | S216: N/A | T216: N/A | U216: 0.0672 | V216: N/A | W216: N/A | X216: N/A | Y216: 0.0672 | Z216: 1000 MB | AA216: 0.0223888 | AB216: 0.112 | AC216: N/A | AD216: N/A | AE216: N/A
B217: IDEAL 79 INTERNET MOVIL CON 24 M | D217: N/A | E217: N/A | F217: N/A | G217: 655 MIN | H217: N/A | I217: 0.1008 | J217: 0.1008 | K217: N/A | L217: N/A | M217: N/A | N217: N/A | O217: 0.2464 | P217: 0.168 | Q217: N/A | R217: N/A | S217: N/A | T217: N/A | U217: 0.0672 | V217: N/A | W217: N/A | X217: N/A | Y217: 0.0672 | Z217: 1000 MB | AA217: 0.0223888 | AB217: 0.112 | AC217: N/A | AD217: N/A | AE217: N/A
B218: FLEX 79 INTERNET MOVIL 5000 MB CO | D218: N/A | E218: N/A | F218: N/A | G218: 250 MIN | H218: N/A | I218: 0.1344 | J218: 0.1344 | K218: N/A | L218: N/A | M218: N/A | N218: N/A | O218: 0.1344 | P218: 0.1344 | Q218: N/A | R218: N/A | S218: N/A | T218: N/A | U218: 0.0672 | V218: N/A | W218: N/A | X218: N/A | Y218: 0.0672 | Z218: 5000 MB | AA218: 0.010976 | AB218: 0.112 | AC218: N/A | AD218: N/A | AE218: N/A
B219: IDEAL 99 INTERNET MOVIL CO [3000 MB] | D219: N/A | E219: N/A | F219: N/A | G219: 697 MIN | H219: N/A | I219: 0.096 | J219: 0.096 | K219: N/A | L219: N/A | M219: N/A | N219: N/A | O219: 0.2464 | P219: 0.168 | Q219: N/A | R219: N/A | S219: N/A | T219: N/A | U219: 0.0672 | V219: N/A | W219: N/A | X219: N/A | Y219: 0.0672 | Z219: 3000 MB | AA219: 0.01456 | AB219: 0.112 | AC219: N/A | AD219: N/A | AE219: N/A
B220: IDEAL 99 INTERNET MOVIL BB CON 24 M | D220: N/A | E220: N/A | F220: N/A | G220: 918 MIN | H220: N/A | I220: 0.096 | J220: 0.096 | K220: N/A | L220: N/A | M220: N/A | N220: N/A | O220: 0.2464 | P220: 0.168 | Q220: N/A | R220: N/A | S220: N/A | T220: N/A | U220: 0.0672 | V220: N/A | W220: N/A | X220: N/A | Y220: 0.0672 | Z220: 1000 MB | AA220: 0.0223888 | AB220: 0.112 | AC220: N/A | AD220: N/A | AE220: N/A
B221: IDEAL 99 INTERNET MOVIL CON 24 M | D221: N/A | E221: N/A | F221: N/A | G221: 918 MIN | H221: N/A | I221: 0.096 | J221: 0.096 | K221: N/A | L221: N/A | M221: N/A | N221: N/A | O221: 0.2464 | P221: 0.168 | Q221: N/A | R221: N/A | S221: N/A | T221: N/A | U221: 0.0672 | V221: N/A | W221: N/A | X221: N/A | Y221: 0.0672 | Z221: 1000 MB | AA221: 0.0223888 | AB221: 0.112 | AC221: N/A | AD221: N/A | AE221: N/A
B224: Destinos que incluyen cargos de Interconexión: | D224: si
B225: Tarifas incluyen impuestos aplicables de Ley: | D225: si
B227: =+B184 -> .
B229: FORMATO RT-PR-01: PROMOCIONES MÓVILES
B231: Nombre de la promoción: | D231: PORTABILIDAD DOBLE DE MINUTOS POR 6 MESES
B232: Fecha de entrada en vigencia de la Promoción,Tarifa promocional o Paquete promocional: | D232: 2013-07-01
B233: Fecha de finalización de la Promoción,Tarifa promocional o Paquete promocional: | D233: 2013-07-31
B235: Condiciones generales de la Promoción,Tarifa promocional o Paquete promocional: | D235: Mecanica: Cambiate a Claro con tu mismo número (Portabilidad) en un Plan de VOZ y recibe el Doble de Minutos por 6 meses • Beneficio Promocional será entregado al cliente pasando un mes a partir del segundo mes de activación del servicio • Minutos Promocionales aplican para números moviles Claro. • Servicio móvil prestado por CONECEL S.A.
B237: Descripción de la Promoción/Tarifa promocional (Servicios que incluye, etc.) | D237: Código de Identificación de la Promoción/Tarifa promocional * | E237: VOZ | Q237: SMS | Z237: DATOS | AC237: Otros servicios adicionales
E238: Tarifa por minuto IN-POOL (US$ por min.) | F238: Minutos IN-POOL incluidos (min.) | G238: Minutos On Net incluidos (min.) | H238: Minutos gratis a cualquier operadora (min.) | I238: Tarifa por minuto on net móvil dentro de la promoción (US$ por min.) | J238: Tarifa por minuto on net móvil adicional a la promoción (US$ por min.) | K238: Minutos Off Net incluidos (min.) | M238: Tarifa por minuto off net móvil dentro de la promoción (US$ por min.) | N238: Tarifa por minuto off net fijo dentro de la promoción (US$ por min.) | O238: Tarifa por minuto off net móvil adicional a la promoción (US$ por min.) | P238: Tarifa por minuto off net fijo adicional a la promoción (US$ por min.) | Q238: Tarifa por SMS IN-POOL (US$ por SMS) | R238: SMS IN-POOL incluidos (#SMS) | S238: Mensajes on net Incluidos (# SMS) | T238: Tarifa por SMS on net dentro de la promoción (US$ por SMS) | U238: Tarifa por SMS on net adicional a la promoción (US$ por SMS) | V238: Mensajes off net Incluidos (# SMS) | W238: Mensajes gratis a cualquier operadora (# SMS) | X238: Tarifa por SMS off net dentro de la promoción (US$ por SMS) | Y238: Tarifa por SMS off net adicional a la promoción (US$ por SMS) | Z238: MB Incluidos en la promoción (MB) | AA238: Tarifa por MB dentro de la promoción Plan (US$ por MB) | AB238: Tarifa por MB adicional a la promoción (US$ por MB) | AC238: Detalle | AD238: Unidad de medida | AE238: Tarifa US$
K239: Móvil | L239: Fijo
B240: PLAN IDEAL 15 MULTIDESTINO II | D240: N/A | E240: N/A | F240: N/A | G240: 83 MIN | H240: N/A | I240: 0.2016 | J240: 0.2016 | K240: N/A | L240: N/A | M240: N/A | N240: N/A | O240: 0.2016 | P240: 0.2016 | Q240: N/A | R240: N/A | S240: N/A | T240: N/A | U240: 0.0672 | V240: N/A | W240: N/A | X240: N/A | Y240: 0.0672 | Z240: N/A | AA240: N/A | AB240: 0.112 | AC240: N/A | AD240: N/A | AE240: N/A
B241: PLAN IDEAL 15 | D241: N/A | E241: N/A | F241: N/A | G241: 125 MIN | H241: N/A | I241: 0.1344 | J241: 0.1344 | K241: N/A | L241: N/A | M241: N/A | N241: N/A | O241: 0.2464 | P241: 0.168 | Q241: N/A | R241: N/A | S241: N/A | T241: N/A | U241: 0.0672 | V241: N/A | W241: N/A | X241: N/A | Y241: 0.0672 | Z241: N/A | AA241: N/A | AB241: 0.112 | AC241: N/A | AD241: N/A | AE241: N/A
B242: PLAN IDEAL 18 | D242: N/A | E242: N/A | F242: N/A | G242: 150 MIN | H242: N/A | I242: 0.1344 | J242: 0.1344 | K242: N/A | L242: N/A | M242: N/A | N242: N/A | O242: 0.2464 | P242: 0.168 | Q242: N/A | R242: N/A | S242: N/A | T242: N/A | U242: 0.0672 | V242: N/A | W242: N/A | X242: N/A | Y242: 0.0672 | Z242: N/A | AA242: N/A | AB242: 0.112 | AC242: N/A | AD242: N/A | AE242: N/A
B243: PLAN IDEAL 22 ROLLOVER | D243: N/A | E243: N/A | F243: N/A | G243: 183 MIN | H243: N/A | I243: 0.1344 | J243: 0.1344 | K243: N/A | L243: N/A | M243: N/A | N243: N/A | O243: 0.2464 | P243: 0.168 | Q243: N/A | R243: N/A | S243: N/A | T243: N/A | U243: 0.0672 | V243: N/A | W243: N/A | X243: N/A | Y243: 0.0672 | Z243: N/A | AA243: N/A | AB243: 0.112 | AC243: N/A | AD243: N/A | AE243: N/A
B244: PLAN IDEAL 22 | D244: N/A | E244: N/A | F244: N/A | G244: 183 MIN | H244: N/A | I244: 0.1344 | J244: 0.1344 | K244: N/A | L244: N/A | M244: N/A | N244: N/A | O244: 0.2464 | P244: 0.168 | Q244: N/A | R244: N/A | S244: N/A | T244: N/A | U244: 0.0672 | V244: N/A | W244: N/A | X244: N/A | Y244: 0.0672 | Z244: N/A | AA244: N/A | AB244: 0.112 | AC244: N/A | AD244: N/A | AE244: N/A
B245: PLAN IDEAL 25 | D245: N/A | E245: N/A | F245: N/A | G245: 208 MIN | H245: N/A | I245: 0.1344 | J245: 0.1344 | K245: N/A | L245: N/A | M245: N/A | N245: N/A | O245: 0.2464 | P245: 0.168 | Q245: N/A | R245: N/A | S245: N/A | T245: N/A | U245: 0.0672 | V245: N/A | W245: N/A | X245: N/A | Y245: 0.0672 | Z245: N/A | AA245: N/A | AB245: 0.112 | AC245: N/A | AD245: N/A | AE245: N/A
B246: PLAN IDEAL 34 | D246: N/A | E246: N/A | F246: N/A | G246: 309 MIN | H246: N/A | I246: 0.1232 | J246: 0.1232 | K246: N/A | L246: N/A | M246: N/A | N246: N/A | O246: 0.2464 | P246: 0.168 | Q246: N/A | R246: N/A | S246: N/A | T246: N/A | U246: 0.0672 | V246: N/A | W246: N/A | X246: N/A | Y246: 0.0672 | Z246: N/A | AA246: N/A | AB246: 0.112 | AC246: N/A | AD246: N/A | AE246: N/A
B247: PLAN IDEAL 43 | D247: N/A | E247: N/A | F247: N/A | G247: 398 MIN | H247: N/A | I247: 0.121 | J247: 0.121 | K247: N/A | L247: N/A | M247: N/A | N247: N/A | O247: 0.2464 | P247: 0.168 | Q247: N/A | R247: N/A | S247: N/A | T247: N/A | U247: 0.0672 | V247: N/A | W247: N/A | X247: N/A | Y247: 0.0672 | Z247: N/A | AA247: N/A | AB247: 0.112 | AC247: N/A | AD247: N/A | AE247: N/A
B248: PLAN IDEAL 54 | D248: N/A | E248: N/A | F248: N/A | G248: 562 MIN | H248: N/A | I248: 0.108 | J248: 0.108 | K248: N/A | L248: N/A | M248: N/A | N248: N/A | O248: 0.2464 | P248: 0.168 | Q248: N/A | R248: N/A | S248: N/A | T248: N/A | U248: 0.0672 | V248: N/A | W248: N/A | X248: N/A | Y248: 0.0672 | Z248: N/A | AA248: N/A | AB248: 0.112 | AC248: N/A | AD248: N/A | AE248: N/A
B251: Destinos que incluyen cargos de Interconexión: | D251: si
B252: Tarifas incluyen impuestos aplicables de Ley: | D252: si
B254: =+B227 -> .
B256: FORMATO RT-PR-01: PROMOCIONES MÓVILES
B258: Nombre de la promoción: | D258: PROMOCIÓN HABLA GRATIS
B259: Fecha de entrada en vigencia de la Promoción,Tarifa promocional o Paquete promocional: | D259: 2013-07-03
B260: Fecha de finalización de la Promoción,Tarifa promocional o Paquete promocional: | D260: 2013-07-04
B262: Condiciones generales de la Promoción,Tarifa promocional o Paquete promocional: | D262: Todos los clientes prepago y postpago personales controlados que activen su primera recarga electrónica desde $3 los dias 3 y 4 del mes de julio del 2013, recibirán 2 X 1 de tiempo aire promocional para hablar a números móviles CLARO durante 5 días a partir de su activación. Promoción aplica todos los locales a nivel nacional La tarifa que aplica en el tiempo aire promocional es la misma que ha contratado el cliente para llamadas a números móviles Claro.
B264: Descripción de la Promoción/Tarifa promocional (Servicios que incluye, etc.) | D264: Código de Identificación de la Promoción/Tarifa promocional * | E264: VOZ | Q264: SMS | Z264: DATOS | AC264: Otros servicios adicionales
E265: Tarifa por minuto IN-POOL (US$ por min.) | F265: Minutos IN-POOL incluidos (min.) | G265: Minutos On Net incluidos (min.) | H265: Minutos gratis a cualquier operadora (min.) | I265: Tarifa por minuto on net móvil dentro de la promoción (US$ por min.) | J265: Tarifa por minuto on net móvil adicional a la promoción (US$ por min.) | K265: Minutos Off Net incluidos (min.) | M265: Tarifa por minuto off net móvil dentro de la promoción (US$ por min.) | N265: Tarifa por minuto off net fijo dentro de la promoción (US$ por min.) | O265: Tarifa por minuto off net móvil adicional a la promoción (US$ por min.) | P265: Tarifa por minuto off net fijo adicional a la promoción (US$ por min.) | Q265: Tarifa por SMS IN-POOL (US$ por SMS) | R265: SMS IN-POOL incluidos (#SMS) | S265: Mensajes on net Incluidos (# SMS) | T265: Tarifa por SMS on net dentro de la promoción (US$ por SMS) | U265: Tarifa por SMS on net adicional a la promoción (US$ por SMS) | V265: Mensajes off net Incluidos (# SMS) | W265: Mensajes gratis a cualquier operadora (# SMS) | X265: Tarifa por SMS off net dentro de la promoción (US$ por SMS) | Y265: Tarifa por SMS off net adicional a la promoción (US$ por SMS) | Z265: MB Incluidos en la promoción (MB) | AA265: Tarifa por MB dentro de la promoción Plan (US$ por MB) | AB265: Tarifa por MB adicional a la promoción (US$ por MB) | AC265: Detalle | AD265: Unidad de medida | AE265: Tarifa US$
K266: Móvil | L266: Fijo
B267: 2 x 1 Para clientes con tarifa Multidestino | D267: N/A | E267: N/A | F267: N/A | G267: 17 | H267: N/A | I267: 0.18 | J267: N/A | K267: N/A | L267: N/A | M267: N/A | N267: N/A | O267: N/A | P267: N/A | Q267: N/A | R267: N/A | S267: N/A | T267: N/A | U267: N/A | V267: N/A | W267: N/A | X267: N/A | Y267: N/A | Z267: N/A | AA267: N/A | AB267: N/A | AC267: N/A | AD267: N/A | AE267: N/A
B268: 2 x 1 Para clientes con tarifa Prepago | D268: N/A | E268: N/A | F268: N/A | G268: 19 | H268: N/A | I268: 0.16 | J268: N/A | K268: N/A | L268: N/A | M268: N/A | N268: N/A | O268: N/A | P268: N/A | Q268: N/A | R268: N/A | S268: N/A | T268: N/A | U268: N/A | V268: N/A | W268: N/A | X268: N/A | Y268: N/A | Z268: N/A | AA268: N/A | AB268: N/A | AC268: N/A | AD268: N/A | AE268: N/A
B271: Destinos que incluyen cargos de Interconexión: | D271: No aplican cargos de interconexión
B272: Tarifas incluyen impuestos aplicables de Ley: | D272: Tarifas no incluyen impuestos
B274: =+B254 -> .
B276: FORMATO RT-PR-01: PROMOCIONES MÓVILES
B278: Nombre de la promoción: | D278: PROMOCIÓN DUPLICA TU RECARGA CADA SEMANA POR 6 MESES
B279: Fecha de entrada en vigencia de la Promoción,Tarifa promocional o Paquete promocional: | D279: 2013-07-15
B280: Fecha de finalización de la Promoción,Tarifa promocional o Paquete promocional: | D280: 2013-09-15 | E280: o hasta agotar stock
B282: Condiciones generales de la Promoción,Tarifa promocional o Paquete promocional: | D282: Todos los clientes prepago que adquieran un Amigo Kit Selección, recibirán 2x1 de tiempo aire promocional en su primera recarga semanal desde $6, para hablar a números móviles CLARO durante 5 días a partir de su activación. Promoción aplica por 6 meses a partir de la activación del Amigo Kit. Promoción aplica únicamente con la compra de los modelos de equipo Amigo Kit Selección Nokia 201 y LG L3 400. Promoción a nivel nacional. La tarifa que aplica en el tiempo aire promocional es la misma que ha contratado el cliente para llamadas a números móviles Claro. Promoción válida del 15/07/2013 hasta el 15/09/2013 o hasta agotar stock.
B284: Descripción de la Promoción/Tarifa promocional (Servicios que incluye, etc.) | D284: Código de Identificación de la Promoción/Tarifa promocional * | E284: VOZ | Q284: SMS | Z284: DATOS | AC284: Otros servicios adicionales
E285: Tarifa por minuto IN-POOL (US$ por min.) | F285: Minutos IN-POOL incluidos (min.) | G285: Minutos On Net incluidos (min.) | H285: Minutos gratis a cualquier operadora (min.) | I285: Tarifa por minuto on net móvil dentro de la promoción (US$ por min.) | J285: Tarifa por minuto on net móvil adicional a la promoción (US$ por min.) | K285: Minutos Off Net incluidos (min.) | M285: Tarifa por minuto off net móvil dentro de la promoción (US$ por min.) | N285: Tarifa por minuto off net fijo dentro de la promoción (US$ por min.) | O285: Tarifa por minuto off net móvil adicional a la promoción (US$ por min.) | P285: Tarifa por minuto off net fijo adicional a la promoción (US$ por min.) | Q285: Tarifa por SMS IN-POOL (US$ por SMS) | R285: SMS IN-POOL incluidos (#SMS) | S285: Mensajes on net Incluidos (# SMS) | T285: Tarifa por SMS on net dentro de la promoción (US$ por SMS) | U285: Tarifa por SMS on net adicional a la promoción (US$ por SMS) | V285: Mensajes off net Incluidos (# SMS) | W285: Mensajes gratis a cualquier operadora (# SMS) | X285: Tarifa por SMS off net dentro de la promoción (US$ por SMS) | Y285: Tarifa por SMS off net adicional a la promoción (US$ por SMS) | Z285: MB Incluidos en la promoción (MB) | AA285: Tarifa por MB dentro de la promoción Plan (US$ por MB) | AB285: Tarifa por MB adicional a la promoción (US$ por MB) | AC285: Detalle | AD285: Unidad de medida | AE285: Tarifa US$
K286: Móvil | L286: Fijo
B287: 2 x 1 Para clientes con tarifa Multidestino | D287: N/A | E287: N/A | F287: N/A | G287: =6/0.18 -> 33.33333333 | H287: N/A | I287: 0.18 | J287: N/A | K287: N/A | L287: N/A | M287: N/A | N287: N/A | O287: N/A | P287: N/A | Q287: N/A | R287: N/A | S287: N/A | T287: N/A | U287: N/A | V287: N/A | W287: N/A | X287: N/A | Y287: N/A | Z287: N/A | AA287: N/A | AB287: N/A | AC287: N/A | AD287: N/A | AE287: N/A
B290: Destinos que incluyen cargos de Interconexión: | D290: No aplican cargos de interconexión
B291: Tarifas incluyen impuestos aplicables de Ley: | D291: Tarifas no incluyen impuestos
... 3739 more rows

Sheet Otecel S.A.
B2: Servicio Móvil Avanzado
B3: Tarifas OTECEL S.A.
B8: =+Inicio!B8 -> Fecha de publicación: julio de 2013
B13: FORMATO RT-PR-01: PROMOCIONES MÓVILES
B15: Nombre de la promoción: | D15: Promoción 2x1 para la Provincia de Santa Elena y la Ciudad Santo Domingo
B16: Fecha de entrada en vigencia de la Promoción,Tarifa promocional o Paquete promocional: | D16: 2013-07-13
B17: Fecha de finalización de la Promoción,Tarifa promocional o Paquete promocional: | D17: 2013-07-14
B19: Condiciones generales de la Promoción,Tarifa promocional o Paquete promocional: | D19: Saldo promocional aplicable para recargas automáticas a partir de $3 y podrá ser utilizado a partir de realizada la recarga. El saldo promocional servirá para hablar a números Movistar para clientes prepago y pospago controlado (no permite el envío de mensajes de texto). Los usuarios podrán acceder a esta bonificación por medio de los puntos de recargas electrónicas para la Provincia de Santa Elena ,y la Ciudad Santo Domingo El saldo promocional se consume antes del saldo pagado.
B21: Descripción de la Promoción/Tarifa promocional (Servicios que incluye, etc.) | D21: Código de Identificación de la Promoción/Tarifa promocional * | E21: VOZ | Q21: SMS | Z21: DATOS | AC21: Otros servicios adicionales
E22: Tarifa por minuto IN-POOL (US$ por min.) | F22: Minutos IN-POOL incluidos (min.) | G22: Minutos On Net incluidos (min.) | H22: Minutos gratis a cualquier operadora (min.) | I22: Tarifa por minuto on net móvil dentro de la promoción (US$ por min.) | J22: Tarifa por minuto on net móvil adicional a la promoción (US$ por min.) | K22: Minutos Off Net incluidos (min.) | M22: Tarifa por minuto off net móvil dentro de la promoción (US$ por min.) | N22: Tarifa por minuto off net fijo dentro de la promoción (US$ por min.) | O22: Tarifa por minuto off net móvil adicional a la promoción (US$ por min.) | P22: Tarifa por minuto off net fijo adicional a la promoción (US$ por min.) | Q22: Tarifa por SMS IN-POOL (US$ por SMS) | R22: SMS IN-POOL incluidos (#SMS) | S22: Mensajes on net Incluidos (# SMS) | T22: Tarifa por SMS on net dentro de la promoción (US$ por SMS) | U22: Tarifa por SMS on net adicional a la promoción (US$ por SMS) | V22: Mensajes off net Incluidos (# SMS) | W22: Mensajes gratis a cualquier operadora (# SMS) | X22: Tarifa por SMS off net dentro de la promoción (US$ por SMS) | Y22: Tarifa por SMS off net adicional a la promoción (US$ por SMS) | Z22: MB Incluidos en la promoción (MB) | AA22: Tarifa por MB dentro de la promoción Plan (US$ por MB) | AB22: Tarifa por MB adicional a la promoción (US$ por MB) | AC22: Detalle | AD22: Unidad de medida | AE22: Tarifa US$
K23: Móvil | L23: Fijo
B24: Promoción Válida para Servicios de Voz | D24: N/A
B27: Destinos que incluyen cargos de Interconexión: | D27: No aplica
B28: Tarifas incluyen impuestos aplicables de Ley: | D28: No aplica
B30: =+Resumen!B36 -> .
B32: FORMATO RT-PR-01: PROMOCIONES MÓVILES
B34: Nombre de la promoción: | D34: Promoción 2x1 para la Ciudad de Guayaquil
B35: Fecha de entrada en vigencia de la Promoción,Tarifa promocional o Paquete promocional: | D35: 2013-07-23
B36: Fecha de finalización de la Promoción,Tarifa promocional o Paquete promocional: | D36: 2013-07-24
B38: Condiciones generales de la Promoción,Tarifa promocional o Paquete promocional: | D38: • Saldo promocional aplicable para recargas automáticas a partir de $3 y podrá ser utilizado a partir de realizada la recarga. • El saldo promocional servirá para hablar a números Movistar para clientes prepago y pospago controlado (no permite el envío de mensajes de texto). • Promoción válida en puntos de venta autorizados en la ciudad de Guayaquil • El saldo promocional se consume antes del saldo pagado. • Aplica para los días Martes 23 y Miércoles 24 de Julio de 2013 • Saldo promocional aplicable para recargas automáticas a partir de $3 y podrá ser utilizado a partir de realizada la recarga.
B40: Descripción de la Promoción/Tarifa promocional (Servicios que incluye, etc.) | D40: Código de Identificación de la Promoción/Tarifa promocional * | E40: VOZ | Q40: SMS | Z40: DATOS | AC40: Otros servicios adicionales
E41: Tarifa por minuto IN-POOL (US$ por min.) | F41: Minutos IN-POOL incluidos (min.) | G41: Minutos On Net incluidos (min.) | H41: Minutos gratis a cualquier operadora (min.) | I41: Tarifa por minuto on net móvil dentro de la promoción (US$ por min.) | J41: Tarifa por minuto on net móvil adicional a la promoción (US$ por min.) | K41: Minutos Off Net incluidos (min.) | M41: Tarifa por minuto off net móvil dentro de la promoción (US$ por min.) | N41: Tarifa por minuto off net fijo dentro de la promoción (US$ por min.) | O41: Tarifa por minuto off net móvil adicional a la promoción (US$ por min.) | P41: Tarifa por minuto off net fijo adicional a la promoción (US$ por min.) | Q41: Tarifa por SMS IN-POOL (US$ por SMS) | R41: SMS IN-POOL incluidos (#SMS) | S41: Mensajes on net Incluidos (# SMS) | T41: Tarifa por SMS on net dentro de la promoción (US$ por SMS) | U41: Tarifa por SMS on net adicional a la promoción (US$ por SMS) | V41: Mensajes off net Incluidos (# SMS) | W41: Mensajes gratis a cualquier operadora (# SMS) | X41: Tarifa por SMS off net dentro de la promoción (US$ por SMS) | Y41: Tarifa por SMS off net adicional a la promoción (US$ por SMS) | Z41: MB Incluidos en la promoción (MB) | AA41: Tarifa por MB dentro de la promoción Plan (US$ por MB) | AB41: Tarifa por MB adicional a la promoción (US$ por MB) | AC41: Detalle | AD41: Unidad de medida | AE41: Tarifa US$
K42: Móvil | L42: Fijo
B43: Promoción Válida para Servicios de Voz | D43: N/A
B46: Destinos que incluyen cargos de Interconexión: | D46: En Pospago para On-net., en Prepago para llamadas On-net.
B47: Tarifas incluyen impuestos aplicables de Ley: | D47: No aplica
B49: =+B30 -> .
B51: FORMATO RT-PR-01: PROMOCIONES MÓVILES
B53: Nombre de la promoción: | D53: Promoción 2x1 para Manta-Portoviejo
B54: Fecha de entrada en vigencia de la Promoción,Tarifa promocional o Paquete promocional: | D54: 2013-07-22
B55: Fecha de finalización de la Promoción,Tarifa promocional o Paquete promocional: | D55: 2013-08-22
B57: Condiciones generales de la Promoción,Tarifa promocional o Paquete promocional: | D57: • Saldo promocional aplicable para recargas automáticas a partir de $3 y podrá ser utilizado a partir de realizada la recarga. • El saldo promocional servirá para hablar a números Movistar para clientes prepago y pospago controlado (no permite el envío de mensajes de texto). • Promoción válida en puntos de venta autorizados en Manta y Portoviejo • El saldo promocional se consume antes del saldo pagado. • Aplica para todos los días desde el Lunes 22 de Julio hasta el Jueves 22 de Agosto de 2013
B59: Descripción de la Promoción/Tarifa promocional (Servicios que incluye, etc.) | D59: Código de Identificación de la Promoción/Tarifa promocional * | E59: VOZ | Q59: SMS | Z59: DATOS | AC59: Otros servicios adicionales
E60: Tarifa por minuto IN-POOL (US$ por min.) | F60: Minutos IN-POOL incluidos (min.) | G60: Minutos On Net incluidos (min.) | H60: Minutos gratis a cualquier operadora (min.) | I60: Tarifa por minuto on net móvil dentro de la promoción (US$ por min.) | J60: Tarifa por minuto on net móvil adicional a la promoción (US$ por min.) | K60: Minutos Off Net incluidos (min.) | M60: Tarifa por minuto off net móvil dentro de la promoción (US$ por min.) | N60: Tarifa por minuto off net fijo dentro de la promoción (US$ por min.) | O60: Tarifa por minuto off net móvil adicional a la promoción (US$ por min.) | P60: Tarifa por minuto off net fijo adicional a la promoción (US$ por min.) | Q60: Tarifa por SMS IN-POOL (US$ por SMS) | R60: SMS IN-POOL incluidos (#SMS) | S60: Mensajes on net Incluidos (# SMS) | T60: Tarifa por SMS on net dentro de la promoción (US$ por SMS) | U60: Tarifa por SMS on net adicional a la promoción (US$ por SMS) | V60: Mensajes off net Incluidos (# SMS) | W60: Mensajes gratis a cualquier operadora (# SMS) | X60: Tarifa por SMS off net dentro de la promoción (US$ por SMS) | Y60: Tarifa por SMS off net adicional a la promoción (US$ por SMS) | Z60: MB Incluidos en la promoción (MB) | AA60: Tarifa por MB dentro de la promoción Plan (US$ por MB) | AB60: Tarifa por MB adicional a la promoción (US$ por MB) | AC60: Detalle | AD60: Unidad de medida | AE60: Tarifa US$
K61: Móvil | L61: Fijo
B62: Promoción Válida para Servicios de Voz | D62: N/A
B65: Destinos que incluyen cargos de Interconexión: | D65: En Pospago para On-net., en Prepago para llamadas On-net.
B66: Tarifas incluyen impuestos aplicables de Ley: | D66: No aplica
B68: =+B49 -> .
B70: FORMATO RT-PR-01: PROMOCIONES MÓVILES
B72: Nombre de la promoción: | D72: Promoción Días Movistar - HABLA X3
B73: Fecha de entrada en vigencia de la Promoción,Tarifa promocional o Paquete promocional: | D73: 2013-07-03
B74: Fecha de finalización de la Promoción,Tarifa promocional o Paquete promocional: | D74: 2013-07-07
B76: Condiciones generales de la Promoción,Tarifa promocional o Paquete promocional: | D76: Los clientes acceden a la promoción comprando un paquete con minutos que se descuenta de su saldo pagado y los puede utilizar según la vigencia del paquete, de acuerdo al siguiente detalle: Promoción Valor Detalle Beneficio Vigencia PROMO $1 + IVA ($1.12) Permitirá 20 minutos para llamadas ON/OFF NET nacional (Todo Destino Nacional) 3 días PROMO 80 $4 + IVA ($4.48) Permitirá 80 minutos para llamadas ON/OFF NET nacional (Todo Destino Nacional) 7 días PROMO 140 $7 + IVA ($7.84) Permitirá 140 minutos para llamadas ON/OFF NET nacional (Todo Destino Nacional) 15 días. • Los clientes prepago Tarifa Multicolor reciben descuento a partir del minuto 7, 27 y 47 de consumo de la promoción para los paquetes de 20,80 y 140 minutos respectivamente y hablan tres veces más consumiendo los 20, 80 y 140 minutos respectivamente de cada paquete promocional. • El saldo promocional se consume antes del saldo pagado. • El valor de Tarifa Prepago Multicolor on net/offnet por minuto es de $0.15 + IVA ($0.168), el valor promocional por minuto Todo Destino Nacional es de $0.05 + IVA ($0.056) si se consumen todos los minutos del paquete. • Los usuarios podrán acceder a esta bonificación por medio del envío de un SMS al shortcode 333 con el comando específico, como se detalla: Shortcode Comando Específico 333 PROMO PROMO80 PROMO140
B78: Descripción de la Promoción/Tarifa promocional (Servicios que incluye, etc.) | D78: Código de Identificación de la Promoción/Tarifa promocional * | E78: VOZ | Q78: SMS | Z78: DATOS | AC78: Otros servicios adicionales
E79: Tarifa por minuto IN-POOL (US$ por min.) | F79: Minutos IN-POOL incluidos (min.) | G79: Minutos On Net incluidos (min.) | H79: Minutos gratis a cualquier operadora (min.) | I79: Tarifa por minuto on net móvil dentro de la promoción (US$ por min.) | J79: Tarifa por minuto on net móvil adicional a la promoción (US$ por min.) | K79: Minutos Off Net incluidos (min.) | M79: Tarifa por minuto off net móvil dentro de la promoción (US$ por min.) | N79: Tarifa por minuto off net fijo dentro de la promoción (US$ por min.) | O79: Tarifa por minuto off net móvil adicional a la promoción (US$ por min.) | P79: Tarifa por minuto off net fijo adicional a la promoción (US$ por min.) | Q79: Tarifa por SMS IN-POOL (US$ por SMS) | R79: SMS IN-POOL incluidos (#SMS) | S79: Mensajes on net Incluidos (# SMS) | T79: Tarifa por SMS on net dentro de la promoción (US$ por SMS) | U79: Tarifa por SMS on net adicional a la promoción (US$ por SMS) | V79: Mensajes off net Incluidos (# SMS) | W79: Mensajes gratis a cualquier operadora (# SMS) | X79: Tarifa por SMS off net dentro de la promoción (US$ por SMS) | Y79: Tarifa por SMS off net adicional a la promoción (US$ por SMS) | Z79: MB Incluidos en la promoción (MB) | AA79: Tarifa por MB dentro de la promoción Plan (US$ por MB) | AB79: Tarifa por MB adicional a la promoción (US$ por MB) | AC79: Detalle | AD79: Unidad de medida | AE79: Tarifa US$
K80: Móvil | L80: Fijo
B81: Permitirá 20 minutos para llamadas ON/OFF NET nacional (Todo Destino Nacional) | D81: N/A | H81: 20
B82: Permitirá 80 minutos para llamadas ON/OFF NET nacional (Todo Destino Nacional) | D82: N/A | H82: 80
B83: Permitirá 140 minutos para llamadas ON/OFF NET nacional (Todo Destino Nacional) | D83: N/A | H83: 140
B86: Destinos que incluyen cargos de Interconexión: | D86: Operadoras Nacionales
B87: Tarifas incluyen impuestos aplicables de Ley: | D87: Tarifas no incluyen impuestos
B89: =+B68 -> .
B91: FORMATO RT-PR-01: PROMOCIONES MÓVILES
B93: Nombre de la promoción: | D93: Promoción 2x1 para Quevedo – Babahoyo - Tulcán
B94: Fecha de entrada en vigencia de la Promoción,Tarifa promocional o Paquete promocional: | D94: 2013-07-06
B95: Fecha de finalización de la Promoción,Tarifa promocional o Paquete promocional: | D95: 2013-07-07
B97: Condiciones generales de la Promoción,Tarifa promocional o Paquete promocional: | D97: Saldo promocional aplicable para recargas automáticas a partir de $3 y podrá ser utilizado a partir de realizada la recarga. El saldo promocional servirá para hablar a números Movistar para clientes prepago y pospago controlado (no permite el envío de mensajes de texto). Los clientes podrán acceder a la promoción en Puntos de Venta Autorizados en Quevedo, Babahoyo y Tulcán. El saldo promocional se consume antes del saldo pagado y se descontará a la tarifa regular del plan prepago o pospago contratado por el cliente.
B99: Descripción de la Promoción/Tarifa promocional (Servicios que incluye, etc.) | D99: Código de Identificación de la Promoción/Tarifa promocional * | E99: VOZ | Q99: SMS | Z99: DATOS | AC99: Otros servicios adicionales
E100: Tarifa por minuto IN-POOL (US$ por min.) | F100: Minutos IN-POOL incluidos (min.) | G100: Minutos On Net incluidos (min.) | H100: Minutos gratis a cualquier operadora (min.) | I100: Tarifa por minuto on net móvil dentro de la promoción (US$ por min.) | J100: Tarifa por minuto on net móvil adicional a la promoción (US$ por min.) | K100: Minutos Off Net incluidos (min.) | M100: Tarifa por minuto off net móvil dentro de la promoción (US$ por min.) | N100: Tarifa por minuto off net fijo dentro de la promoción (US$ por min.) | O100: Tarifa por minuto off net móvil adicional a la promoción (US$ por min.) | P100: Tarifa por minuto off net fijo adicional a la promoción (US$ por min.) | Q100: Tarifa por SMS IN-POOL (US$ por SMS) | R100: SMS IN-POOL incluidos (#SMS) | S100: Mensajes on net Incluidos (# SMS) | T100: Tarifa por SMS on net dentro de la promoción (US$ por SMS) | U100: Tarifa por SMS on net adicional a la promoción (US$ por SMS) | V100: Mensajes off net Incluidos (# SMS) | W100: Mensajes gratis a cualquier operadora (# SMS) | X100: Tarifa por SMS off net dentro de la promoción (US$ por SMS) | Y100: Tarifa por SMS off net adicional a la promoción (US$ por SMS) | Z100: MB Incluidos en la promoción (MB) | AA100: Tarifa por MB dentro de la promoción Plan (US$ por MB) | AB100: Tarifa por MB adicional a la promoción (US$ por MB) | AC100: Detalle | AD100: Unidad de medida | AE100: Tarifa US$
K101: Móvil | L101: Fijo
B102: Promoción Válida para Servicios de Voz | D102: N/A
B105: Destinos que incluyen cargos de Interconexión: | D105: No aplica
B106: Tarifas incluyen impuestos aplicables de Ley: | D106: No aplica
B108: =+B89 -> .
B110: FORMATO RT-PR-01: PROMOCIONES MÓVILES
B112: Nombre de la promoción: | D112: Promoción Días Movistar - HABLA X3
B113: Fecha de entrada en vigencia de la Promoción,Tarifa promocional o Paquete promocional: | D113: 2013-07-10
B114: Fecha de finalización de la Promoción,Tarifa promocional o Paquete promocional: | D114: 2013-07-14
B116: Condiciones generales de la Promoción,Tarifa promocional o Paquete promocional: | D116: Los clientes acceden a la promoción comprando un paquete con minutos que se descuenta de su saldo pagado y los puede utilizar según la vigencia del paquete, de acuerdo al siguiente detalle: Promoción Valor Detalle Beneficio Vigencia PROMO $1 + IVA ($1.12) Permitirá 20 minutos para llamadas ON/OFF NET nacional (Todo Destino Nacional) 3 días PROMO 80 $4 + IVA ($4.48) Permitirá 80 minutos para llamadas ON/OFF NET nacional (Todo Destino Nacional) 7 días PROMO 140 $7 + IVA ($7.84) Permitirá 140 minutos para llamadas ON/OFF NET nacional (Todo Destino Nacional) 15 días. • Los clientes prepago Tarifa Multicolor reciben descuento a partir del minuto 7, 27 y 47 de consumo de la promoción para los paquetes de 20,80 y 140 minutos respectivamente y hablan tres veces más consumiendo los 20, 80 y 140 minutos respectivamente de cada paquete promocional. • El saldo promocional se consume antes del saldo pagado. • El valor de Tarifa Prepago Multicolor on net/offnet por minuto es de $0.15 + IVA ($0.168), el valor promocional por minuto Todo Destino Nacional es de $0.05 + IVA ($0.056) si se consumen todos los minutos del paquete. • Los usuarios podrán acceder a esta bonificación por medio del envío de un SMS al shortcode 333 con el comando específico, como se detalla: Shortcode Comando Específico 333 PROMO PROMO80 PROMO140
B118: Descripción de la Promoción/Tarifa promocional (Servicios que incluye, etc.) | D118: Código de Identificación de la Promoción/Tarifa promocional * | E118: VOZ | Q118: SMS | Z118: DATOS | AC118: Otros servicios adicionales
E119: Tarifa por minuto IN-POOL (US$ por min.) | F119: Minutos IN-POOL incluidos (min.) | G119: Minutos On Net incluidos (min.) | H119: Minutos gratis a cualquier operadora (min.) | I119: Tarifa por minuto on net móvil dentro de la promoción (US$ por min.) | J119: Tarifa por minuto on net móvil adicional a la promoción (US$ por min.) | K119: Minutos Off Net incluidos (min.) | M119: Tarifa por minuto off net móvil dentro de la promoción (US$ por min.) | N119: Tarifa por minuto off net fijo dentro de la promoción (US$ por min.) | O119: Tarifa por minuto off net móvil adicional a la promoción (US$ por min.) | P119: Tarifa por minuto off net fijo adicional a la promoción (US$ por min.) | Q119: Tarifa por SMS IN-POOL (US$ por SMS) | R119: SMS IN-POOL incluidos (#SMS) | S119: Mensajes on net Incluidos (# SMS) | T119: Tarifa por SMS on net dentro de la promoción (US$ por SMS) | U119: Tarifa por SMS on net adicional a la promoción (US$ por SMS) | V119: Mensajes off net Incluidos (# SMS) | W119: Mensajes gratis a cualquier operadora (# SMS) | X119: Tarifa por SMS off net dentro de la promoción (US$ por SMS) | Y119: Tarifa por SMS off net adicional a la promoción (US$ por SMS) | Z119: MB Incluidos en la promoción (MB) | AA119: Tarifa por MB dentro de la promoción Plan (US$ por MB) | AB119: Tarifa por MB adicional a la promoción (US$ por MB) | AC119: Detalle | AD119: Unidad de medida | AE119: Tarifa US$
K120: Móvil | L120: Fijo
B121: Permitirá 20 minutos para llamadas ON/OFF NET nacional (Todo Destino Nacional) | D121: N/A | H121: 20
B122: Permitirá 80 minutos para llamadas ON/OFF NET nacional (Todo Destino Nacional) | D122: N/A | H122: 80
B123: Permitirá 140 minutos para llamadas ON/OFF NET nacional (Todo Destino Nacional) | D123: N/A | H123: 140
B126: Destinos que incluyen cargos de Interconexión: | D126: Operadoras Nacionales
B127: Tarifas incluyen impuestos aplicables de Ley: | D127: Tarifas no incluyen impuestos
B129: =+B108 -> .
B131: FORMATO RT-PR-01: PROMOCIONES MÓVILES
B133: Nombre de la promoción: | D133: Promoción 2x1 para Coca-Francisco de Orellana-Machala- Santa Rosa- Huaquillas
B134: Fecha de entrada en vigencia de la Promoción,Tarifa promocional o Paquete promocional: | D134: 2013-07-27
B135: Fecha de finalización de la Promoción,Tarifa promocional o Paquete promocional: | D135: 2013-07-28
B137: Condiciones generales de la Promoción,Tarifa promocional o Paquete promocional: | D137: • Saldo promocional aplicable para recargas automáticas a partir de $3 y podrá ser utilizado a partir de realizada la recarga. • El saldo promocional servirá para hablar a números Movistar para clientes prepago y pospago controlado (no permite el envío de mensajes de texto). • Los usuarios podrán acceder a esta bonificación por medio de los puntos de recargas electrónicas para Coca-Francisco de Orellana-Machala- Santa Rosa- Huaquillas • El saldo promocional se consume antes del saldo pagado. • La Tarifa de la promoción es el mismo Valor al del Plan Contratado en el momento de la recarga.
B139: Descripción de la Promoción/Tarifa promocional (Servicios que incluye, etc.) | D139: Código de Identificación de la Promoción/Tarifa promocional * | E139: VOZ | Q139: SMS | Z139: DATOS | AC139: Otros servicios adicionales
E140: Tarifa por minuto IN-POOL (US$ por min.) | F140: Minutos IN-POOL incluidos (min.) | G140: Minutos On Net incluidos (min.) | H140: Minutos gratis a cualquier operadora (min.) | I140: Tarifa por minuto on net móvil dentro de la promoción (US$ por min.) | J140: Tarifa por minuto on net móvil adicional a la promoción (US$ por min.) | K140: Minutos Off Net incluidos (min.) | M140: Tarifa por minuto off net móvil dentro de la promoción (US$ por min.) | N140: Tarifa por minuto off net fijo dentro de la promoción (US$ por min.) | O140: Tarifa por minuto off net móvil adicional a la promoción (US$ por min.) | P140: Tarifa por minuto off net fijo adicional a la promoción (US$ por min.) | Q140: Tarifa por SMS IN-POOL (US$ por SMS) | R140: SMS IN-POOL incluidos (#SMS) | S140: Mensajes on net Incluidos (# SMS) | T140: Tarifa por SMS on net dentro de la promoción (US$ por SMS) | U140: Tarifa por SMS on net adicional a la promoción (US$ por SMS) | V140: Mensajes off net Incluidos (# SMS) | W140: Mensajes gratis a cualquier operadora (# SMS) | X140: Tarifa por SMS off net dentro de la promoción (US$ por SMS) | Y140: Tarifa por SMS off net adicional a la promoción (US$ por SMS) | Z140: MB Incluidos en la promoción (MB) | AA140: Tarifa por MB dentro de la promoción Plan (US$ por MB) | AB140: Tarifa por MB adicional a la promoción (US$ por MB) | AC140: Detalle | AD140: Unidad de medida | AE140: Tarifa US$
K141: Móvil | L141: Fijo
B142: Promoción Válida para Servicios de Voz | D142: N/A
B145: Destinos que incluyen cargos de Interconexión: | D145: No aplica
B146: Tarifas incluyen impuestos aplicables de Ley: | D146: No aplica
B148: =+B129 -> .
B150: FORMATO RT-PR-01: PROMOCIONES MÓVILES
B152: Nombre de la promoción: | D152: Días Movistar 2x1 Duplícame
B153: Fecha de entrada en vigencia de la Promoción,Tarifa promocional o Paquete promocional: | D153: 2013-07-29
B154: Fecha de finalización de la Promoción,Tarifa promocional o Paquete promocional: | D154: 2013-07-31
B156: Condiciones generales de la Promoción,Tarifa promocional o Paquete promocional: | D156: • Saldo promocional aplicable para recargas automáticas a partir de $3 y podrá ser utilizado a partir de realizada la recarga. • El saldo promocional servirá para hablar, clientes prepago aplica para llamadas de movistar a movistar para clientes pospago el saldo promocional aplica para llamadas a todas las operadoras (no permite el envío de mensajes de texto). • Los usuarios podrán acceder a esta bonificación por medio de los puntos de recargas electrónicas y del asterisco 001 (*001) opción 6. • El saldo promocional se consume antes del saldo pagado. • La Tarifa de la promoción es el mismo Valor al del Plan Contratado en el momento de la recarga.
B158: Descripción de la Promoción/Tarifa promocional (Servicios que incluye, etc.) | D158: Código de Identificación de la Promoción/Tarifa promocional * | E158: VOZ | Q158: SMS | Z158: DATOS | AC158: Otros servicios adicionales
E159: Tarifa por minuto IN-POOL (US$ por min.) | F159: Minutos IN-POOL incluidos (min.) | G159: Minutos On Net incluidos (min.) | H159: Minutos gratis a cualquier operadora (min.) | I159: Tarifa por minuto on net móvil dentro de la promoción (US$ por min.) | J159: Tarifa por minuto on net móvil adicional a la promoción (US$ por min.) | K159: Minutos Off Net incluidos (min.) | M159: Tarifa por minuto off net móvil dentro de la promoción (US$ por min.) | N159: Tarifa por minuto off net fijo dentro de la promoción (US$ por min.) | O159: Tarifa por minuto off net móvil adicional a la promoción (US$ por min.) | P159: Tarifa por minuto off net fijo adicional a la promoción (US$ por min.) | Q159: Tarifa por SMS IN-POOL (US$ por SMS) | R159: SMS IN-POOL incluidos (#SMS) | S159: Mensajes on net Incluidos (# SMS) | T159: Tarifa por SMS on net dentro de la promoción (US$ por SMS) | U159: Tarifa por SMS on net adicional a la promoción (US$ por SMS) | V159: Mensajes off net Incluidos (# SMS) | W159: Mensajes gratis a cualquier operadora (# SMS) | X159: Tarifa por SMS off net dentro de la promoción (US$ por SMS) | Y159: Tarifa por SMS off net adicional a la promoción (US$ por SMS) | Z159: MB Incluidos en la promoción (MB) | AA159: Tarifa por MB dentro de la promoción Plan (US$ por MB) | AB159: Tarifa por MB adicional a la promoción (US$ por MB) | AC159: Detalle | AD159: Unidad de medida | AE159: Tarifa US$
K160: Móvil | L160: Fijo
B161: Promoción Válida para Servicios de Voz | D161: N/A
B164: Destinos que incluyen cargos de Interconexión: | D164: En Pospago incluye para Operadores Nacionales.
B165: Tarifas incluyen impuestos aplicables de Ley: | D165: No aplica
B167: =+B148 -> .
B169: FORMATO RT-PR-01: PROMOCIONES MÓVILES
B171: Nombre de la promoción: | D171: Promoción para Recargas Automáticas en Locales Tía y Súper Tía a Nivel Nacional.
B172: Fecha de entrada en vigencia de la Promoción,Tarifa promocional o Paquete promocional: | D172: 2013-07-07
B173: Fecha de finalización de la Promoción,Tarifa promocional o Paquete promocional: | D173: 2013-07-28
B175: Condiciones generales de la Promoción,Tarifa promocional o Paquete promocional: | D175: (1) Aplica para recargas a partir de 2 dólares (2) Aplica solamente para clientes prepago y pospago controlado. (3) La promoción entrega el 50% del monto de la recarga pagada, como saldo promocional para hablar a todos los Movistar y 20 SMS para mensajear a todas las operadoras móviles a nivel nacional. (4) El saldo promocional se descontará a la tarifa regular del plan prepago o pospago contratado por el cliente. (5) El saldo promocional se consume antes del saldo pagado. Una vez consumido el saldo promocional o superada la fecha de vigencia del mismo, se descontará del saldo pagado de la recarga según la tarifa regular contratada por el cliente (6) El saldo promocional podrá ser utilizado a partir de realizada la recarga.
B177: Descripción de la Promoción/Tarifa promocional (Servicios que incluye, etc.) | D177: Código de Identificación de la Promoción/Tarifa promocional * | E177: VOZ | Q177: SMS | Z177: DATOS | AC177: Otros servicios adicionales
E178: Tarifa por minuto IN-POOL (US$ por min.) | F178: Minutos IN-POOL incluidos (min.) | G178: Minutos On Net incluidos (min.) | H178: Minutos gratis a cualquier operadora (min.) | I178: Tarifa por minuto on net móvil dentro de la promoción (US$ por min.) | J178: Tarifa por minuto on net móvil adicional a la promoción (US$ por min.) | K178: Minutos Off Net incluidos (min.) | M178: Tarifa por minuto off net móvil dentro de la promoción (US$ por min.) | N178: Tarifa por minuto off net fijo dentro de la promoción (US$ por min.) | O178: Tarifa por minuto off net móvil adicional a la promoción (US$ por min.) | P178: Tarifa por minuto off net fijo adicional a la promoción (US$ por min.) | Q178: Tarifa por SMS IN-POOL (US$ por SMS) | R178: SMS IN-POOL incluidos (#SMS) | S178: Mensajes on net Incluidos (# SMS) | T178: Tarifa por SMS on net dentro de la promoción (US$ por SMS) | U178: Tarifa por SMS on net adicional a la promoción (US$ por SMS) | V178: Mensajes off net Incluidos (# SMS) | W178: Mensajes gratis a cualquier operadora (# SMS) | X178: Tarifa por SMS off net dentro de la promoción (US$ por SMS) | Y178: Tarifa por SMS off net adicional a la promoción (US$ por SMS) | Z178: MB Incluidos en la promoción (MB) | AA178: Tarifa por MB dentro de la promoción Plan (US$ por MB) | AB178: Tarifa por MB adicional a la promoción (US$ por MB) | AC178: Detalle | AD178: Unidad de medida | AE178: Tarifa US$
K179: Móvil | L179: Fijo
B180: Promoción para Recargas Automáticas en Locales Tía y Súper Tía a Nivel Nacional. | D180: N/A | W180: 20
B183: Destinos que incluyen cargos de Interconexión: | D183: No aplica
B184: Tarifas incluyen impuestos aplicables de Ley: | D184: No aplica
B186: =+B167 -> .
B188: FORMATO RT-PR-01: PROMOCIONES MÓVILES
B190: Nombre de la promoción: | D190: Promoción para Recargas Automáticas en Entidades Financieras
B191: Fecha de entrada en vigencia de la Promoción,Tarifa promocional o Paquete promocional: | D191: 2013-07-22
B192: Fecha de finalización de la Promoción,Tarifa promocional o Paquete promocional: | D192: 2013-10-28
B194: Condiciones generales de la Promoción,Tarifa promocional o Paquete promocional: | D194: (1) Aplica para recargas a partir de 3 dólares (2) Aplica solamente para clientes prepago y pospago controlado. (3) La promoción entrega el 50% del monto de la recarga pagada, como saldo promocional móviles a nivel nacional. (4) El saldo promocional se descontará a la tarifa regular del plan prepago o pospago contratado por el cliente. (5) El saldo promocional se consume antes del saldo pagado. Una vez consumido el saldo promocional o superada la fecha de vigencia del mismo, se descontará del saldo pagado de la recarga según la tarifa regular contratada por el cliente (6) El saldo promocional podrá ser utilizado a partir de realizada la recarga. (7) Promoción para Recargas Automáticas solo en las siguientes entidades Financieras: Banco Del Pichincha-Produbanco-Banco del Pacifico- Banco de Guayaquil-Banco Solidario-Transfer Union-Servipagos.
B196: Descripción de la Promoción/Tarifa promocional (Servicios que incluye, etc.) | D196: Código de Identificación de la Promoción/Tarifa promocional * | E196: VOZ | Q196: SMS | Z196: DATOS | AC196: Otros servicios adicionales
E197: Tarifa por minuto IN-POOL (US$ por min.) | F197: Minutos IN-POOL incluidos (min.) | G197: Minutos On Net incluidos (min.) | H197: Minutos gratis a cualquier operadora (min.) | I197: Tarifa por minuto on net móvil dentro de la promoción (US$ por min.) | J197: Tarifa por minuto on net móvil adicional a la promoción (US$ por min.) | K197: Minutos Off Net incluidos (min.) | M197: Tarifa por minuto off net móvil dentro de la promoción (US$ por min.) | N197: Tarifa por minuto off net fijo dentro de la promoción (US$ por min.) | O197: Tarifa por minuto off net móvil adicional a la promoción (US$ por min.) | P197: Tarifa por minuto off net fijo adicional a la promoción (US$ por min.) | Q197: Tarifa por SMS IN-POOL (US$ por SMS) | R197: SMS IN-POOL incluidos (#SMS) | S197: Mensajes on net Incluidos (# SMS) | T197: Tarifa por SMS on net dentro de la promoción (US$ por SMS) | U197: Tarifa por SMS on net adicional a la promoción (US$ por SMS) | V197: Mensajes off net Incluidos (# SMS) | W197: Mensajes gratis a cualquier operadora (# SMS) | X197: Tarifa por SMS off net dentro de la promoción (US$ por SMS) | Y197: Tarifa por SMS off net adicional a la promoción (US$ por SMS) | Z197: MB Incluidos en la promoción (MB) | AA197: Tarifa por MB dentro de la promoción Plan (US$ por MB) | AB197: Tarifa por MB adicional a la promoción (US$ por MB) | AC197: Detalle | AD197: Unidad de medida | AE197: Tarifa US$
K198: Móvil | L198: Fijo
B199: Promoción para Recargas Automáticas en Entidades Financieras | D199: N/A
B202: Destinos que incluyen cargos de Interconexión: | D202: No aplica
B203: Tarifas incluyen impuestos aplicables de Ley: | D203: No aplica
B205: =+B186 -> .
B207: FORMATO RT-PR-01: PROMOCIONES MÓVILES
B209: Nombre de la promoción: | D209: Promoción 2x1 para la Provincia de Esmeraldas
B210: Fecha de entrada en vigencia de la Promoción,Tarifa promocional o Paquete promocional: | D210: 2013-07-20
B211: Fecha de finalización de la Promoción,Tarifa promocional o Paquete promocional: | D211: 2013-07-21
B213: Condiciones generales de la Promoción,Tarifa promocional o Paquete promocional: | D213: • Saldo promocional aplicable para recargas automáticas a partir de $3 y podrá ser utilizado a partir de realizada la recarga. • El saldo promocional servirá para hablar a números Movistar para clientes prepago y pospago controlado (no permite el envío de mensajes de texto). • Promoción válida en puntos de venta autorizados en Esmeraldas (Provincia) • El saldo promocional se consume antes del saldo pagado. • Aplica para los días Sábado 20 y Domingo 21 de Julio de 2013
B215: Descripción de la Promoción/Tarifa promocional (Servicios que incluye, etc.) | D215: Código de Identificación de la Promoción/Tarifa promocional * | E215: VOZ | Q215: SMS | Z215: DATOS | AC215: Otros servicios adicionales
E216: Tarifa por minuto IN-POOL (US$ por min.) | F216: Minutos IN-POOL incluidos (min.) | G216: Minutos On Net incluidos (min.) | H216: Minutos gratis a cualquier operadora (min.) | I216: Tarifa por minuto on net móvil dentro de la promoción (US$ por min.) | J216: Tarifa por minuto on net móvil adicional a la promoción (US$ por min.) | K216: Minutos Off Net incluidos (min.) | M216: Tarifa por minuto off net móvil dentro de la promoción (US$ por min.) | N216: Tarifa por minuto off net fijo dentro de la promoción (US$ por min.) | O216: Tarifa por minuto off net móvil adicional a la promoción (US$ por min.) | P216: Tarifa por minuto off net fijo adicional a la promoción (US$ por min.) | Q216: Tarifa por SMS IN-POOL (US$ por SMS) | R216: SMS IN-POOL incluidos (#SMS) | S216: Mensajes on net Incluidos (# SMS) | T216: Tarifa por SMS on net dentro de la promoción (US$ por SMS) | U216: Tarifa por SMS on net adicional a la promoción (US$ por SMS) | V216: Mensajes off net Incluidos (# SMS) | W216: Mensajes gratis a cualquier operadora (# SMS) | X216: Tarifa por SMS off net dentro de la promoción (US$ por SMS) | Y216: Tarifa por SMS off net adicional a la promoción (US$ por SMS) | Z216: MB Incluidos en la promoción (MB) | AA216: Tarifa por MB dentro de la promoción Plan (US$ por MB) | AB216: Tarifa por MB adicional a la promoción (US$ por MB) | AC216: Detalle | AD216: Unidad de medida | AE216: Tarifa US$
K217: Móvil | L217: Fijo
B218: Promoción Válida para Servicios de Voz | D218: N/A
B221: Destinos que incluyen cargos de Interconexión: | D221: En Pospago para On-net., en Prepago para llamadas On-net.
B222: Tarifas incluyen impuestos aplicables de Ley: | D222: No aplica
B224: =+B205 -> .
B226: FORMATO RT-PR-01: PROMOCIONES MÓVILES
B228: Nombre de la promoción: | D228: Días Movistar 2x1
B229: Fecha de entrada en vigencia de la Promoción,Tarifa promocional o Paquete promocional: | D229: 2013-07-01
B230: Fecha de finalización de la Promoción,Tarifa promocional o Paquete promocional: | D230: 2013-07-01
B232: Condiciones generales de la Promoción,Tarifa promocional o Paquete promocional: | D232: Saldo promocional aplicable para recargas automáticas a partir de $3 y podrá ser utilizado a partir de realizada la recarga. El saldo promocional servirá para hablar a números Movistar para clientes prepago y pospago controlado (no permite el envío de mensajes de texto). Los usuarios podrán acceder a esta bonificación por medio de los puntos de recargas electrónicas y del asterisco 001 (*001) opción 6. El saldo promocional se consume antes del saldo pagado.
B234: Descripción de la Promoción/Tarifa promocional (Servicios que incluye, etc.) | D234: Código de Identificación de la Promoción/Tarifa promocional * | E234: VOZ | Q234: SMS | Z234: DATOS | AC234: Otros servicios adicionales
E235: Tarifa por minuto IN-POOL (US$ por min.) | F235: Minutos IN-POOL incluidos (min.) | G235: Minutos On Net incluidos (min.) | H235: Minutos gratis a cualquier operadora (min.) | I235: Tarifa por minuto on net móvil dentro de la promoción (US$ por min.) | J235: Tarifa por minuto on net móvil adicional a la promoción (US$ por min.) | K235: Minutos Off Net incluidos (min.) | M235: Tarifa por minuto off net móvil dentro de la promoción (US$ por min.) | N235: Tarifa por minuto off net fijo dentro de la promoción (US$ por min.) | O235: Tarifa por minuto off net móvil adicional a la promoción (US$ por min.) | P235: Tarifa por minuto off net fijo adicional a la promoción (US$ por min.) | Q235: Tarifa por SMS IN-POOL (US$ por SMS) | R235: SMS IN-POOL incluidos (#SMS) | S235: Mensajes on net Incluidos (# SMS) | T235: Tarifa por SMS on net dentro de la promoción (US$ por SMS) | U235: Tarifa por SMS on net adicional a la promoción (US$ por SMS) | V235: Mensajes off net Incluidos (# SMS) | W235: Mensajes gratis a cualquier operadora (# SMS) | X235: Tarifa por SMS off net dentro de la promoción (US$ por SMS) | Y235: Tarifa por SMS off net adicional a la promoción (US$ por SMS) | Z235: MB Incluidos en la promoción (MB) | AA235: Tarifa por MB dentro de la promoción Plan (US$ por MB) | AB235: Tarifa por MB adicional a la promoción (US$ por MB) | AC235: Detalle | AD235: Unidad de medida | AE235: Tarifa US$
K236: Móvil | L236: Fijo
B237: Promoción Válida para Servicios de Voz | D237: N/A
B240: Destinos que incluyen cargos de Interconexión: | D240: No aplica
B241: Tarifas incluyen impuestos aplicables de Ley: | D241: No aplica
B243: =+B224 -> .
B245: FORMATO RT-PR-01: PROMOCIONES MÓVILES
B247: Nombre de la promoción: | D247: CAMPAÑA RECICLAJE
B248: Fecha de entrada en vigencia de la Promoción,Tarifa promocional o Paquete promocional: | D248: 2013-07-01
B249: Fecha de finalización de la Promoción,Tarifa promocional o Paquete promocional: | D249: 2013-08-31
B251: Condiciones generales de la Promoción,Tarifa promocional o Paquete promocional: | D251: Cliente que deje su celular viejo en los Puntos de Venta Movistar, recibe en 3 meses $15 de tiempo aire. Podrán participar de la promoción: a) Clientes existentes con un plan de voz o una línea prepago que dejen su celular viejo o en desuso en los Centros de Atención Movistar. b) Todas las personas que dejen su celular viejo o en desuso en los Centros de Atención Movistar y que contraten un plan de voz o adquieran una línea prepago. c) Clientes que se cambien a Movistar con su misma línea y que dejen su celular viejo o en desuso en los Centros de Atención Movistar. d) La línea beneficiaria debe encontrarse en estado activo al momento de gestionar la entrega del beneficio. e) Deberán tener la condición de cliente de OTECEL y encontrarse en los listados de activaciones nuevas en el periodo que corresponde a la Promoción. Las condiciones son las siguientes: a) Teléfono a reciclar debe ser entregado completo, es decir, con carcasa, batería y pantalla. b) Cliente que cumpla la condición expuesta en el literal (a), recibe mensualmente $5 de tiempo aire por 3 meses. c) Beneficio se acredita sólo a números Movistar. d) Tiempo aire promocional aplica para llamadas de Movistar a Movistar. e) Primera acreditación se realiza luego de entregar el celular en el Punto de Venta, y posterior a ello, cada 30 días. f) Vigencia del tiempo aire promocional 7 días. g) Cliente sólo puede recibir el beneficio una vez en una misma línea celular. En caso que recicle más de un celular, debe entregar otro número celular Movistar para acreditar los $15. h) Procesos posventa que impliquen baja alta de la línea, anulan la promoción (cambio de número, cesión de beneficiario, reordenamiento de cuenta, etc) i) Saldo promocional tiene prioridad sobre saldo pagado o tarifa básica y sobre cualquier otra promoción. j) Saldo promocional no podrá ser acumulado.
B253: Descripción de la Promoción/Tarifa promocional (Servicios que incluye, etc.) | D253: Código de Identificación de la Promoción/Tarifa promocional * | E253: VOZ | Q253: SMS | Z253: DATOS | AC253: Otros servicios adicionales
E254: Tarifa por minuto IN-POOL (US$ por min.) | F254: Minutos IN-POOL incluidos (min.) | G254: Minutos On Net incluidos (min.) | H254: Minutos gratis a cualquier operadora (min.) | I254: Tarifa por minuto on net móvil dentro de la promoción (US$ por min.) | J254: Tarifa por minuto on net móvil adicional a la promoción (US$ por min.) | K254: Minutos Off Net incluidos (min.) | M254: Tarifa por minuto off net móvil dentro de la promoción (US$ por min.) | N254: Tarifa por minuto off net fijo dentro de la promoción (US$ por min.) | O254: Tarifa por minuto off net móvil adicional a la promoción (US$ por min.) | P254: Tarifa por minuto off net fijo adicional a la promoción (US$ por min.) | Q254: Tarifa por SMS IN-POOL (US$ por SMS) | R254: SMS IN-POOL incluidos (#SMS) | S254: Mensajes on net Incluidos (# SMS) | T254: Tarifa por SMS on net dentro de la promoción (US$ por SMS) | U254: Tarifa por SMS on net adicional a la promoción (US$ por SMS) | V254: Mensajes off net Incluidos (# SMS) | W254: Mensajes gratis a cualquier operadora (# SMS) | X254: Tarifa por SMS off net dentro de la promoción (US$ por SMS) | Y254: Tarifa por SMS off net adicional a la promoción (US$ por SMS) | Z254: MB Incluidos en la promoción (MB) | AA254: Tarifa por MB dentro de la promoción Plan (US$ por MB) | AB254: Tarifa por MB adicional a la promoción (US$ por MB) | AC254: Detalle | AD254: Unidad de medida | AE254: Tarifa US$
K255: Móvil | L255: Fijo
B256: CAMPAÑA RECICLAJE | D256: N/A
B259: Destinos que incluyen cargos de Interconexión: | D259: No aplica
B260: Tarifas incluyen impuestos aplicables de Ley: | D260: No aplica
B262: =+B243 -> .
B264: FORMATO RT-PR-01: PROMOCIONES MÓVILES
B266: Nombre de la promoción: | D266: Promoción Tablets Padres 2013
B267: Fecha de entrada en vigencia de la Promoción,Tarifa promocional o Paquete promocional: | D267: 2013-06-03
B268: Fecha de finalización de la Promoción,Tarifa promocional o Paquete promocional: | D268: 2013-08-18
B270: Condiciones generales de la Promoción,Tarifa promocional o Paquete promocional: | D270: Promoción: Doble de megas, SMS y minutos por 12 meses. 1) Aplica a clientes nuevos que paguen su factura mensual con tarjeta de crédito y para clientes existentes, con más de tres meses con cualquier forma de pago. 2) El beneficio se entregará por 12 meses consecutivos a partir de la fecha de contratación del plan, Doble de MB, SMS y minutos mensuales. Oferta aplica para los planes listados en el VPR-5096-2013. 3) Los MB, minutos y SMS promocionales se acreditan de forma mensual en el ciclo de facturación sin acumulación de remanentes. 4) Los bonos promocionales de MB tienen una duración de 30 días desde su activación y serán consumidos antes que aquellos incluidos en el plan. Los MBs adicionales tienen un valor de $0,10 + IVA. 5) Los bonos promocionales de SMS tienen una duración de 30 días desde su activación y serán consumidos antes que aquellos incluidos en el plan. Estos SMS podrán ser utilizados para mensajear a cualquier operadora local. Los SMSs adicionales tienen un valor de $0,06 + IVA para SMS locales y $0,10 + IVA para SMS Internacionales. 6) Los bonos promocionales de minutos tienen una duración de 30 días desde su activación y serán consumido antes que aquellos incluidos en el plan. Los minutos serán utilizados exclusivamente para llamadas de voz a cualquier operadora local. Los minutos adicionales tienen un valor de $0,15 + IVA. 7) Velocidad máxima en H+ para todos los planes es de 10 Mbps/2Mbps (Downlink/Uplink). La velocidad de navegación depende del equipo, la zona y la cobertura de la red H+. 8) Para los planes full megas, el beneficio de doble de megas no aplica pues el plan tiene la cantidad máxima de megas establecida. Para estos planes el beneficio consiste en aumentar la velocidad máxima de navegación en H+ hasta alcanzar los 10.000 MB. Una vez que el cliente llegue a los 10.000 MB la velocidad de navegación será de 128 Kbps/64 Kbps (Downlink/Uplink). Este beneficio tiene una duración de 12 meses. La velocidad de navegación depende del equipo, la zona y la cobertura de la red H+.
B272: Descripción de la Promoción/Tarifa promocional (Servicios que incluye, etc.) | D272: Código de Identificación de la Promoción/Tarifa promocional * | E272: VOZ | Q272: SMS | Z272: DATOS | AC272: Otros servicios adicionales
E273: Tarifa por minuto IN-POOL (US$ por min.) | F273: Minutos IN-POOL incluidos (min.) | G273: Minutos On Net incluidos (min.) | H273: Minutos gratis a cualquier operadora (min.) | I273: Tarifa por minuto on net móvil dentro de la promoción (US$ por min.) | J273: Tarifa por minuto on net móvil adicional a la promoción (US$ por min.) | K273: Minutos Off Net incluidos (min.) | M273: Tarifa por minuto off net móvil dentro de la promoción (US$ por min.) | N273: Tarifa por minuto off net fijo dentro de la promoción (US$ por min.) | O273: Tarifa por minuto off net móvil adicional a la promoción (US$ por min.) | P273: Tarifa por minuto off net fijo adicional a la promoción (US$ por min.) | Q273: Tarifa por SMS IN-POOL (US$ por SMS) | R273: SMS IN-POOL incluidos (#SMS) | S273: Mensajes on net Incluidos (# SMS) | T273: Tarifa por SMS on net dentro de la promoción (US$ por SMS) | U273: Tarifa por SMS on net adicional a la promoción (US$ por SMS) | V273: Mensajes off net Incluidos (# SMS) | W273: Mensajes gratis a cualquier operadora (# SMS) | X273: Tarifa por SMS off net dentro de la promoción (US$ por SMS) | Y273: Tarifa por SMS off net adicional a la promoción (US$ por SMS) | Z273: MB Incluidos en la promoción (MB) | AA273: Tarifa por MB dentro de la promoción Plan (US$ por MB) | AB273: Tarifa por MB adicional a la promoción (US$ por MB) | AC273: Detalle | AD273: Unidad de medida | AE273: Tarifa US$
K274: Móvil | L274: Fijo
B275: Promoción Tablets Padres 2013 | D275: N/A
B278: Destinos que incluyen cargos de Interconexión: | D278: Operadoras Nacionales
B279: Tarifas incluyen impuestos aplicables de Ley: | D279: No aplica
B281: =+B262 -> .
B283: FORMATO RT-PR-01: PROMOCIONES MÓVILES
B285: Nombre de la promoción: | D285: Chat SMS Diario
B286: Fecha de entrada en vigencia de la Promoción,Tarifa promocional o Paquete promocional: | D286: 2013-06-07
B287: Fecha de finalización de la Promoción,Tarifa promocional o Paquete promocional: | D287: 2013-12-07
B289: Condiciones generales de la Promoción,Tarifa promocional o Paquete promocional: | D289: • Promoción CHAT SMS Prepago Diario incluye hasta 5.000 SMS Todo Destino por un máximo de 24 horas. • Cliente puede contratar varios paquetes diarios en el mismo día. • Paquete diario puede ser contratado por clientes que tienen activo otro paquete de SMS de oferta comercial vigente. Se consumirá primero el saldo del paquete diario y posteriormente el saldo de otros paquetes contratados.
B291: Descripción de la Promoción/Tarifa promocional (Servicios que incluye, etc.) | D291: Código de Identificación de la Promoción/Tarifa promocional * | E291: VOZ | Q291: SMS | Z291: DATOS | AC291: Otros servicios adicionales
E292: Tarifa por minuto IN-POOL (US$ por min.) | F292: Minutos IN-POOL incluidos (min.) | G292: Minutos On Net incluidos (min.) | H292: Minutos gratis a cualquier operadora (min.) | I292: Tarifa por minuto on net móvil dentro de la promoción (US$ por min.) | J292: Tarifa por minuto on net móvil adicional a la promoción (US$ por min.) | K292: Minutos Off Net incluidos (min.) | M292: Tarifa por minuto off net móvil dentro de la promoción (US$ por min.) | N292: Tarifa por minuto off net fijo dentro de la promoción (US$ por min.) | O292: Tarifa por minuto off net móvil adicional a la promoción (US$ por min.) | P292: Tarifa por minuto off net fijo adicional a la promoción (US$ por min.) | Q292: Tarifa por SMS IN-POOL (US$ por SMS) | R292: SMS IN-POOL incluidos (#SMS) | S292: Mensajes on net Incluidos (# SMS) | T292: Tarifa por SMS on net dentro de la promoción (US$ por SMS) | U292: Tarifa por SMS on net adicional a la promoción (US$ por SMS) | V292: Mensajes off net Incluidos (# SMS) | W292: Mensajes gratis a cualquier operadora (# SMS) | X292: Tarifa por SMS off net dentro de la promoción (US$ por SMS) | Y292: Tarifa por SMS off net adicional a la promoción (US$ por SMS) | Z292: MB Incluidos en la promoción (MB) | AA292: Tarifa por MB dentro de la promoción Plan (US$ por MB) | AB292: Tarifa por MB adicional a la promoción (US$ por MB) | AC292: Detalle | AD292: Unidad de medida | AE292: Tarifa US$
K293: Móvil | L293: Fijo
B294: SMS DIARIO Prep $0.89 | D294: Q62 | Q294: 0.89 | R294: 5000 | U294: 0.06 | Y294: 0.06
B297: Destinos que incluyen cargos de Interconexión: | D297: Sms Off net
B298: Tarifas incluyen impuestos aplicables de Ley: | D298: Tarifas no incluyen impuestos.
B300: =+B281 -> .
B302: FORMATO RT-PR-01: PROMOCIONES MÓVILES
B304: Nombre de la promoción: | D304: Promoción Recargas Supermaxi
B305: Fecha de entrada en vigencia de la Promoción,Tarifa promocional o Paquete promocional: | D305: 2013-06-23
B306: Fecha de finalización de la Promoción,Tarifa promocional o Paquete promocional: | D306: 2013-11-24
B308: Condiciones generales de la Promoción,Tarifa promocional o Paquete promocional: | D308: - Aplica para recargas a partir de 3 dólares - La promoción entrega el 50% del monto de la recarga pagada, como saldo promocional para hablar a todos los Movistar y 20 SMS para mensajear a todas las operadoras móviles a nivel nacional. - El saldo promocional se descontará a la tarifa regular del plan prepago o pospago contratado por el cliente. - El saldo promocional se consume antes del saldo pagado. Una vez consumido el saldo promocional o superada la fecha de vigencia del mismo, se descontará del saldo pagado de la recarga según la tarifa regular contratada por el cliente - El saldo promocional podrá ser utilizado a partir de realizada la recarga. - Los usuarios podrán acceder a esta bonificación por medio de recargas electrónicas en todos los locales de Supermaxi, Megamaxi, Aki, Super Aki, Gran Aki y Juguetón.
B310: Descripción de la Promoción/Tarifa promocional (Servicios que incluye, etc.) | D310: Código de Identificación de la Promoción/Tarifa promocional * | E310: VOZ | Q310: SMS | Z310: DATOS | AC310: Otros servicios adicionales
E311: Tarifa por minuto IN-POOL (US$ por min.) | F311: Minutos IN-POOL incluidos (min.) | G311: Minutos On Net incluidos (min.) | H311: Minutos gratis a cualquier operadora (min.) | I311: Tarifa por minuto on net móvil dentro de la promoción (US$ por min.) | J311: Tarifa por minuto on net móvil adicional a la promoción (US$ por min.) | K311: Minutos Off Net incluidos (min.) | M311: Tarifa por minuto off net móvil dentro de la promoción (US$ por min.) | N311: Tarifa por minuto off net fijo dentro de la promoción (US$ por min.) | O311: Tarifa por minuto off net móvil adicional a la promoción (US$ por min.) | P311: Tarifa por minuto off net fijo adicional a la promoción (US$ por min.) | Q311: Tarifa por SMS IN-POOL (US$ por SMS) | R311: SMS IN-POOL incluidos (#SMS) | S311: Mensajes on net Incluidos (# SMS) | T311: Tarifa por SMS on net dentro de la promoción (US$ por SMS) | U311: Tarifa por SMS on net adicional a la promoción (US$ por SMS) | V311: Mensajes off net Incluidos (# SMS) | W311: Mensajes gratis a cualquier operadora (# SMS) | X311: Tarifa por SMS off net dentro de la promoción (US$ por SMS) | Y311: Tarifa por SMS off net adicional a la promoción (US$ por SMS) | Z311: MB Incluidos en la promoción (MB) | AA311: Tarifa por MB dentro de la promoción Plan (US$ por MB) | AB311: Tarifa por MB adicional a la promoción (US$ por MB) | AC311: Detalle | AD311: Unidad de medida | AE311: Tarifa US$
K312: Móvil | L312: Fijo
B313: Promoción Recargas Supermaxi | D313: N/A | W313: 20
B316: Destinos que incluyen cargos de Interconexión: | D316: No aplica
B317: Tarifas incluyen impuestos aplicables de Ley: | D317: No aplica
B319: =+B300 -> .
B321: FORMATO RT-PR-01: PROMOCIONES MÓVILES
... 1884 more rows

Sheet CNT EP. (ex-Telecsa S.A.)
B2: Servicio Móvil Avanzado
B3: Tarifas CNT E.P. (EX - TELECSA)
B8: =+Inicio!B8 -> Fecha de publicación: julio de 2013
B13: FORMATO RT-PR-01: PROMOCIONES MÓVILES
B15: Nombre de la promoción: | D15: Programa de Referidos Prepago
B16: Fecha de entrada en vigencia de la Promoción,Tarifa promocional o Paquete promocional: | D16: 2013-07-01
B17: Fecha de finalización de la Promoción,Tarifa promocional o Paquete promocional: | D17: 2013-09-30
B19: Condiciones generales de la Promoción,Tarifa promocional o Paquete promocional: | D19: • Un cliente prepago GSM, 3.5G o HSPA PLUS podrá referir el servicio a una persona para que ésta active una línea prepago GSM, 3.5G o HSPA PLUS en CNT. • Si el nuevo cliente al activar su línea prepago ingresa el número de la persona (línea) que le refirió, esta última (línea que le refirió o referente) podrá recibir un bono promocional de $3,00, siempre y cuando la nueva línea realice una recarga de cualquier valor durante los 30 primeros días posteriores a la activación de la línea. • El bono promocional de $3.00 que recibe el referente, está distribuido para ser ocupado de la siguiente manera: 50% para llamadas on net / 50% para llamdas off net y tiene una vigencia de 30 días. • - El número referente podrá ser registrado máximo en 5 activaciones nuevas por mes.
B21: Descripción de la Promoción/Tarifa promocional (Servicios que incluye, etc.) | D21: Código de Identificación de la Promoción/Tarifa promocional * | E21: VOZ | Q21: SMS | Z21: DATOS | AC21: Otros servicios adicionales
E22: Tarifa por minuto IN-POOL (US$ por min.) | F22: Minutos IN-POOL incluidos (min.) | G22: Minutos On Net incluidos (min.) | H22: Minutos gratis a cualquier operadora (min.) | I22: Tarifa por minuto on net móvil dentro de la promoción (US$ por min.) | J22: Tarifa por minuto on net móvil adicional a la promoción (US$ por min.) | K22: Minutos Off Net incluidos (min.) | M22: Tarifa por minuto off net móvil dentro de la promoción (US$ por min.) | N22: Tarifa por minuto off net fijo dentro de la promoción (US$ por min.) | O22: Tarifa por minuto off net móvil adicional a la promoción (US$ por min.) | P22: Tarifa por minuto off net fijo adicional a la promoción (US$ por min.) | Q22: Tarifa por SMS IN-POOL (US$ por SMS) | R22: SMS IN-POOL incluidos (#SMS) | S22: Mensajes on net Incluidos (# SMS) | T22: Tarifa por SMS on net dentro de la promoción (US$ por SMS) | U22: Tarifa por SMS on net adicional a la promoción (US$ por SMS) | V22: Mensajes off net Incluidos (# SMS) | W22: Mensajes gratis a cualquier operadora (# SMS) | X22: Tarifa por SMS off net dentro de la promoción (US$ por SMS) | Y22: Tarifa por SMS off net adicional a la promoción (US$ por SMS) | Z22: MB Incluidos en la promoción (MB) | AA22: Tarifa por MB dentro de la promoción Plan (US$ por MB) | AB22: Tarifa por MB adicional a la promoción (US$ por MB) | AC22: Detalle | AD22: Unidad de medida | AE22: Tarifa US$
K23: Móvil | L23: Fijo
B24: Programa de Referidos Prepago: consiste Implementar un programa de referidos, el cual ofrezca beneficios a la línea referente, potencializando la colocación de servicios en el mercado. | D24: N/A | E24: N/A | F24: N/A | G24: N/A | H24: (**) | I24: (*) | J24: (*) | K24: N/A | L24: N/A | M24: (*) | N24: (*) | O24: (*) | P24: (*) | Q24: N/A | R24: N/A | S24: N/A | T24: N/A | U24: N/A | V24: N/A | W24: N/A | X24: N/A | Y24: N/A | Z24: N/A | AA24: N/A | AB24: N/A | AC24: N/A | AD24: N/A | AE24: N/A
B27: Destinos que incluyen cargos de Interconexión: | D27: N/A
B28: Tarifas incluyen impuestos aplicables de Ley: | D28: N/A
B30: =+Resumen!B36 -> .
B32: FORMATO RT-PR-01: PROMOCIONES MÓVILES
B34: Nombre de la promoción: | D34: DUPLICA TUS RECARGAS
B35: Fecha de entrada en vigencia de la Promoción,Tarifa promocional o Paquete promocional: | D35: 2013-07-30
B36: Fecha de finalización de la Promoción,Tarifa promocional o Paquete promocional: | D36: 2013-07-31
B38: Condiciones generales de la Promoción,Tarifa promocional o Paquete promocional: | D38: Aplica a las recargas a partir de $3 físicas ó electrónicas disponibles a través de cualquier medio de recarga. Aplica a clientes Prepago y Controlados individuales con tecnología CDMA, GSM, 3,5 G. El bono promocional entregado junto al ingreso de la recarga se consume primero, después de terminado el bono se comienza a consumir el valor de la recarga. El bono promocional sirve solo para servicios de voz, no para la contratación de ningún servicio adicional ni envío de mensajes de texto o mensajes multimedia. En el caso de envío de mensajes de texto, multimedia, contratación de servicios adicionales, llamadas internacionales, se descuentan del valor de la recarga El bono promocional tendrá una vigencia de 5 días si la recarga es menor a $ 6,00 y de 15 días si la recarga es desde $6,00 en adelante. Tanto el promocional como el acumulado (en caso de existir) se caducan si no se consumen en el tiempo establecido. El bono entregado, será distribuido de la siguiente manera: 50% a la bolsa promocional para llamadas On Net y 50% a la bolsa promocional para llamadas Off Net.
B40: Descripción de la Promoción/Tarifa promocional (Servicios que incluye, etc.) | D40: Código de Identificación de la Promoción/Tarifa promocional * | E40: VOZ | Q40: SMS | Z40: DATOS | AC40: Otros servicios adicionales
E41: Tarifa por minuto IN-POOL (US$ por min.) | F41: Minutos IN-POOL incluidos (min.) | G41: Minutos On Net incluidos (min.) | H41: Minutos gratis a cualquier operadora (min.) | I41: Tarifa por minuto on net móvil dentro de la promoción (US$ por min.) | J41: Tarifa por minuto on net móvil adicional a la promoción (US$ por min.) | K41: Minutos Off Net incluidos (min.) | M41: Tarifa por minuto off net móvil dentro de la promoción (US$ por min.) | N41: Tarifa por minuto off net fijo dentro de la promoción (US$ por min.) | O41: Tarifa por minuto off net móvil adicional a la promoción (US$ por min.) | P41: Tarifa por minuto off net fijo adicional a la promoción (US$ por min.) | Q41: Tarifa por SMS IN-POOL (US$ por SMS) | R41: SMS IN-POOL incluidos (#SMS) | S41: Mensajes on net Incluidos (# SMS) | T41: Tarifa por SMS on net dentro de la promoción (US$ por SMS) | U41: Tarifa por SMS on net adicional a la promoción (US$ por SMS) | V41: Mensajes off net Incluidos (# SMS) | W41: Mensajes gratis a cualquier operadora (# SMS) | X41: Tarifa por SMS off net dentro de la promoción (US$ por SMS) | Y41: Tarifa por SMS off net adicional a la promoción (US$ por SMS) | Z41: MB Incluidos en la promoción (MB) | AA41: Tarifa por MB dentro de la promoción Plan (US$ por MB) | AB41: Tarifa por MB adicional a la promoción (US$ por MB) | AC41: Detalle | AD41: Unidad de medida | AE41: Tarifa US$
K42: Móvil | L42: Fijo
B43: PROMOCIÓN DUPLICA TUS RECARGAS | D43: Multiplicidad_ID122 | E43: N/A | F43: N/A | G43: N/A | H43: N/A | I43: N/A | J43: N/A | K43: N/A | L43: N/A | M43: N/A | N43: N/A | O43: N/A | P43: N/A | Q43: N/A | R43: N/A | S43: N/A | T43: N/A | U43: N/A | V43: N/A | W43: N/A | X43: N/A | Y43: N/A | Z43: N/A | AA43: N/A | AB43: N/A | AC43: N/A | AD43: N/A | AE43: N/A
B46: Destinos que incluyen cargos de Interconexión: | D46: no aplica, únicamente refiere a duplicidad de recargas
B47: Tarifas incluyen impuestos aplicables de Ley: | D47: no aplica, únicamente refiere a duplicidad de recargas
B49: =+B30 -> .
B51: FORMATO RT-PR-01: PROMOCIONES MÓVILES
B53: Nombre de la promoción: | D53: DUPLICA TUS RECARGAS
B54: Fecha de entrada en vigencia de la Promoción,Tarifa promocional o Paquete promocional: | D54: 2013-07-15
B55: Fecha de finalización de la Promoción,Tarifa promocional o Paquete promocional: | D55: 2013-07-16
B57: Condiciones generales de la Promoción,Tarifa promocional o Paquete promocional: | D57: Aplica a las recargas a partir de $3 físicas ó electrónicas disponibles a través de cualquier medio de recarga. Aplica a clientes Prepago y Controlados individuales con tecnología CDMA, GSM, 3,5 G. El bono promocional entregado junto al ingreso de la recarga se consume primero, después de terminado el bono se comienza a consumir el valor de la recarga. El bono promocional sirve solo para servicios de voz, no para la contratación de ningún servicio adicional ni envío de mensajes de texto o mensajes multimedia. En el caso de envío de mensajes de texto, multimedia, contratación de servicios adicionales, llamadas internacionales, se descuentan del valor de la recarga El bono promocional tendrá una vigencia de 5 días si la recarga es menor a $ 6,00 y de 15 días si la recarga es desde $6,00 en adelante. Tanto el promocional como el acumulado (en caso de existir) se caducan si no se consumen en el tiempo establecido. El bono entregado, será distribuido de la siguiente manera: 50% a la bolsa promocional para llamadas On Net y 50% a la bolsa promocional para llamadas Off Net.
B59: Descripción de la Promoción/Tarifa promocional (Servicios que incluye, etc.) | D59: Código de Identificación de la Promoción/Tarifa promocional * | E59: VOZ | Q59: SMS | Z59: DATOS | AC59: Otros servicios adicionales
E60: Tarifa por minuto IN-POOL (US$ por min.) | F60: Minutos IN-POOL incluidos (min.) | G60: Minutos On Net incluidos (min.) | H60: Minutos gratis a cualquier operadora (min.) | I60: Tarifa por minuto on net móvil dentro de la promoción (US$ por min.) | J60: Tarifa por minuto on net móvil adicional a la promoción (US$ por min.) | K60: Minutos Off Net incluidos (min.) | M60: Tarifa por minuto off net móvil dentro de la promoción (US$ por min.) | N60: Tarifa por minuto off net fijo dentro de la promoción (US$ por min.) | O60: Tarifa por minuto off net móvil adicional a la promoción (US$ por min.) | P60: Tarifa por minuto off net fijo adicional a la promoción (US$ por min.) | Q60: Tarifa por SMS IN-POOL (US$ por SMS) | R60: SMS IN-POOL incluidos (#SMS) | S60: Mensajes on net Incluidos (# SMS) | T60: Tarifa por SMS on net dentro de la promoción (US$ por SMS) | U60: Tarifa por SMS on net adicional a la promoción (US$ por SMS) | V60: Mensajes off net Incluidos (# SMS) | W60: Mensajes gratis a cualquier operadora (# SMS) | X60: Tarifa por SMS off net dentro de la promoción (US$ por SMS) | Y60: Tarifa por SMS off net adicional a la promoción (US$ por SMS) | Z60: MB Incluidos en la promoción (MB) | AA60: Tarifa por MB dentro de la promoción Plan (US$ por MB) | AB60: Tarifa por MB adicional a la promoción (US$ por MB) | AC60: Detalle | AD60: Unidad de medida | AE60: Tarifa US$
K61: Móvil | L61: Fijo
B62: PROMOCIÓN DUPLICA TUS RECARGAS | D62: Multiplicidad_ID122 | E62: N/A | F62: N/A | G62: N/A | H62: N/A | I62: N/A | J62: N/A | K62: N/A | L62: N/A | M62: N/A | N62: N/A | O62: N/A | P62: N/A | Q62: N/A | R62: N/A | S62: N/A | T62: N/A | U62: N/A | V62: N/A | W62: N/A | X62: N/A | Y62: N/A | Z62: N/A | AA62: N/A | AB62: N/A | AC62: N/A | AD62: N/A | AE62: N/A
B65: Destinos que incluyen cargos de Interconexión: | D65: no aplica, únicamente refiere a duplicidad de recargas
B66: Tarifas incluyen impuestos aplicables de Ley: | D66: no aplica, únicamente refiere a duplicidad de recargas
B68: =+B49 -> .
B70: FORMATO RT-PR-01: PROMOCIONES MÓVILES
B72: Nombre de la promoción: | D72: PROMOCION DIA DE LA MADRE Y DIA DEL PADRE BAM HSPA+ BOLSA DE MEGAS ADICIONAL
B73: Fecha de entrada en vigencia de la Promoción,Tarifa promocional o Paquete promocional: | D73: 2013-07-01
B74: Fecha de finalización de la Promoción,Tarifa promocional o Paquete promocional: | D74: 2013-08-31
B76: Condiciones generales de la Promoción,Tarifa promocional o Paquete promocional: | D76: • La promoción consiste en entregar un paquete megas adicional a los planes descritos en el cuadro siguiente (megas incluidos + megas adicionales). Planes de Banda ancha notificados en noviembre de 2012 y febrero de 2013. BANDA ANCHA HSPA+ CTRL $10= 500 + 150 = 650 por 12 meses, BANDA ANCHA HSPA+ CTRL $15 = 700 + 200 = 900 por 12 meses, BANDA ANCHA HSPA+ CTRL $19 1000 + 200 = 1200 por 12 meses, BANDA ANCHA HSPA+ CTRL $25 1500 + 500 = 2000 por 12 meses, BANDA ANCHA HSP+ CTRL $29 2000 + 500 = 2500 por 12 meses, BANDA ANCHA HSP+ CTRL $39 3000 + 500= 3500 por 12 meses * La promoción aplica a partir del primer mes de contratación, por 12 meses consecutivos • La cantidad de megas es fija. • Las megas promocionales no son acumulables, si el cliente no los consume se perderán. • Los promocionales deben ser consumidos primero. • Las megas promocionales y megas del CBM no tienen rollover. • La promoción es por mes calendario. • Aplica para clientes nuevos y clientes que realicen cambio de plan.
B78: Descripción de la Promoción/Tarifa promocional (Servicios que incluye, etc.) | D78: Código de Identificación de la Promoción/Tarifa promocional * | E78: VOZ | Q78: SMS | Z78: DATOS | AC78: Otros servicios adicionales
E79: Tarifa por minuto IN-POOL (US$ por min.) | F79: Minutos IN-POOL incluidos (min.) | G79: Minutos On Net incluidos (min.) | H79: Minutos gratis a cualquier operadora (min.) | I79: Tarifa por minuto on net móvil dentro de la promoción (US$ por min.) | J79: Tarifa por minuto on net móvil adicional a la promoción (US$ por min.) | K79: Minutos Off Net incluidos (min.) | M79: Tarifa por minuto off net móvil dentro de la promoción (US$ por min.) | N79: Tarifa por minuto off net fijo dentro de la promoción (US$ por min.) | O79: Tarifa por minuto off net móvil adicional a la promoción (US$ por min.) | P79: Tarifa por minuto off net fijo adicional a la promoción (US$ por min.) | Q79: Tarifa por SMS IN-POOL (US$ por SMS) | R79: SMS IN-POOL incluidos (#SMS) | S79: Mensajes on net Incluidos (# SMS) | T79: Tarifa por SMS on net dentro de la promoción (US$ por SMS) | U79: Tarifa por SMS on net adicional a la promoción (US$ por SMS) | V79: Mensajes off net Incluidos (# SMS) | W79: Mensajes gratis a cualquier operadora (# SMS) | X79: Tarifa por SMS off net dentro de la promoción (US$ por SMS) | Y79: Tarifa por SMS off net adicional a la promoción (US$ por SMS) | Z79: MB Incluidos en la promoción (MB) | AA79: Tarifa por MB dentro de la promoción Plan (US$ por MB) | AB79: Tarifa por MB adicional a la promoción (US$ por MB) | AC79: Detalle | AD79: Unidad de medida | AE79: Tarifa US$
K80: Móvil | L80: Fijo
B81: PROMOCION DÍA DE LA MADRE Y DÍA DEL PADRE PLANES PERSONAS QUE CONSISTE EN ENTREGA DE PAQUETES DE MEGAS ADICIONALES | D81: 300295(*) | Z81: (**) | AB81: 0.1
B82: BANDA ANCHA HSPA+ CTRL $10 (500 MB incluidas) | Z82: 150 | AB82: 0.1
B83: BANDA ANCHA HSPA+ CTRL $15 (700 MB incluidas) | Z83: 200 | AB83: 0.1
B84: BANDA ANCHA HSPA+ CTRL $19: (1000 MB incluidas) | Z84: 200 | AB84: 0.1
B85: BANDA ANCHA HSPA+ CTRL $25: (1500 MB incluidas) | Z85: 500 | AB85: 0.1
B86: BANDA ANCHA HSP+ CTRL $29: (2000 MB incluidas) | Z86: 500 | AB86: 0.1
B87: BANDA ANCHA HSP+ CTRL $39: (3000 MB incluidas) | Z87: 500 | AB87: 0.1
B89: Destinos que incluyen cargos de Interconexión: | D89: N/A
B90: Tarifas incluyen impuestos aplicables de Ley: | D90: Si incluye
B92: =+B68 -> .
B94: FORMATO RT-PLT-01: PLANES MÓVILES
B96: Nombre del Plan Tarifario: | D96: PREPAGO PREACTIVADO CIUDAD DEL MILENIO HSPA PLUS
B97: Fecha de entrada en vigencia del Plan,Tarifa o Paquete: | D97: 2013-07-25
B98: Condiciones generales del Plan,Tarifa o Paquete: | D98: • El plan Prepago Preactivado Ciudad del Milenio HSPA PLUS posee una tarifa por minuto de $0,04 + impuestos las llamadas a números fijos y móviles CNT y una tarifa por minuto de $0,15 + impuestos las llamadas a números fijos y móviles de otras operadoras. La tarifa de SMS ONNET es de $0,03 + impuestos, la tarifa de SMS OFFNET es de $0,06 + impuestos y la tarifa de SMS INTERNACIONAL es de $0,10 + impuestos. Costo MB en navegación por demanda es de $0,20 + impuestos. • El plan viene con $3,00 de carga promocional inicial, cuya vigencia es de 30 días. Estos $3.00 permiten al cliente hablar, enviar mensajes o navegar. • Costo de chip para este producto: $3,00 + IVA. • Disponible en la tecnología HSPA+ y para ventas con equipos aportados y equipos propios. • Acceso a recargar física o electrónicamente. Vigencia ilimitada de recargas de saldos. Aplica rollover de recargas. Compatible con duplicidad de recargas.
B100: Descripción del Plan/Tarifa o Paquete (Servicios que incluye, etc.) | D100: Código de Identificación del Plan/Tarifa * | E100: Tarifa Mensual Total del Plan (US$)* | F100: VOZ | S100: SMS | AD100: DATOS | AH100: Otros servicios adicionales
F101: Tarifa Mensual Básica Voz (US$) | G101: Tarifa por minuto IN-POOL (US$ por min.) | H101: Minutos IN-POOL incluidos (min.) | I101: Minutos gratis a cualquier operadora (min.) | J101: Minutos On Net incluidos (min.) | K101: Tarifa por minuto on net móvil dentro del Plan (US$ por min.) | L101: Tarifa por minuto on net móvil adicional al Plan (US$ por min.) | M101: Minutos Off Net incluidos (min.) | O101: Tarifa por minuto off net móvil dentro del Plan (US$ por min.) | P101: Tarifa por minuto off net fijo dentro del Plan (US$ por min.) | Q101: Tarifa por minuto off net móvil adicional al Plan (US$ por min.) | R101: Tarifa por minuto off net fijo adicional al Plan (US$ por min.) | S101: Tarifa Mensual Básica SMS (US$) | T101: Tarifa por SMS IN-POOL (US$ por SMS) | U101: SMS IN-POOL incluidos (#SMS) | V101: Mensajes on net Incluidos (# SMS) | W101: Tarifa por SMS on net dentro del Plan (US$ por SMS) | X101: Tarifa por SMS on net adicional al Plan (US$ por SMS) | Y101: Mensajes off net Incluidos (# SMS) | Z101: Mensajes a cualquier operadora (# SMS) | AA101: Mensajes gratis a cualquier operadora (# SMS) | AB101: Tarifa por SMS off net dentro del Plan (US$ por SMS) | AC101: Tarifa por SMS off net adicional al Plan (US$ por SMS) | AD101: Tarifa Mensual Básica de Datos (US$) | AE101: MB Incluidos en el Plan (MB) | AF101: Tarifa por MB dentro del Plan (US$ por MB) | AG101: Tarifa por MB adicional al Plan (US$ por MB) | AH101: Detalle | AI101: Unidad de medida | AJ101: Tarifa US$
M102: Móvil | N102: Fijo
B103: El plan Prepago Preactivado Ciudad del Milenio HSPA PLUS posee una tarifa por minuto de $0,04 + impuestos las llamadas a números fijos y móviles CNT y una tarifa por minuto de $0,15 + impuestos las llamadas a números fijos y móviles de otras operadoras. La tarifa de SMS ONNET es de $0,03 + impuestos, la tarifa de SMS OFFNET es de $0,06 + impuestos y la tarifa de SMS INTERNACIONAL es de $0,10 + impuestos. Costo MB en navegación por demanda es de $0,20 + impuestos. | D103: 300316 - PREPAGO PREACTIVADO CIUDAD MILENIO | E103: N/A | F103: N/A | G103: N/A | H103: N/A | I103: N/A | J103: N/A | K103: 0.04 | L103: N/A | M103: N/A | N103: N/A | O103: 0.15 | P103: 0.15 | Q103: N/A | R103: N/A | S103: N/A | T103: N/A | U103: N/A | V103: N/A | W103: 0.03 | X103: N/A | Y103: N/A | Z103: N/A | AA103: N/A | AB103: 0.06 | AC103: N/A | AD103: N/A | AE103: N/A | AF103: 0.2 | AG103: N/A | AH103: N/A | AI103: N/A | AJ103: N/A
B106: Destinos que incluyen cargos de Interconexión: | D106: Si se incluye
B107: Tarifas incluyen impuestos aplicables de Ley: | D107: Las tarifas detalladas en el cuadro anterior no incluye impuestos de ley
B109: =+B92 -> .
B111: FORMATO RT-PLT-01: PLANES MÓVILES
B113: Nombre del Plan Tarifario: | D113: MULTIPLANES EMPRESAS HSPA+
B114: Fecha de entrada en vigencia del Plan,Tarifa o Paquete: | D114: 2013-07-08
B115: Condiciones generales del Plan,Tarifa o Paquete: | D115: Planes Empresas HSPA+ que brindan beneficios adicionales a los clientes HSPA+ pospago abierto y controlados Cargo básico mensual desde USD 10,00 (más impuestos) Plan que permite al usuario utilizar su cargo básico mensual en voz y/o SMS Se ofrecerá al cliente financiamiento de equipo de 3 Cargos Básicos Mensuales (CBM) Contrato a 18 meses Estos planes podrán acceder a la tarifa $0,02 centavos +IVA en ON NET y Fijo CNT 2. Estos planes tienen una característica de on company, característica que al cliente le da minutos incluidos (sin costo) en el plan dependiendo del CBM contratado; por lo que, una vez se consumen los minutos incluidos, la tarifa a cobrar será de cobrar a$0,02 3. Estos minutos incluidos - on company - sirve para llamadas de un Móvil CNT a un Móvil CNT. 4. Cada plan tiene sus megas incluidas.
B117: Descripción del Plan/Tarifa o Paquete (Servicios que incluye, etc.) | D117: Código de Identificación del Plan/Tarifa * | E117: Tarifa Mensual Total del Plan (US$)* | F117: VOZ | S117: SMS | AD117: DATOS | AH117: Otros servicios adicionales
F118: Tarifa Mensual Básica Voz (US$) | G118: Tarifa por minuto IN-POOL (US$ por min.) | H118: Minutos IN-POOL incluidos (min.) | I118: Minutos gratis a cualquier operadora (min.) | J118: Minutos On Net incluidos (min.) | K118: Tarifa por minuto on net móvil dentro del Plan (US$ por min.) | L118: Tarifa por minuto on net móvil adicional al Plan (US$ por min.) | M118: Minutos Off Net incluidos (min.) | O118: Tarifa por minuto off net móvil dentro del Plan (US$ por min.) | P118: Tarifa por minuto off net fijo dentro del Plan (US$ por min.) | Q118: Tarifa por minuto off net móvil adicional al Plan (US$ por min.) | R118: Tarifa por minuto off net fijo adicional al Plan (US$ por min.) | S118: Tarifa Mensual Básica SMS (US$) | T118: Tarifa por SMS IN-POOL (US$ por SMS) | U118: SMS IN-POOL incluidos (#SMS) | V118: Mensajes on net Incluidos (# SMS) | W118: Tarifa por SMS on net dentro del Plan (US$ por SMS) | X118: Tarifa por SMS on net adicional al Plan (US$ por SMS) | Y118: Mensajes off net Incluidos (# SMS) | Z118: Mensajes a cualquier operadora (# SMS) | AA118: Mensajes gratis a cualquier operadora (# SMS) | AB118: Tarifa por SMS off net dentro del Plan (US$ por SMS) | AC118: Tarifa por SMS off net adicional al Plan (US$ por SMS) | AD118: Tarifa Mensual Básica de Datos (US$) | AE118: MB Incluidos en el Plan (MB) | AF118: Tarifa por MB dentro del Plan (US$ por MB) | AG118: Tarifa por MB adicional al Plan (US$ por MB) | AH118: Detalle | AI118: Unidad de medida | AJ118: Tarifa US$
M119: Móvil | N119: Fijo
B120: Multiplan Empresas hspa+ USD 10,00 (más IVA) (ABIERTO/CONTROLADO) | D120: 300279 | E120: 10 | F120: n/a | G120: n/a | H120: n/a | I120: n/a | J120: 50 | K120: 0.02 | L120: 0.02 | M120: n/a | N120: n/a | O120: 0.15 | P120: CNT ($ 0,02) otras operadoras fijas ($ 0,15) | Q120: 0.15 | R120: CNT ($ 0,02) otras operadoras fijas ($ 0,15) | S120: n/a | T120: n/a | U120: n/a | V120: n/a | W120: 0.05 | X120: 0.06 | Y120: n/a | Z120: n/a | AA120: n/a | AB120: 0.06 | AC120: 0.06 | AD120: n/a | AE120: n/a | AF120: n/a | AG120: 0.1 | AH120: n/a | AI120: n/a | AJ120: n/a
B121: Multiplan Empresas hspa+ USD 15,00 (más IVA) (ABIERTO/CONTROLADO) | D121: 300282 | E121: 15 | F121: n/a | G121: n/a | H121: n/a | I121: n/a | J121: 50 | K121: 0.02 | L121: 0.02 | M121: n/a | N121: n/a | O121: 0.15 | P121: CNT ($ 0,02) otras operadoras fijas ($ 0,15) | Q121: 0.15 | R121: CNT ($ 0,02) otras operadoras fijas ($ 0,15) | S121: n/a | T121: n/a | U121: n/a | V121: n/a | W121: 0.05 | X121: 0.06 | Y121: n/a | Z121: n/a | AA121: n/a | AB121: 0.06 | AC121: 0.06 | AD121: n/a | AE121: n/a | AF121: n/a | AG121: 0.1 | AH121: n/a | AI121: n/a | AJ121: n/a
B122: Multiplan Empresas hspa+ USD 20,00 (más IVA) (ABIERTO/CONTROLADO) | D122: 300280 | E122: 20 | F122: n/a | G122: n/a | H122: n/a | I122: n/a | J122: 60 | K122: 0.02 | L122: 0.02 | M122: n/a | N122: n/a | O122: 0.15 | P122: CNT ($ 0,02) otras operadoras fijas ($ 0,15) | Q122: 0.15 | R122: CNT ($ 0,02) otras operadoras fijas ($ 0,15) | S122: n/a | T122: n/a | U122: n/a | V122: n/a | W122: 0.05 | X122: 0.06 | Y122: n/a | Z122: n/a | AA122: n/a | AB122: 0.06 | AC122: 0.06 | AD122: n/a | AE122: n/a | AF122: n/a | AG122: 0.1 | AH122: n/a | AI122: n/a | AJ122: n/a
B123: Multiplan Empresas hspa+ USD 25,00 (más IVA) (ABIERTO/CONTROLADO) | D123: 300278 | E123: 25 | F123: n/a | G123: n/a | H123: n/a | I123: n/a | J123: 60 | K123: 0.02 | L123: 0.02 | M123: n/a | N123: n/a | O123: 0.15 | P123: CNT ($ 0,02) otras operadoras fijas ($ 0,15) | Q123: 0.15 | R123: CNT ($ 0,02) otras operadoras fijas ($ 0,15) | S123: n/a | T123: n/a | U123: n/a | V123: n/a | W123: 0.05 | X123: 0.06 | Y123: n/a | Z123: n/a | AA123: n/a | AB123: 0.06 | AC123: 0.06 | AD123: n/a | AE123: n/a | AF123: n/a | AG123: 0.1 | AH123: n/a | AI123: n/a | AJ123: n/a
B124: Multiplan Empresas hspa+ USD 30,00 (más IVA) (ABIERTO/CONTROLADO) | D124: 300276 | E124: 30 | F124: n/a | G124: n/a | H124: n/a | I124: n/a | J124: 60 | K124: 0.02 | L124: 0.02 | M124: n/a | N124: n/a | O124: 0.15 | P124: CNT ($ 0,02) otras operadoras fijas ($ 0,15) | Q124: 0.15 | R124: CNT ($ 0,02) otras operadoras fijas ($ 0,15) | S124: n/a | T124: n/a | U124: n/a | V124: n/a | W124: 0.05 | X124: 0.06 | Y124: n/a | Z124: n/a | AA124: n/a | AB124: 0.06 | AC124: 0.06 | AD124: n/a | AE124: n/a | AF124: n/a | AG124: 0.1 | AH124: n/a | AI124: n/a | AJ124: n/a
B125: Multiplan Empresas hspa+ USD 40,00 (más IVA) (ABIERTO/CONTROLADO) | D125: 300274 | E125: 40 | F125: n/a | G125: n/a | H125: n/a | I125: n/a | J125: 80 | K125: 0.02 | L125: 0.02 | M125: n/a | N125: n/a | O125: 0.15 | P125: CNT ($ 0,02) otras operadoras fijas ($ 0,15) | Q125: 0.15 | R125: CNT ($ 0,02) otras operadoras fijas ($ 0,15) | S125: n/a | T125: n/a | U125: n/a | V125: n/a | W125: 0.05 | X125: 0.06 | Y125: n/a | Z125: n/a | AA125: n/a | AB125: 0.06 | AC125: 0.06 | AD125: n/a | AE125: n/a | AF125: n/a | AG125: 0.1 | AH125: n/a | AI125: n/a | AJ125: n/a
B126: Multiplan Empresas hspa+ USD 50,00 (más IVA) (ABIERTO/CONTROLADO) | D126: 300272 | E126: 50 | F126: n/a | G126: n/a | H126: n/a | I126: n/a | J126: 80 | K126: 0.02 | L126: 0.02 | M126: n/a | N126: n/a | O126: 0.15 | P126: CNT ($ 0,02) otras operadoras fijas ($ 0,15) | Q126: 0.15 | R126: CNT ($ 0,02) otras operadoras fijas ($ 0,15) | S126: n/a | T126: n/a | U126: n/a | V126: n/a | W126: 0.05 | X126: 0.06 | Y126: n/a | Z126: n/a | AA126: n/a | AB126: 0.06 | AC126: 0.06 | AD126: n/a | AE126: n/a | AF126: n/a | AG126: 0.1 | AH126: n/a | AI126: n/a | AJ126: n/a
B127: Multiplan Empresas hspa+ USD 60,00 (más IVA) (ABIERTO/CONTROLADO) | D127: 300270 | E127: 60 | F127: n/a | G127: n/a | H127: n/a | I127: n/a | J127: 80 | K127: 0.02 | L127: 0.02 | M127: n/a | N127: n/a | O127: 0.15 | P127: CNT ($ 0,02) otras operadoras fijas ($ 0,15) | Q127: 0.15 | R127: CNT ($ 0,02) otras operadoras fijas ($ 0,15) | S127: n/a | T127: n/a | U127: n/a | V127: n/a | W127: 0.05 | X127: 0.06 | Y127: n/a | Z127: n/a | AA127: n/a | AB127: 0.06 | AC127: 0.06 | AD127: n/a | AE127: n/a | AF127: n/a | AG127: 0.1 | AH127: n/a | AI127: n/a | AJ127: n/a
B128: Multiplan Empresas hspa+ USD 75,00 (más IVA) (ABIERTO/CONTROLADO) | D128: 300268 | E128: 75 | F128: n/a | G128: n/a | H128: n/a | I128: n/a | J128: 100 | K128: 0.02 | L128: 0.02 | M128: n/a | N128: n/a | O128: 0.15 | P128: CNT ($ 0,02) otras operadoras fijas ($ 0,15) | Q128: 0.15 | R128: CNT ($ 0,02) otras operadoras fijas ($ 0,15) | S128: n/a | T128: n/a | U128: n/a | V128: n/a | W128: 0.05 | X128: 0.06 | Y128: n/a | Z128: n/a | AA128: n/a | AB128: 0.06 | AC128: 0.06 | AD128: n/a | AE128: n/a | AF128: n/a | AG128: 0.1 | AH128: n/a | AI128: n/a | AJ128: n/a
B129: Multiplan Empresas hspa+ USD 100,00 (más IVA) (ABIERTO/CONTROLADO) | D129: 300266 | E129: 100 | F129: n/a | G129: n/a | H129: n/a | I129: n/a | J129: 100 | K129: 0.02 | L129: 0.02 | M129: n/a | N129: n/a | O129: 0.15 | P129: CNT ($ 0,02) otras operadoras fijas ($ 0,15) | Q129: 0.15 | R129: CNT ($ 0,02) otras operadoras fijas ($ 0,15) | S129: n/a | T129: n/a | U129: n/a | V129: n/a | W129: 0.05 | X129: 0.06 | Y129: n/a | Z129: n/a | AA129: n/a | AB129: 0.06 | AC129: 0.06 | AD129: n/a | AE129: n/a | AF129: n/a | AG129: 0.1 | AH129: n/a | AI129: n/a | AJ129: n/a
B130: Multiplan Empresas hspa+ USD 120,00 (más IVA) (ABIERTO/CONTROLADO) | D130: 300264 | E130: 120 | F130: n/a | G130: n/a | H130: n/a | I130: n/a | J130: 100 | K130: 0.02 | L130: 0.02 | M130: n/a | N130: n/a | O130: 0.15 | P130: CNT ($ 0,02) otras operadoras fijas ($ 0,15) | Q130: 0.15 | R130: CNT ($ 0,02) otras operadoras fijas ($ 0,15) | S130: n/a | T130: n/a | U130: n/a | V130: n/a | W130: 0.05 | X130: 0.06 | Y130: n/a | Z130: n/a | AA130: n/a | AB130: 0.06 | AC130: 0.06 | AD130: n/a | AE130: n/a | AF130: n/a | AG130: 0.1 | AH130: n/a | AI130: n/a | AJ130: n/a
B131: Multiplan Empresas hspa+ USD 125,00 (más IVA) (ABIERTO/CONTROLADO) | D131: 300262 | E131: 125 | F131: n/a | G131: n/a | H131: n/a | I131: n/a | J131: 120 | K131: 0.02 | L131: 0.02 | M131: n/a | N131: n/a | O131: 0.15 | P131: CNT ($ 0,02) otras operadoras fijas ($ 0,15) | Q131: 0.15 | R131: CNT ($ 0,02) otras operadoras fijas ($ 0,15) | S131: n/a | T131: n/a | U131: n/a | V131: n/a | W131: 0.05 | X131: 0.06 | Y131: n/a | Z131: n/a | AA131: n/a | AB131: 0.06 | AC131: 0.06 | AD131: n/a | AE131: n/a | AF131: n/a | AG131: 0.1 | AH131: n/a | AI131: n/a | AJ131: n/a
B132: Multiplan Empresas hspa+ USD 150,00 (más IVA) (ABIERTO/CONTROLADO) | D132: 300260 | E132: 150 | F132: n/a | G132: n/a | H132: n/a | I132: n/a | J132: 120 | K132: 0.02 | L132: 0.02 | M132: n/a | N132: n/a | O132: 0.15 | P132: CNT ($ 0,02) otras operadoras fijas ($ 0,15) | Q132: 0.15 | R132: CNT ($ 0,02) otras operadoras fijas ($ 0,15) | S132: n/a | T132: n/a | U132: n/a | V132: n/a | W132: 0.05 | X132: 0.06 | Y132: n/a | Z132: n/a | AA132: n/a | AB132: 0.06 | AC132: 0.06 | AD132: n/a | AE132: n/a | AF132: n/a | AG132: 0.1 | AH132: n/a | AI132: n/a | AJ132: n/a
B133: Multiplan Empresas hspa+ USD 175,00 (más IVA) (ABIERTO/CONTROLADO) | D133: 300258 | E133: 175 | F133: n/a | G133: n/a | H133: n/a | I133: n/a | J133: 120 | K133: 0.02 | L133: 0.02 | M133: n/a | N133: n/a | O133: 0.15 | P133: CNT ($ 0,02) otras operadoras fijas ($ 0,15) | Q133: 0.15 | R133: CNT ($ 0,02) otras operadoras fijas ($ 0,15) | S133: n/a | T133: n/a | U133: n/a | V133: n/a | W133: 0.05 | X133: 0.06 | Y133: n/a | Z133: n/a | AA133: n/a | AB133: 0.06 | AC133: 0.06 | AD133: n/a | AE133: n/a | AF133: n/a | AG133: 0.1 | AH133: n/a | AI133: n/a | AJ133: n/a
B134: Multiplan Empresas hspa+ USD 200,00 (más IVA) (ABIERTO/CONTROLADO) | D134: 300256 | E134: 200 | F134: n/a | G134: n/a | H134: n/a | I134: n/a | J134: 150 | K134: 0.02 | L134: 0.02 | M134: n/a | N134: n/a | O134: 0.15 | P134: CNT ($ 0,02) otras operadoras fijas ($ 0,15) | Q134: 0.15 | R134: CNT ($ 0,02) otras operadoras fijas ($ 0,15) | S134: n/a | T134: n/a | U134: n/a | V134: n/a | W134: 0.05 | X134: 0.06 | Y134: n/a | Z134: n/a | AA134: n/a | AB134: 0.06 | AC134: 0.06 | AD134: n/a | AE134: n/a | AF134: n/a | AG134: 0.1 | AH134: n/a | AI134: n/a | AJ134: n/a
B135: Multiplan Empresas hspa+ USD 300,00 (más IVA) (ABIERTO/CONTROLADO) | D135: 300254 | E135: 300 | F135: n/a | G135: n/a | H135: n/a | I135: n/a | J135: 150 | K135: 0.02 | L135: 0.02 | M135: n/a | N135: n/a | O135: 0.15 | P135: CNT ($ 0,02) otras operadoras fijas ($ 0,15) | Q135: 0.15 | R135: CNT ($ 0,02) otras operadoras fijas ($ 0,15) | S135: n/a | T135: n/a | U135: n/a | V135: n/a | W135: 0.05 | X135: 0.06 | Y135: n/a | Z135: n/a | AA135: n/a | AB135: 0.06 | AC135: 0.06 | AD135: n/a | AE135: n/a | AF135: n/a | AG135: 0.1 | AH135: n/a | AI135: n/a | AJ135: n/a
B136: Multiplan Empresas hspa+ USD 400,00 (más IVA) (ABIERTO/CONTROLADO) | D136: 300252 | E136: 400 | F136: n/a | G136: n/a | H136: n/a | I136: n/a | J136: 150 | K136: 0.02 | L136: 0.02 | M136: n/a | N136: n/a | O136: 0.15 | P136: CNT ($ 0,02) otras operadoras fijas ($ 0,15) | Q136: 0.15 | R136: CNT ($ 0,02) otras operadoras fijas ($ 0,15) | S136: n/a | T136: n/a | U136: n/a | V136: n/a | W136: 0.05 | X136: 0.06 | Y136: n/a | Z136: n/a | AA136: n/a | AB136: 0.06 | AC136: 0.06 | AD136: n/a | AE136: n/a | AF136: n/a | AG136: 0.1 | AH136: n/a | AI136: n/a | AJ136: n/a
B138: Destinos que incluyen cargos de Interconexión: | D138: todos los destinos incluyen cargos de interconexión (local, nacional, LDI)
B139: Tarifas incluyen impuestos aplicables de Ley: | D139: No incluyen
B141: =+B109 -> .
B143: FORMATO RT-PLT-01: PLANES MÓVILES
B145: Nombre del Plan Tarifario: | D145: PLAN MULTIPLAN POOL HSPA+ PERSONAS
B146: Fecha de entrada en vigencia del Plan,Tarifa o Paquete: | D146: 2013-04-24
B147: Condiciones generales del Plan,Tarifa o Paquete: | D147: Los Planes Multiplan Pool cuentan una característica especial que consiste en que la línea principal puede distribuir su bolsa de saldo del cargo básico mensual (CBM) a las líneas secundarias. Para el registro de las líneas secundarias, el cliente puede realizarlo de manera personalizada o a través del *200# • Este plan permite la inclusión de líneas secundarias que forman parte de la línea principal • El Multiplan Pool podrá adicionar de 2 hasta 5 líneas secundarias según el plan contratado. EL Usuario podrá compartir la bolsa del cargo básico mensual de la línea principal y realizar acreditaciones a las líneas secundarias. Por ejemplo el cliente que contrata el plan USD 15, puede adicionar una línea (total 2) • Contrato a 24 meses • Modalidad Controlado • El valor acreditado desde la línea principal a las secundarias le permitirá al cliente que reciba dicho valor utilizarlo en cualquier servicio voz ,mms, sms, voz llamadas internacionales ,red inteligente, datos On deman • Las líneas secundarias recibirán los mismos bonos promocionales: minutos incluidos, números preferidos, minutos incluidos a números preferidos, megas incluidas
B149: Descripción del Plan/Tarifa o Paquete (Servicios que incluye, etc.) | D149: Código de Identificación del Plan/Tarifa * | E149: Tarifa Mensual Total del Plan (US$)* | F149: VOZ | S149: SMS | AD149: DATOS | AH149: Otros servicios adicionales
F150: Tarifa Mensual Básica Voz (US$) | G150: Tarifa por minuto IN-POOL (US$ por min.) | H150: Minutos IN-POOL incluidos (min.) | I150: Minutos gratis a cualquier operadora (min.) | J150: Minutos On Net incluidos (min.) | K150: Tarifa por minuto on net móvil dentro del Plan (US$ por min.) | L150: Tarifa por minuto on net móvil adicional al Plan (US$ por min.) | M150: Minutos Off Net incluidos (min.) | O150: Tarifa por minuto off net móvil dentro del Plan (US$ por min.) | P150: Tarifa por minuto off net fijo dentro del Plan (US$ por min.) | Q150: Tarifa por minuto off net móvil adicional al Plan (US$ por min.) | R150: Tarifa por minuto off net fijo adicional al Plan (US$ por min.) | S150: Tarifa Mensual Básica SMS (US$) | T150: Tarifa por SMS IN-POOL (US$ por SMS) | U150: SMS IN-POOL incluidos (#SMS) | V150: Mensajes on net Incluidos (# SMS) | W150: Tarifa por SMS on net dentro del Plan (US$ por SMS) | X150: Tarifa por SMS on net adicional al Plan (US$ por SMS) | Y150: Mensajes off net Incluidos (# SMS) | Z150: Mensajes a cualquier operadora (# SMS) | AA150: Mensajes gratis a cualquier operadora (# SMS) | AB150: Tarifa por SMS off net dentro del Plan (US$ por SMS) | AC150: Tarifa por SMS off net adicional al Plan (US$ por SMS) | AD150: Tarifa Mensual Básica de Datos (US$) | AE150: MB Incluidos en el Plan (MB) | AF150: Tarifa por MB dentro del Plan (US$ por MB) | AG150: Tarifa por MB adicional al Plan (US$ por MB) | AH150: Detalle | AI150: Unidad de medida | AJ150: Tarifa US$
M151: Móvil | N151: Fijo
B152: MULTIPLAN POOL HSPA+PERSONAS USD 15 | D152: 300305 | E152: 15 | F152: n/a | G152: n/a | H152: n/a | I152: n/a | J152: n/a | K152: 0.04 | L152: n/a | M152: n/a | N152: n/a | O152: 0.15 | P152: 0.15 | Q152: n/a | R152: n/a | S152: n/a | T152: n/a | U152: n/a | V152: n/a | W152: 0.05 | X152: n/a | Y152: n/a | Z152: n/a | AA152: n/a | AB152: 0.06 | AC152: n/a | AD152: n/a | AE152: n/a | AF152: n/a | AG152: 0.1 | AH152: n/a | AI152: n/a | AJ152: n/a
B153: MULTIPLAN POOL HSPA+PERSONAS USD 20 | D153: 300305 | E153: 20 | F153: n/a | G153: n/a | H153: n/a | I153: n/a | J153: n/a | K153: 0.04 | L153: n/a | M153: n/a | N153: n/a | O153: 0.15 | P153: 0.15 | Q153: n/a | R153: n/a | S153: n/a | T153: n/a | U153: n/a | V153: n/a | W153: 0.05 | X153: n/a | Y153: n/a | Z153: n/a | AA153: n/a | AB153: 0.06 | AC153: n/a | AD153: n/a | AE153: n/a | AF153: n/a | AG153: 0.1 | AH153: n/a | AI153: n/a | AJ153: n/a
B154: MULTIPLAN POOL HSPA+PERSONAS USD 30 | D154: 300305 | E154: 30 | F154: n/a | G154: n/a | H154: n/a | I154: n/a | J154: n/a | K154: 0.04 | L154: n/a | M154: n/a | N154: n/a | O154: 0.15 | P154: 0.15 | Q154: n/a | R154: n/a | S154: n/a | T154: n/a | U154: n/a | V154: n/a | W154: 0.05 | X154: n/a | Y154: n/a | Z154: n/a | AA154: n/a | AB154: 0.06 | AC154: n/a | AD154: n/a | AE154: n/a | AF154: n/a | AG154: 0.1 | AH154: n/a | AI154: n/a | AJ154: n/a
B155: MULTIPLAN POOL HSPA+PERSONAS USD 50 | D155: 300306 | E155: 50 | F155: n/a | G155: n/a | H155: n/a | I155: n/a | J155: n/a | K155: 0.04 | L155: n/a | M155: n/a | N155: n/a | O155: 0.15 | P155: 0.15 | Q155: n/a | R155: n/a | S155: n/a | T155: n/a | U155: n/a | V155: n/a | W155: 0.05 | X155: n/a | Y155: n/a | Z155: n/a | AA155: n/a | AB155: 0.06 | AC155: n/a | AD155: n/a | AE155: n/a | AF155: n/a | AG155: 0.1 | AH155: n/a | AI155: n/a | AJ155: n/a
B156: MULTIPLAN POOL HSPA+PERSONAS USD 80 | D156: 300307 | E156: 80 | F156: n/a | G156: n/a | H156: n/a | I156: n/a | J156: n/a | K156: 0.04 | L156: n/a | M156: n/a | N156: n/a | O156: 0.15 | P156: 0.15 | Q156: n/a | R156: n/a | S156: n/a | T156: n/a | U156: n/a | V156: n/a | W156: 0.05 | X156: n/a | Y156: n/a | Z156: n/a | AA156: n/a | AB156: 0.06 | AC156: n/a | AD156: n/a | AE156: n/a | AF156: n/a | AG156: 0.1 | AH156: n/a | AI156: n/a | AJ156: n/a
B157: MULTIPLAN POOL HSPA+PERSONAS USD 100 | D157: 30038 | E157: 100 | F157: n/a | G157: n/a | H157: n/a | I157: n/a | J157: n/a | K157: 0.04 | L157: n/a | M157: n/a | N157: n/a | O157: 0.15 | P157: 0.15 | Q157: n/a | R157: n/a | S157: n/a | T157: n/a | U157: n/a | V157: n/a | W157: 0.05 | X157: n/a | Y157: n/a | Z157: n/a | AA157: n/a | AB157: 0.06 | AC157: n/a | AD157: n/a | AE157: n/a | AF157: n/a | AG157: 0.1 | AH157: n/a | AI157: n/a | AJ157: n/a
B159: Destinos que incluyen cargos de Interconexión: | D159: todos los destinos (local, nacional, LDI)
B160: Tarifas incluyen impuestos aplicables de Ley: | D160: No incluyen
B162: =+B141 -> .
B164: FORMATO RT-PLT-01: PLANES MÓVILES
B166: Nombre del Plan Tarifario: | D166: PAQUETES DE MEGAS INTERNET HSPA+
B167: Fecha de entrada en vigencia del Plan,Tarifa o Paquete: | D167: 2013-06-18
B168: Condiciones generales del Plan,Tarifa o Paquete: | D168: • Paquete pospago controlado • No aplica ninguna promoción (no duplicidad ni descuento de empaquetados o producto) • Paquetes que pueden desactivarse en cualquier momento si el cliente así lo desea • Para desactivar el paquete el cliente deberá llamar con 15 días de anticipación o acercarse a CNT para solicitar la desactivación del paquete previo al cambio de ciclo del mismo. • El valor no es prorrateado ni sus megas • El paquete puede ser activado cualquier día del mes • El paquete puede entregarse con la activación de fecha futura para que el cliente pueda tener su paquete al iniciar el ciclo de su plan controlado o redes sociales ya que se cobra la totalidad del valor del paquete.
B170: Descripción del Plan/Tarifa o Paquete (Servicios que incluye, etc.) | D170: Código de Identificación del Plan/Tarifa * | E170: Tarifa Mensual Total del Plan (US$)* | F170: VOZ | S170: SMS | AD170: DATOS | AH170: Otros servicios adicionales
F171: Tarifa Mensual Básica Voz (US$) | G171: Tarifa por minuto IN-POOL (US$ por min.) | H171: Minutos IN-POOL incluidos (min.) | I171: Minutos gratis a cualquier operadora (min.) | J171: Minutos On Net incluidos (min.) | K171: Tarifa por minuto on net móvil dentro del Plan (US$ por min.) | L171: Tarifa por minuto on net móvil adicional al Plan (US$ por min.) | M171: Minutos Off Net incluidos (min.) | O171: Tarifa por minuto off net móvil dentro del Plan (US$ por min.) | P171: Tarifa por minuto off net fijo dentro del Plan (US$ por min.) | Q171: Tarifa por minuto off net móvil adicional al Plan (US$ por min.) | R171: Tarifa por minuto off net fijo adicional al Plan (US$ por min.) | S171: Tarifa Mensual Básica SMS (US$) | T171: Tarifa por SMS IN-POOL (US$ por SMS) | U171: SMS IN-POOL incluidos (#SMS) | V171: Mensajes on net Incluidos (# SMS) | W171: Tarifa por SMS on net dentro del Plan (US$ por SMS) | X171: Tarifa por SMS on net adicional al Plan (US$ por SMS) | Y171: Mensajes off net Incluidos (# SMS) | Z171: Mensajes a cualquier operadora (# SMS) | AA171: Mensajes gratis a cualquier operadora (# SMS) | AB171: Tarifa por SMS off net dentro del Plan (US$ por SMS) | AC171: Tarifa por SMS off net adicional al Plan (US$ por SMS) | AD171: Tarifa Mensual Básica de Datos (US$) | AE171: MB Incluidos en el Plan (MB) | AF171: Tarifa por MB dentro del Plan (US$ por MB) | AG171: Tarifa por MB adicional al Plan (US$ por MB) | AH171: Detalle | AI171: Unidad de medida | AJ171: Tarifa US$
M172: Móvil | N172: Fijo
B173: INT3G PAQUETE MEGAS INTERNET BAM HSPA+ 500 | D173: 1826 | E173: 4.99 | F173: n/a | G173: n/a | H173: n/a | I173: n/a | J173: n/a | K173: n/a | L173: n/a | M173: n/a | N173: n/a | O173: n/a | P173: n/a | Q173: n/a | R173: n/a | S173: n/a | T173: n/a | U173: n/a | V173: n/a | W173: n/a | X173: n/a | Y173: n/a | Z173: n/a | AA173: n/a | AB173: n/a | AC173: n/a | AD173: n/a | AE173: 500 | AF173: =4.99/500 -> 0.00998 | AG173: n/a | AH173: n/a | AI173: n/a | AJ173: n/a
B174: INT3G PAQUETE MEGAS INTERNET BAM HSPA+ 1000 | D174: 1824 | E174: 9.99 | F174: n/a | G174: n/a | H174: n/a | I174: n/a | J174: n/a | K174: n/a | L174: n/a | M174: n/a | N174: n/a | O174: n/a | P174: n/a | Q174: n/a | R174: n/a | S174: n/a | T174: n/a | U174: n/a | V174: n/a | W174: n/a | X174: n/a | Y174: n/a | Z174: n/a | AA174: n/a | AB174: n/a | AC174: n/a | AD174: n/a | AE174: 1000 | AF174: =9.99/1000 -> 0.00999 | AG174: n/a | AH174: n/a | AI174: n/a | AJ174: n/a
B175: INT3G PAQUETE MEGAS INTERNET BAM HSPA+ 2000 | D175: 1825 | E175: 15.99 | F175: n/a | G175: n/a | H175: n/a | I175: n/a | J175: n/a | K175: n/a | L175: n/a | M175: n/a | N175: n/a | O175: n/a | P175: n/a | Q175: n/a | R175: n/a | S175: n/a | T175: n/a | U175: n/a | V175: n/a | W175: n/a | X175: n/a | Y175: n/a | Z175: n/a | AA175: n/a | AB175: n/a | AC175: n/a | AD175: n/a | AE175: 2000 | AF175: =15.99/2000 -> 0.007995 | AG175: n/a | AH175: n/a | AI175: n/a | AJ175: n/a
D176: no aplica
B177: Destinos que incluyen cargos de Interconexión: | D177: no incluyen
B178: Tarifas incluyen impuestos aplicables de Ley:
B180: =+B162 -> .
B182: FORMATO RT-PLT-01: PLANES MÓVILES
B184: Nombre del Plan Tarifario: | D184: PLAN MULTIPLAN POOL HSPA+ PERSONAS
B185: Fecha de entrada en vigencia del Plan,Tarifa o Paquete: | D185: 2013-06-06
B186: Condiciones generales del Plan,Tarifa o Paquete: | D186: • El plan CNT CHIP prepago posee una Tarifa Única de $0,10 ctvs. + impuestos por minuto para hablar a cualquier teléfono fijo o móvil en Ecuador, Estados Unidos, Canadá, Colombia y Perú. Este costo será aplicado para los primeros 200 minutos mensuales. A partir del minuto 201 el costo de las llamadas será de $0,16 + impuestos, por minuto. Esto quiere decir que cada primero de cada mes, el cliente inicia con la tarifa de $0,10 + impuestos. • El plan viene con $3,00 de carga promocional inicial, cuya vigencia es de 30 días. • Costo de chip para este producto: $3,00 + IVA. • Disponible en las tecnologías GSM, 3.5G y HSPA+ y para ventas con equipo aportado y equipos propios. Adicionalmente está disponible para clientes que deseen aplicar la portabilidad numérica en la CNT EP. Producto disponible con y sin número preactivado. • Acceso a recargar física o electrónicamente. Vigencia ilimitada de recargas de saldos. Aplica rollover de recargas. No es compatible con duplicidad de recargas. • El CNT CHIP PREPAGO tiene acceso a contratar servicios adicionales (Datos, MMS, SMS).
B188: Descripción del Plan/Tarifa o Paquete (Servicios que incluye, etc.) | D188: Código de Identificación del Plan/Tarifa * | E188: Tarifa Mensual Total del Plan (US$)* | F188: VOZ | S188: SMS | AD188: DATOS | AH188: Otros servicios adicionales
F189: Tarifa Mensual Básica Voz (US$) | G189: Tarifa por minuto IN-POOL (US$ por min.) | H189: Minutos IN-POOL incluidos (min.) | I189: Minutos gratis a cualquier operadora (min.) | J189: Minutos On Net incluidos (min.) | K189: Tarifa por minuto on net móvil dentro del Plan (US$ por min.) | L189: Tarifa por minuto on net móvil adicional al Plan (US$ por min.) | M189: Minutos Off Net incluidos (min.) | O189: Tarifa por minuto off net móvil dentro del Plan (US$ por min.) | P189: Tarifa por minuto off net fijo dentro del Plan (US$ por min.) | Q189: Tarifa por minuto off net móvil adicional al Plan (US$ por min.) | R189: Tarifa por minuto off net fijo adicional al Plan (US$ por min.) | S189: Tarifa Mensual Básica SMS (US$) | T189: Tarifa por SMS IN-POOL (US$ por SMS) | U189: SMS IN-POOL incluidos (#SMS) | V189: Mensajes on net Incluidos (# SMS) | W189: Tarifa por SMS on net dentro del Plan (US$ por SMS) | X189: Tarifa por SMS on net adicional al Plan (US$ por SMS) | Y189: Mensajes off net Incluidos (# SMS) | Z189: Mensajes a cualquier operadora (# SMS) | AA189: Mensajes gratis a cualquier operadora (# SMS) | AB189: Tarifa por SMS off net dentro del Plan (US$ por SMS) | AC189: Tarifa por SMS off net adicional al Plan (US$ por SMS) | AD189: Tarifa Mensual Básica de Datos (US$) | AE189: MB Incluidos en el Plan (MB) | AF189: Tarifa por MB dentro del Plan (US$ por MB) | AG189: Tarifa por MB adicional al Plan (US$ por MB) | AH189: Detalle | AI189: Unidad de medida | AJ189: Tarifa US$
M190: Móvil | N190: Fijo
B191: El plan CNT CHIP prepago posee una Tarifa Única de $0,10 ctvs. + impuestos por minuto para hablar a cualquier teléfono fijo o móvil en Ecuador, Estados Unidos, Canadá, Colombia y Perú. Este costo será aplicado para los primeros 200 minutos mensuales. A partir del minuto 201 el costo de las llamadas será de $0,16 + impuestos, por minuto. | D191: 300292 - CNT CHIP 2G / 300293 - CNT CHIP 3G / 300294 - CNT CHIP HSPA PLUS / 300313 - PREACTIVADO PREPAGO CNT CHIP GSM / 300314 - PREACTIVADO PREPAGO CNT CHIP 3.5G / 300315 - PREACTIVADO PREPAGO CNT CHIP HSPA PLUS | E191: N/A | F191: N/A | G191: N/A | H191: N/A | I191: N/A | J191: N/A | K191: 0.1 | L191: N/A | M191: N/A | N191: N/A | O191: 0.1 | P191: 0.1 | Q191: N/A | R191: N/A | S191: N/A | T191: N/A | U191: N/A | V191: N/A | W191: 0.05 | X191: N/A | Y191: N/A | Z191: N/A | AA191: N/A | AB191: 0.06 | AC191: N/A | AD191: N/A | AE191: N/A | AF191: $ 0,990 (GSM / 3.5G) - $ 0,200 (HSPA PLUS) | AG191: N/A | AH191: N/A | AI191: N/A | AJ191: N/A
B194: Destinos que incluyen cargos de Interconexión: | D194: Si se incluye
B195: Tarifas incluyen impuestos aplicables de Ley: | D195: Las tarifas detalladas en el cuadro anterior no incluye impuestos de ley
B197: =+B180 -> .
B199: FORMATO RT-PR-01: PROMOCIONES MÓVILES
B201: Nombre de la promoción: | D201: CAMPAÑA DE PORTABILIDAD MULTIPLAN HSPA+PERSONAS (Voz Móvil)
B202: Fecha de entrada en vigencia de la Promoción,Tarifa promocional o Paquete promocional: | D202: 2013-05-01
B203: Fecha de finalización de la Promoción,Tarifa promocional o Paquete promocional: | D203: 2013-08-01
B205: Condiciones generales de la Promoción,Tarifa promocional o Paquete promocional: | D205: Características de la promoción • Los Planes presentan una característica distinta a los Multiplanes actuales debido a que pueden acceder al servicio de números preferidos(Unidos) el cual les permite registrar un máximo de números Móviles CNT dependiendo del CBM contratado como indica la columna denominada números preferidos • En estos Planes el servicio de números preferidos (Unidos) le permite al cliente contar con un numero de minutos (solo si el numero registrado es CNT Móvil) incluido sin costo todos los meses, una vez terminados los minutos incluidos en el plan estos se cobrarán a una tarifa de ON Net del Plan Contratado. Contrato a 18 meses • La cantidad de minutos incluidos en el plan varía dependiendo del CBM contratado como indica en la columna “Minutos Incluidos” del cuadro los minutos incluidos son totales no por usuario. • Adicionalmente estos planes tendrán un paquete de 10 MB en adelante dependiendo del CBM contratado incluidas cada mes, terminadas estas megas incluidas el cliente podrá contratar cualquiera de los paquetes actuales que se comercializan en los planes Multiplanes 3.5G o navegar bajo demanda a los mismos precios configurados en estos planes. • Los minutos incluidos en cada plan: Sirven para llamadas a cualquier operadora a nivel nacional. Todos los planes descritos fueron notificados anteriormente por CNT EP en noviembre de 2012 y en esta ocasión se notifican como parte de la promoción de portabilidad llevada a cabo por parte de la CNT EP
B207: Descripción de la Promoción/Tarifa promocional (Servicios que incluye, etc.) | D207: Código de Identificación de la Promoción/Tarifa promocional * | E207: VOZ | Q207: SMS | Z207: DATOS | AC207: Otros servicios adicionales
E208: Tarifa por minuto IN-POOL (US$ por min.) | F208: Minutos IN-POOL incluidos (min.) | G208: Minutos On Net incluidos (min.) | H208: Minutos gratis a cualquier operadora (min.) | I208: Tarifa por minuto on net móvil dentro de la promoción (US$ por min.) | J208: Tarifa por minuto on net móvil adicional a la promoción (US$ por min.) | K208: Minutos Off Net incluidos (min.) | M208: Tarifa por minuto off net móvil dentro de la promoción (US$ por min.) | N208: Tarifa por minuto off net fijo dentro de la promoción (US$ por min.) | O208: Tarifa por minuto off net móvil adicional a la promoción (US$ por min.) | P208: Tarifa por minuto off net fijo adicional a la promoción (US$ por min.) | Q208: Tarifa por SMS IN-POOL (US$ por SMS) | R208: SMS IN-POOL incluidos (#SMS) | S208: Mensajes on net Incluidos (# SMS) | T208: Tarifa por SMS on net dentro de la promoción (US$ por SMS) | U208: Tarifa por SMS on net adicional a la promoción (US$ por SMS) | V208: Mensajes off net Incluidos (# SMS) | W208: Mensajes gratis a cualquier operadora (# SMS) | X208: Tarifa por SMS off net dentro de la promoción (US$ por SMS) | Y208: Tarifa por SMS off net adicional a la promoción (US$ por SMS) | Z208: MB Incluidos en la promoción (MB) | AA208: Tarifa por MB dentro de la promoción Plan (US$ por MB) | AB208: Tarifa por MB adicional a la promoción (US$ por MB) | AC208: Detalle | AD208: Unidad de medida | AE208: Tarifa US$
K209: Móvil | L209: Fijo
B210: PLAN CBM 9.99 | G210: 25 (*) | I210: 0.04 | K210: (*) | M210: 0,15 (**) | N210: 0,04 (***) | Z210: 10
B211: PLAN CBM 14.99 | G211: 40 | I211: 0.04 | M211: 0.15 | N211: 0.04 | Z211: 15
B212: PLAN CBM 24.99 | G212: 90 | I212: 0.04 | M212: 0.15 | N212: 0.04 | Z212: 20
B213: PLAN CBM 29.99 | G213: 100 | I213: 0.04 | M213: 0.15 | N213: 0.04 | Z213: 25
B214: PLAN CBM 39.99 | G214: 120 | I214: 0.04 | M214: 0.15 | N214: 0.04 | Z214: 30
B215: PLAN CBM 49.99 | G215: 140 | I215: 0.04 | M215: 0.15 | N215: 0.04 | Z215: 50
B216: PLAN CBM 74.99 | G216: 180 | I216: 0.04 | M216: 0.15 | N216: 0.04 | Z216: 50
B217: PLAN CBM 99.99 | G217: 250 | I217: 0.04 | M217: 0.15 | N217: 0.04 | Z217: 50
B219: Destinos que incluyen cargos de Interconexión: | D219: si se incluye
B220: Tarifas incluyen impuestos aplicables de Ley: | D220: la tarifa del cuadro anterior no incluye impuestos de ley
B222: =+B197 -> .
B224: FORMATO RT-PLT-01: PLANES MÓVILES
B226: Nombre del Plan Tarifario: | D226: PLAN BANDA ANCHA DE $44,99
B227: Fecha de entrada en vigencia del Plan,Tarifa o Paquete: | D227: 2013-05-20
B228: Condiciones generales del Plan,Tarifa o Paquete: | D228: • Plan que la CNT EP ofrecerá a nivel de clientes corporativos • Tecnología 3.5 y HSPA+ • Incluye 5000 MB • Valor del CBM $44,99 más impuestos • Tipo Pospago • Modalidad Controlado • Acceso a recargar para seguir navegando • No existe rollover de megas en ningún plan. • Costo Mega adicional $0,10 + impuestos. • Incluye modem Huawei 303 HSPA+ • Contrato a 18 meses.
B230: Descripción del Plan/Tarifa o Paquete (Servicios que incluye, etc.) | D230: Código de Identificación del Plan/Tarifa * | E230: Tarifa Mensual Total del Plan (US$)* | F230: VOZ | S230: SMS | AD230: DATOS | AH230: Otros servicios adicionales
F231: Tarifa Mensual Básica Voz (US$) | G231: Tarifa por minuto IN-POOL (US$ por min.) | H231: Minutos IN-POOL incluidos (min.) | I231: Minutos gratis a cualquier operadora (min.) | J231: Minutos On Net incluidos (min.) | K231: Tarifa por minuto on net móvil dentro del Plan (US$ por min.) | L231: Tarifa por minuto on net móvil adicional al Plan (US$ por min.) | M231: Minutos Off Net incluidos (min.) | O231: Tarifa por minuto off net móvil dentro del Plan (US$ por min.) | P231: Tarifa por minuto off net fijo dentro del Plan (US$ por min.) | Q231: Tarifa por minuto off net móvil adicional al Plan (US$ por min.) | R231: Tarifa por minuto off net fijo adicional al Plan (US$ por min.) | S231: Tarifa Mensual Básica SMS (US$) | T231: Tarifa por SMS IN-POOL (US$ por SMS) | U231: SMS IN-POOL incluidos (#SMS) | V231: Mensajes on net Incluidos (# SMS) | W231: Tarifa por SMS on net dentro del Plan (US$ por SMS) | X231: Tarifa por SMS on net adicional al Plan (US$ por SMS) | Y231: Mensajes off net Incluidos (# SMS) | Z231: Mensajes a cualquier operadora (# SMS) | AA231: Mensajes gratis a cualquier operadora (# SMS) | AB231: Tarifa por SMS off net dentro del Plan (US$ por SMS) | AC231: Tarifa por SMS off net adicional al Plan (US$ por SMS) | AD231: Tarifa Mensual Básica de Datos (US$) | AE231: MB Incluidos en el Plan (MB) | AF231: Tarifa por MB dentro del Plan (US$ por MB) | AG231: Tarifa por MB adicional al Plan (US$ por MB) | AH231: Detalle | AI231: Unidad de medida | AJ231: Tarifa US$
M232: Móvil | N232: Fijo
B233: INTERNET BANDA ANCHA HSPA + CONTROL | D233: 300304 | E233: 44.99 | F233: N/A | G233: N/A | H233: N/A | I233: N/A | J233: N/A | K233: N/A | L233: N/A | M233: N/A | N233: N/A | O233: N/A | P233: N/A | Q233: N/A | R233: N/A | S233: N/A | T233: N/A | U233: N/A | V233: N/A | W233: N/A | X233: N/A | Y233: N/A | Z233: N/A | AA233: N/A | AB233: N/A | AC233: N/A | AD233: 44.99 | AE233: 5000 | AF233: =AD233/AE233 -> 0.008998 | AG233: 0.1
B236: Destinos que incluyen cargos de Interconexión: | D236: no aplica
B237: Tarifas incluyen impuestos aplicables de Ley: | D237: no aplica
B239: =+B222 -> .
B241: FORMATO RT-PLT-01: PLANES MÓVILES
B243: Nombre del Plan Tarifario: | D243: PAQUETE DE DATOS POSPAGO HSPA+ 5000MB
B244: Fecha de entrada en vigencia del Plan,Tarifa o Paquete: | D244: 2013-04-18
B245: Condiciones generales del Plan,Tarifa o Paquete: | D245: *Con el nuevo paquete HSPA+ los usuarios podrán disfrutar de una mejor velocidad en la nueva red HSPA+, lo cual permitirá navegar con velocidad máxima de hasta 10MBps/2MBps. Componente para ser contratado como un adicional a los planes de voz comercializados por parte de la CNT EP *Acceso total a todo tipo de descargas y navegación hasta terminar los 5000MB contratados *Permite al usuario contratar adicionalmente el paquete HSPA+ de 2000 MB (noviembre 2012) * Una vez consumidos los 5000 MB, el cliente podrá continuar navegando a velocidad de 512 Mbps hasta completar los 7000 MB *Una vez consumidos los 7000 MB, el cliente podrá continuar navegando a una velocidad de 256 Mbps
B247: Descripción del Plan/Tarifa o Paquete (Servicios que incluye, etc.) | D247: Código de Identificación del Plan/Tarifa * | E247: Tarifa Mensual Total del Plan (US$)* | F247: VOZ | S247: SMS | AD247: DATOS | AH247: Otros servicios adicionales
F248: Tarifa Mensual Básica Voz (US$) | G248: Tarifa por minuto IN-POOL (US$ por min.) | H248: Minutos IN-POOL incluidos (min.) | I248: Minutos gratis a cualquier operadora (min.) | J248: Minutos On Net incluidos (min.) | K248: Tarifa por minuto on net móvil dentro del Plan (US$ por min.) | L248: Tarifa por minuto on net móvil adicional al Plan (US$ por min.) | M248: Minutos Off Net incluidos (min.) | O248: Tarifa por minuto off net móvil dentro del Plan (US$ por min.) | P248: Tarifa por minuto off net fijo dentro del Plan (US$ por min.) | Q248: Tarifa por minuto off net móvil adicional al Plan (US$ por min.) | R248: Tarifa por minuto off net fijo adicional al Plan (US$ por min.) | S248: Tarifa Mensual Básica SMS (US$) | T248: Tarifa por SMS IN-POOL (US$ por SMS) | U248: SMS IN-POOL incluidos (#SMS) | V248: Mensajes on net Incluidos (# SMS) | W248: Tarifa por SMS on net dentro del Plan (US$ por SMS) | X248: Tarifa por SMS on net adicional al Plan (US$ por SMS) | Y248: Mensajes off net Incluidos (# SMS) | Z248: Mensajes a cualquier operadora (# SMS) | AA248: Mensajes gratis a cualquier operadora (# SMS) | AB248: Tarifa por SMS off net dentro del Plan (US$ por SMS) | AC248: Tarifa por SMS off net adicional al Plan (US$ por SMS) | AD248: Tarifa Mensual Básica de Datos (US$) | AE248: MB Incluidos en el Plan (MB) | AF248: Tarifa por MB dentro del Plan (US$ por MB) | AG248: Tarifa por MB adicional al Plan (US$ por MB) | AH248: Detalle | AI248: Unidad de medida | AJ248: Tarifa US$
M249: Móvil | N249: Fijo
B250: PAQUETE DE DATOS POSPAGO HSPA+ 5000MB | D250: 1922 - INT3G (CONTROLADO) 1921 - INT3G (ABIERTO) | E250: n/a | F250: n/a | G250: n/a | H250: n/a | I250: n/a | J250: n/a | K250: n/a | L250: n/a | M250: n/a | N250: n/a | O250: n/a | P250: n/a | Q250: n/a | R250: n/a | S250: n/a | T250: n/a | U250: n/a | V250: n/a | W250: n/a | X250: n/a | Y250: n/a | Z250: n/a | AA250: n/a | AB250: n/a | AC250: n/a | AD250: 59.99 | AE250: 5000 | AF250: 0,1199 (*) | AG250: n/a | AH250: n/a | AI250: n/a | AJ250: n/a
B254: Destinos que incluyen cargos de Interconexión: | D254: no aplica
B255: Tarifas incluyen impuestos aplicables de Ley: | D255: no incluye impuestos de ley
B257: =+B239 -> .
B259: FORMATO RT-PLT-01: PLANES MÓVILES
B261: Nombre del Plan Tarifario: | D261: PLAN POSPAGO CONTROLADO USD 12 DISCAPACITADOS
B262: Fecha de entrada en vigencia del Plan,Tarifa o Paquete: | D262: 2013-01-30
B263: Condiciones generales del Plan,Tarifa o Paquete: | D263: Plan exclusivo para personas discapacitadas Cargo básico mensual de USD 12 (más impuestos) Plan que permite al usuario utilizar su cargo básico mensual en voz y/o SMS Chip incluido sin carga inicial Se ofrecerá al cliente financiamiento de equipo de 2 Cargos Básicos Mensuales (CBM) Contrato a 18 meses
B265: Descripción del Plan/Tarifa o Paquete (Servicios que incluye, etc.) | D265: Código de Identificación del Plan/Tarifa * | E265: Tarifa Mensual Total del Plan (US$)* | F265: VOZ | S265: SMS | AD265: DATOS | AH265: Otros servicios adicionales
F266: Tarifa Mensual Básica Voz (US$) | G266: Tarifa por minuto IN-POOL (US$ por min.) | H266: Minutos IN-POOL incluidos (min.) | I266: Minutos gratis a cualquier operadora (min.) | J266: Minutos On Net incluidos (min.) | K266: Tarifa por minuto on net móvil dentro del Plan (US$ por min.) | L266: Tarifa por minuto on net móvil adicional al Plan (US$ por min.) | M266: Minutos Off Net incluidos (min.) | O266: Tarifa por minuto off net móvil dentro del Plan (US$ por min.) | P266: Tarifa por minuto off net fijo dentro del Plan (US$ por min.) | Q266: Tarifa por minuto off net móvil adicional al Plan (US$ por min.) | R266: Tarifa por minuto off net fijo adicional al Plan (US$ por min.) | S266: Tarifa Mensual Básica SMS (US$) | T266: Tarifa por SMS IN-POOL (US$ por SMS) | U266: SMS IN-POOL incluidos (#SMS) | V266: Mensajes on net Incluidos (# SMS) | W266: Tarifa por SMS on net dentro del Plan (US$ por SMS) | X266: Tarifa por SMS on net adicional al Plan (US$ por SMS) | Y266: Mensajes off net Incluidos (# SMS) | Z266: Mensajes a cualquier operadora (# SMS) | AA266: Mensajes gratis a cualquier operadora (# SMS) | AB266: Tarifa por SMS off net dentro del Plan (US$ por SMS) | AC266: Tarifa por SMS off net adicional al Plan (US$ por SMS) | AD266: Tarifa Mensual Básica de Datos (US$) | AE266: MB Incluidos en el Plan (MB) | AF266: Tarifa por MB dentro del Plan (US$ por MB) | AG266: Tarifa por MB adicional al Plan (US$ por MB) | AH266: Detalle | AI266: Unidad de medida | AJ266: Tarifa US$
M267: Móvil | N267: Fijo
B268: Plan Discapacitado USD 12 (más IVA) | D268: • 300298: DISCAPACITADO HSPA PLUS CONTROL • 300297: DISCAPACITADO 3.5G CONTROL • 300296: DISCAPACITADO GSM CONTROL | E268: 12 | I268: 0.04 | M268: 0.15 | N268: 0.15 | U268: 0.05 | Y268: 0.06
B272: Destinos que incluyen cargos de Interconexión: | D272: todos los destinos incluyen cargos de interconexión (local, nacional, LDI)
B273: Tarifas incluyen impuestos aplicables de Ley: | D273: No incluyen
B275: =+B257 -> .
B277: FORMATO RT-PLT-01: PLANES MÓVILES
B279: Nombre del Plan Tarifario: | D279: PLAN BANDA ANCHA MÓVIL HSPA+ 10
B280: Fecha de entrada en vigencia del Plan,Tarifa o Paquete: | D280: 2013-02-22
B281: Condiciones generales del Plan,Tarifa o Paquete: | D281: • 500 MB incluidas • Valor del CBM $10 más impuestos • Modalidad Controlado • Acceso a realización de recargas para que el cliente continúe navegando bajo demanda • Costo Mega adicional $0,10 + impuestos • Financiamiento de equipos 2 CBM´s • Plan no tiene rollover • Contrato a 24 meses • Plan para personas • Para este plan aplicará promoción, la cual consistirá en brindar una cantidad de megas adicionales, conforme se indica a continuación:
B283: Descripción del Plan/Tarifa o Paquete (Servicios que incluye, etc.) | D283: Código de Identificación del Plan/Tarifa * | E283: Tarifa Mensual Total del Plan (US$)* | F283: VOZ | S283: SMS | AD283: DATOS | AH283: Otros servicios adicionales
F284: Tarifa Mensual Básica Voz (US$) | G284: Tarifa por minuto IN-POOL (US$ por min.) | H284: Minutos IN-POOL incluidos (min.) | I284: Minutos gratis a cualquier operadora (min.) | J284: Minutos On Net incluidos (min.) | K284: Tarifa por minuto on net móvil dentro del Plan (US$ por min.) | L284: Tarifa por minuto on net móvil adicional al Plan (US$ por min.) | M284: Minutos Off Net incluidos (min.) | O284: Tarifa por minuto off net móvil dentro del Plan (US$ por min.) | P284: Tarifa por minuto off net fijo dentro del Plan (US$ por min.) | Q284: Tarifa por minuto off net móvil adicional al Plan (US$ por min.) | R284: Tarifa por minuto off net fijo adicional al Plan (US$ por min.) | S284: Tarifa Mensual Básica SMS (US$) | T284: Tarifa por SMS IN-POOL (US$ por SMS) | U284: SMS IN-POOL incluidos (#SMS) | V284: Mensajes on net Incluidos (# SMS) | W284: Tarifa por SMS on net dentro del Plan (US$ por SMS) | X284: Tarifa por SMS on net adicional al Plan (US$ por SMS) | Y284: Mensajes off net Incluidos (# SMS) | Z284: Mensajes a cualquier operadora (# SMS) | AA284: Mensajes gratis a cualquier operadora (# SMS) | AB284: Tarifa por SMS off net dentro del Plan (US$ por SMS) | AC284: Tarifa por SMS off net adicional al Plan (US$ por SMS) | AD284: Tarifa Mensual Básica de Datos (US$) | AE284: MB Incluidos en el Plan (MB) | AF284: Tarifa por MB dentro del Plan (US$ por MB) | AG284: Tarifa por MB adicional al Plan (US$ por MB) | AH284: Detalle | AI284: Unidad de medida | AJ284: Tarifa US$
M285: Móvil | N285: Fijo
B286: PLAN BANDA ANCHA MOVIL HSPA+ 10 | D286: 300395 | E286: 10 | F286: n/a | G286: n/a | H286: n/a | I286: n/a | J286: n/a | K286: n/a | L286: n/a | M286: n/a | N286: n/a | O286: n/a | P286: n/a | Q286: n/a | R286: n/a | S286: n/a | T286: n/a | U286: n/a | V286: n/a | W286: n/a | X286: n/a | Y286: n/a | Z286: n/a | AA286: n/a | AB286: n/a | AC286: n/a | AD286: n/a | AE286: 500 | AF286: =10/500 -> 0.02 | AG286: 0.1 | AH286: n/a | AI286: n/a | AJ286: n/a
B287: PROMOCION MEGAS INCLUIDAS AL PLAN $10 | D287: 300395 | E287: 0 | F287: n/a | G287: n/a | H287: n/a | I287: n/a | J287: n/a | K287: n/a | L287: n/a | M287: n/a | N287: n/a | O287: n/a | P287: n/a | Q287: n/a | R287: n/a | S287: n/a | T287: n/a | U287: n/a | V287: n/a | W287: n/a | X287: n/a | Y287: n/a | Z287: n/a | AA287: n/a | AB287: n/a | AC287: n/a | AD287: n/a | AE287: 300 | AF287: 0 | AG287: 0 | AH287: n/a | AI287: n/a | AJ287: n/a
B290: Destinos que incluyen cargos de Interconexión: | D290: n/a
B291: Tarifas incluyen impuestos aplicables de Ley: | D291: n/a
B293: =+B275 -> .
... 1361 more rows

Sheet Gráfico1
B2: Servicio Móvil Avanzado
B3: Tarifas CNT E.P. (EX - TELECSA)
B8: =+Inicio!B8 -> Fecha de publicación: julio de 2013

Sheet Gráfico2
B2: Servicio Móvil Avanzado
B3: Tarifas Móviles - Máximas y Mínimas
B8: =+Inicio!B8 -> Fecha de publicación: julio de 2013

Sheet Gráfico3
B2: Servicio Móvil Avanzado
B3: Tarifas Móviles - Prepago
B8: =+Inicio!B8 -> Fecha de publicación: julio de 2013
B46: Servicio Móvil Avanzado
B47: Tarifas Móviles - Pospago
B52: =+Inicio!B8 -> Fecha de publicación: julio de 2013

Sheet Evo.TarifONNET
B2: Servicio Móvil Avanzado
B3: Tarifas Móviles - Prepago
B8: =+Inicio!B8 -> Fecha de publicación: julio de 2013
B13: EVOLUCION TARIFARIA - POSPAGO ON NET MAXIMAS
C14: 2006 | D14: 2007 | E14: 2008 | F14: 2009 | G14: 2010 | H14: 2011 | I14: 2012 | J14: 2013 (jul.)
B15: Conecel S.A. | C15: 0.111 | D15: 0.111 | E15: 0.1344 | F15: 0.1344 | G15: 0.15 | H15: 0.15 | I15: 0.15 | J15: 0.15
B16: Otecel S.A. | C16: 0.126 | D16: 0.15 | E16: 0.08 | F16: 0.08 | G16: 0.15 | H16: 0.15 | I16: 0.15 | J16: 0.15
B17: CNT EP. (ex-Telecsa ) | C17: 0.23 | D17: 0.15 | E17: 0.15 | F17: 0.15 | G17: 0.15 | H17: 0.15 | I17: 0.15 | J17: 0.15
C18: =AVERAGE(C15:C17) -> 0.1556666667 | D18: 0.137 | E18: 0.1214666667 | F18: 0.1214666667 | G18: 0.15 | H18: =AVERAGE(H15:H17) -> 0.15 | I18: 0.15 | J18: =AVERAGE(J15:J17) -> 0.15
B21: EVOLUCION TARIFARIA - POSPAGO ON NET MÍNIMAS
C22: 2006 | D22: 2007 | E22: 2008 | F22: 2009 | G22: 2010 | H22: 2011 | I22: =+I14 -> 2012 | J22: =+J14 -> 2013 (jul.)
B23: Conecel S.A. | C23: 0.075 | D23: 0.075 | E23: 0.075 | F23: 0.04 | G23: 0.02 | H23: 0.02 | I23: =+Resumen!F23 -> 0.02 | J23: =+I23 -> 0.02
B24: Otecel S.A. | C24: 0.065 | D24: 0.08 | E24: 0.08 | F24: 0.04 | G24: 0.04 | H24: 0.04 | I24: =+Resumen!F24 -> 0.04 | J24: =+I24 -> 0.04
B25: CNT EP. (ex-Telecsa ) | C25: 0.075 | D25: 0.05 | E25: 0.05 | F25: 0.04 | G25: 0.04 | H25: 0.04 | I25: =+Resumen!F25 -> 0.04 | J25: =+I25 -> 0.04
C26: =AVERAGE(C23:C25) -> 0.07166666667 | D26: 0.06833333333 | E26: 0.06833333333 | F26: 0.04 | G26: 0.03333333333 | H26: =AVERAGE(H23:H25) -> 0.03333333333 | I26: 0.03333333333 | J26: =AVERAGE(J23:J25) -> 0.03333333333
B29: EVOLUCION TARIFARIA - PREPAGO ON NET MAXIMAS
C30: 2006 | D30: 2007 | E30: 2008 | F30: 2009 | G30: 2010 | H30: 2011 | I30: =+I22 -> 2012 | J30: =+J22 -> 2013 (jul.)
B31: Conecel S.A. | C31: 0.48 | D31: 0.25 | E31: 0.25 | F31: 0.17 | G31: 0.15 | H31: 0.15 | I31: =+Resumen!C23 -> 0.22 | J31: =+Resumen!D23 -> 0.22
B32: Otecel S.A. | C32: 0.44 | D32: 0.44 | E32: 0.25 | F32: =+'[1]OTEC-Pre'!$K$2 -> 0.181795 | G32: =+'[1]OTEC-Pre'!$J$18 -> 0.162465 | H32: =+'[1]OTEC-Pre'!$J$18 -> 0.162465 | I32: =+Resumen!C24 -> 0.18 | J32: =+I32 -> 0.18
B33: CNT EP. (ex-Telecsa ) | C33: 0.39 | D33: 0.39 | E33: 0.18 | F33: 0.18 | G33: 0.18 | H33: 0.18 | I33: =+Resumen!C25 -> 0.22 | J33: =+I33 -> 0.22
C34: =AVERAGE(C31:C33) -> 0.4366666667 | D34: 0.36 | E34: 0.2266666667 | F34: 0.177265 | G34: 0.164155 | H34: =AVERAGE(H31:H33) -> 0.164155 | I34: 0.2066666667 | J34: =AVERAGE(J31:J33) -> 0.2066666667
B37: EVOLUCION TARIFARIA - PREPAGO ON NET MÍNIMAS
C38: 2006 | D38: 2007 | E38: 2008 | F38: 2009 | G38: 2010 | H38: 2011 | I38: =+I30 -> 2012 | J38: =+J30 -> 2013 (jul.)
B39: Conecel S.A. | C39: 0.48 | D39: 0.1 | E39: 0.1 | F39: 0.05 | G39: 0.05 | H39: 0.05 | I39: =+Resumen!E23 -> 0.05 | J39: =+I39 -> 0.05
B40: Otecel S.A. | C40: 0.27 | D40: 0.15 | E40: 0.08 | F40: 0.08 | G40: 0.08 | H40: 0.08 | I40: =+Resumen!E24 -> 0.08 | J40: =+I40 -> 0.08
B41: CNT EP. (ex-Telecsa ) | C41: 0.39 | D41: 0.13 | E41: 0.05 | F41: 0.05 | G41: 0.05 | H41: 0.05 | I41: =+Resumen!E25 -> 0.05 | J41: =+I41 -> 0.05
C42: =AVERAGE(C39:C41) -> 0.38 | D42: 0.1266666667 | E42: 0.07666666667 | F42: 0.06 | G42: 0.06 | H42: =AVERAGE(H39:H41) -> 0.06 | I42: 0.06 | J42: =AVERAGE(J39:J41) -> 0.06
B45: PROMEDIO TRES OPERADORAS
B46: ONNET | C46: 2006 | D46: 2007 | E46: 2008 | F46: 2009 | G46: 2010 | H46: 2011 | I46: =+I38 -> 2012 | J46: =+J38 -> 2013 (jul.)
B47: Pospago máxima | C47: =+C18 -> 0.1556666667 | D47: 0.137 | E47: 0.1214666667 | F47: 0.1214666667 | G47: 0.15 | H47: =+H18 -> 0.15 | I47: 0.15 | J47: =+J18 -> 0.15
B48: Pospago mínima | C48: =+C26 -> 0.07166666667 | D48: =+D26 -> 0.06833333333 | E48: 0.06833333333 | F48: 0.04 | G48: 0.03333333333 | H48: 0.03333333333 | I48: 0.03333333333 | J48: =+J26 -> 0.03333333333
B49: Prepago máxima | C49: =+C34 -> 0.4366666667 | D49: =+D34 -> 0.36 | E49: 0.2266666667 | F49: 0.177265 | G49: 0.164155 | H49: 0.164155 | I49: 0.2066666667 | J49: =+J34 -> 0.2066666667
B50: Prepago mínima | C50: =+C42 -> 0.38 | D50: =+D42 -> 0.1266666667 | E50: 0.07666666667 | F50: 0.06 | G50: 0.06 | H50: 0.06 | I50: 0.06 | J50: =+J42 -> 0.06
B53: Techos tarifarios Promedio
C54: 2006 | D54: 2007 | E54: 2008 | F54: 2009 | G54: 2010 | H54: 2011 | I54: =+I46 -> 2012 | J54: =+J46 -> 2013 (jul.)
B55: OTECEL | C55: 0.5 | D55: 0.5 | E55: 0.22 | F55: 0.22 | G55: 0.22 | H55: 0.22 | I55: 0.22 | J55: 0.22
B56: CONECEL | C56: 0.5 | D56: 0.5 | E56: 0.22 | F56: 0.22 | G56: 0.22 | H56: 0.22 | I56: 0.22 | J56: 0.22
B57: CNT EP. (ex-Telecsa ) | C57: 0.49 | D57: 0.49 | E57: 0.49 | F57: 0.49 | G57: 0.49 | H57: 0.49 | I57: 0.22 | J57: 0.22
B58: PROMEDIO | C58: =AVERAGE(C55:C57) -> 0.4966666667 | D58: 0.4966666667 | E58: 0.31 | F58: 0.31 | G58: 0.31 | H58: =AVERAGE(H55:H57) -> 0.31 | I58: 0.22 | J58: =AVERAGE(J55:J57) -> 0.22
B60: Notas:
B62: 1. Valor de las tarifas por minuto
B63: 2. No se incluye valor de los impuestos
B64: =+Resumen!B36 -> .

Sheet Gráfico4
B2: Servicio Móvil Avanzado
B3: Evolución Tarifaria CONECEL S.A.
B4: Valores Promedio ON-NET
B8: =+Inicio!B8 -> Fecha de publicación: julio de 2013

Sheet Gráfico5
B2: Servicio Móvil Avanzado
B3: Evolución Tarifaria OTECEL S.A.
B4: Valores Promedio ON-NET
B8: =+Inicio!B8 -> Fecha de publicación: julio de 2013

Sheet Gráfico6
B2: Servicio Móvil Avanzado
B3: Evolución Tarifaria CNT E.P. (EX - TELECSA)
B4: Valores Promedio ON-NET
B8: =+Inicio!B8 -> Fecha de publicación: julio de 2013

Sheet Gráfico7
B2: Servicio Móvil Avanzado
B3: Evolución Tarifaria Valores Promedio ON-NET
B8: =+Inicio!B8 -> Fecha de publicación: julio de 2013

Sheet EvoTariOFFNET
B2: Servicio Móvil Avanzado
B3: Evolución Tarifaria Valores Promedio ON-NET
B8: =+Inicio!B8 -> Fecha de publicación: julio de 2013
B13: EVOLUCION TARIFARIA - PREPAGO OFF NET MAXIMAS
C14: 2006 | D14: 2007 | E14: 2008 | F14: 2009 | G14: 2010 | H14: 2011 | I14: 2012 | J14: 2013 (jul.)
B15: Conecel S.A. | C15: 0.48 | D15: 0.25 | E15: 0.25 | F15: =+'[2]Max-Min.Conecel '!$F$23 -> 0.22 | G15: 0.15 | H15: 0.15 | I15: =+Resumen!C23 -> 0.22 | J15: =+I15 -> 0.22
B16: Otecel S.A. | C16: 0.44 | D16: 0.44 | E16: 0.25 | F16: 0.22 | G16: 0.22 | H16: 0.22 | I16: =+Resumen!C24 -> 0.18 | J16: =+I16 -> 0.18
B17: CNT EP. (ex-Telecsa ) | C17: 0.39 | D17: 0.39 | E17: 0.18 | F17: 0.18 | G17: 0.18 | H17: 0.18 | I17: =+Resumen!C25 -> 0.22 | J17: =+I17 -> 0.22
C18: =AVERAGE(C15:C17) -> 0.4366666667 | D18: 0.36 | E18: 0.2266666667 | F18: 0.2066666667 | G18: 0.1833333333 | H18: =AVERAGE(H15:H17) -> 0.1833333333 | I18: 0.2066666667 | J18: =AVERAGE(J15:J17) -> 0.2066666667
B20: EVOLUCION TARIFARIA - POSPAGO OFF NET MAXIMAS
C21: 2006 | D21: 2007 | E21: 2008 | F21: 2009 | G21: 2010 | H21: 2011 | I21: =+I14 -> 2012 | J21: =+J14 -> 2013 (jul.)
B22: Conecel S.A. | C22: 0.34 | D22: 0.34 | E22: 0.25 | F22: =+'[2]Max-Min.Conecel '!$F$21 -> 0.16 | G22: =+'[1]Max-Min-Conec'!$C$14 -> 0.22 | H22: =+'[1]Max-Min-Conec'!$C$14 -> 0.22 | I22: =+Resumen!D23 -> 0.22 | J22: =+I22 -> 0.22
B23: Otecel S.A. | C23: 0.5 | D23: 0.25 | E23: 0.25 | F23: =+'[2]Max-Min.Otecel'!$F$11 -> 0.19 | G23: =+'[1]Max-Min.Otecel'!$C$16-0.0141 -> 0.2191 | H23: =+'[1]Max-Min.Otecel'!$C$16-0.0141 -> 0.2191 | I23: =+Resumen!D24 -> 0.19 | J23: =+I23 -> 0.19
B24: CNT EP. (ex-Telecsa ) | C24: 0.472 | D24: 0.3 | E24: 0.3 | F24: =+'[2]Max-Min.Telecsa'!$F$15 -> 0.15 | G24: =0.3-0.0166 -> 0.2834 | H24: =0.3-0.0166 -> 0.2834 | I24: =+Resumen!D25 -> 0.15 | J24: =+I24 -> 0.15
C25: =AVERAGE(C22:C24) -> 0.4373333333 | D25: 0.2966666667 | E25: 0.2666666667 | F25: 0.1666666667 | G25: 0.2408333333 | H25: =AVERAGE(H22:H24) -> 0.2408333333 | I25: 0.1866666667 | J25: =AVERAGE(J22:J24) -> 0.1866666667
B27: EVOLUCION TARIFARIA - POSPAGO OFF NET MÍNIMA
C28: 2006 | D28: 2007 | E28: 2008 | F28: 2009 | G28: 2010 | H28: 2011 | I28: =+I21 -> 2012 | J28: =+J21 -> 2013 (jul.)
B29: Conecel S.A. | C29: =+'[2]Max-Min.Conecel '!$B$49 -> 0.126 | D29: =+C29 -> 0.126 | E29: =+'[2]Max-Min.Conecel '!$B$91 -> 0.05 | F29: =+'[2]Max-Min.Conecel '!$F$12 -> 0.04 | G29: =+'[1]Max-Min-Conec'!$D$12 -> 0.04 | H29: =+'[1]Max-Min-Conec'!$D$12 -> 0.04 | I29: =+Resumen!F23 -> 0.02 | J29: =+I29 -> 0.02
B30: Otecel S.A. | C30: =+'[2]Max-Min.Otecel'!$C$60 -> 0.08 | D30: =+'[2]Max-Min.Otecel'!$C$75 -> 0.08 | E30: =+'[2]Max-Min.Otecel'!$C$89 -> 0.08 | F30: =+'[2]Max-Min.Otecel'!$G$10 -> 0.04 | G30: =+'[1]Max-Min.Otecel'!$D$11 -> 0.04 | H30: =+'[1]Max-Min.Otecel'!$D$11 -> 0.04 | I30: =+Resumen!F24 -> 0.04 | J30: =+I30 -> 0.04
B31: CNT EP. (ex-Telecsa ) | C31: =+'[2]Max-Min.Telecsa'!$C$54 -> 0.075 | D31: =+'[2]Max-Min.Telecsa'!$C$67 -> 0.05 | E31: =+'[2]Max-Min.Telecsa'!$C$84 -> 0.065 | F31: =+'[2]Max-Min.Telecsa'!$G$14 -> 0.04 | G31: =+'[1]Max_Min-Telecsa'!$D$11 -> 0.04 | H31: =+'[1]Max_Min-Telecsa'!$D$11 -> 0.04 | I31: =+Resumen!F25 -> 0.04 | J31: =+I31 -> 0.04
C32: =AVERAGE(C29:C31) -> 0.09366666667 | D32: 0.08533333333 | E32: 0.065 | F32: 0.04 | G32: 0.04 | H32: =AVERAGE(H29:H31) -> 0.04 | I32: 0.03333333333 | J32: =AVERAGE(J29:J31) -> 0.03333333333
B34: EVOLUCION TARIFARIA - PREPAGO OFF NET MÍNIMA
C35: 2006 | D35: 2007 | E35: 2008 | F35: 2009 | G35: 2010 | H35: 2011 | I35: =+I28 -> 2012 | J35: =+J28 -> 2013 (jul.)
B36: Conecel S.A. | C36: =+'[2]Max-Min.Conecel '!$C$52 -> 0.1 | D36: =+C36 -> 0.1 | E36: =+'[2]Max-Min.Conecel '!$C$112 -> 0.05 | F36: =+'[2]Max-Min.Conecel '!$G$20 -> 0.05 | G36: =+'[1]Max-Min-Conec'!$D$27 -> 0.05 | H36: =+'[1]Max-Min-Conec'!$D$27 -> 0.05 | I36: =+Resumen!C16 -> 0.05 | J36: =+I36 -> 0.05
B37: Otecel S.A. | C37: =+'[2]Max-Min.Otecel'!$C$65 -> 0.08 | D37: =+'[2]Max-Min.Otecel'!$C$78 -> 0.15 | E37: =+'[2]Max-Min.Otecel'!$C$94 -> 0.08 | F37: =+'[2]Max-Min.Otecel'!$G$16 -> 0.08 | G37: =+'[1]Max-Min.Otecel'!$D$23 -> 0.08 | H37: =+'[1]Max-Min.Otecel'!$D$23 -> 0.08 | I37: =+Resumen!C17 -> 0.08 | J37: =+I37 -> 0.08
B38: CNT EP. (ex-Telecsa ) | C38: =+'[2]Max-Min.Telecsa'!$C$58 -> 0.39 | D38: =+'[2]Max-Min.Telecsa'!$C$72 -> 0.13 | E38: =+'[2]Max-Min.Telecsa'!$C$91 -> 0.08 | F38: 0.05 | G38: =+'[1]Max_Min-Telecsa'!$D$22 -> 0.05 | H38: =+'[1]Max_Min-Telecsa'!$D$22 -> 0.05 | I38: =+Resumen!E25 -> 0.05 | J38: =+I38 -> 0.05
C39: =AVERAGE(C36:C38) -> 0.19 | D39: 0.1266666667 | E39: 0.07 | F39: 0.06 | G39: 0.06 | H39: =AVERAGE(H36:H38) -> 0.06 | I39: 0.06 | J39: =AVERAGE(J36:J38) -> 0.06
B41: PROMEDIO TRES OPERADORAS
B42: OFF-NET | C42: 2006 | D42: 2007 | E42: 2008 | F42: 2009 | G42: 2010 | H42: 2011 | I42: =+I35 -> 2012 | J42: =+J35 -> 2013 (jul.)
B43: Pospago máxima | C43: =+C25 -> 0.4373333333 | D43: 0.2966666667 | E43: 0.2666666667 | F43: 0.1666666667 | G43: 0.2408333333 | H43: 0.2408333333 | I43: 0.1866666667 | J43: =+J25 -> 0.1866666667
B44: Pospago mínima | C44: =+C32 -> 0.09366666667 | D44: =+D32 -> 0.08533333333 | E44: 0.065 | F44: 0.04 | G44: 0.04 | H44: 0.04 | I44: 0.03333333333 | J44: =+J32 -> 0.03333333333
B45: Prepago máxima | C45: =+C18 -> 0.4366666667 | D45: =+D18 -> 0.36 | E45: 0.2266666667 | F45: 0.2066666667 | G45: 0.1833333333 | H45: 0.1833333333 | I45: 0.2066666667 | J45: =+J18 -> 0.2066666667
B46: Prepago mínima | C46: =+C39 -> 0.19 | D46: =+D39 -> 0.1266666667 | E46: 0.07 | F46: 0.06 | G46: 0.06 | H46: 0.06 | I46: 0.06 | J46: =+J39 -> 0.06
B49: Techos tarifarios Promedio
C50: 2006 | D50: 2007 | E50: 2008 | F50: 2009 | G50: 2010 | H50: 2011 | I50: =+I42 -> 2012 | J50: =+J42 -> 2013 (jul.)
B51: OTECEL | C51: 0.5 | D51: 0.5 | E51: 0.22 | F51: 0.22 | G51: 0.22 | H51: 0.22 | I51: 0.22 | J51: 0.22
B52: CONECEL | C52: 0.5 | D52: 0.5 | E52: 0.22 | F52: 0.22 | G52: 0.22 | H52: 0.22 | I52: 0.22 | J52: 0.22
B53: CNT EP. (ex-Telecsa ) | C53: 0.49 | D53: 0.49 | E53: 0.49 | F53: 0.49 | G53: 0.49 | H53: 0.49 | I53: 0.22 | J53: 0.22
B54: PROMEDIO | C54: =AVERAGE(C51:C53) -> 0.4966666667 | D54: 0.4966666667 | E54: 0.31 | F54: 0.31 | G54: 0.31 | H54: =AVERAGE(H51:H53) -> 0.31 | I54: 0.22 | J54: =AVERAGE(J51:J53) -> 0.22
B57: Notas:
B59: 1. Valor de las tarifas por minuto
B60: 2. No se incluye valor de los impuestos
B61: =+Evo.TarifONNET!B64 -> .

Sheet Gráfico8
B2: Servicio Móvil Avanzado
B3: Evolución Tarifaria CONECEL S.A.
B4: Valores Promedio OFF-NET
B8: =+Inicio!B8 -> Fecha de publicación: julio de 2013

Sheet Gráfico9
B2: Servicio Móvil Avanzado
B3: Evolución Tarifaria OTECEL S.A.
B4: Valores Promedio OFF-NET
B8: =+Inicio!B8 -> Fecha de publicación: julio de 2013

Sheet Gráfico10
B2: Servicio Móvil Avanzado
B3: Evolución Tarifaria CNT E.P. (EX - TELECSA)
B4: Valores Promedio OFF-NET
B8: =+Inicio!B8 -> Fecha de publicación: julio de 2013

Sheet Gráfico11
B2: Servicio Móvil Avanzado
B3: Evolución Tarifaria Valores Promedio OFF-NET
B8: =+Inicio!B8 -> Fecha de publicación: julio de 2013
